account_party,address,code,date,document_number,expense_code_name,expense_code_name_short,id,party_cell,party_cell_code,party_cell_geoobject,purpose,source_bank_account_number,source_bank_account_type,sum,target_legal_personality,target_legal_personality_code,target_type
НАШ КРАЙ,"Київ, вул. Богдана Хмельницького, буд. 64",70,2019-12-27,RCO2251_837,Банківські послуги,Інші витрати,345687,Черкаська обласна організація,39947943,Черкаська область,Списання коштiв за банкiвське обслуговування згiдно договоpу № 449 від 2015-09-18 р.,26002230449,current,3.00,"ПАТ ""Мегабанк""",09804119,юридична особа
НАШ КРАЙ,"Черкаська обл., Черкаси",58,2019-12-27,152,"Виготовлення друкованих матеріалів (плакатів, листівок, буклетів та інших агітаційних матеріалів)",Друкована агітація,345646,Черкаська обласна організація,39947943,Черкаська область,"Послуги друку наліпок, зг. рах. №НА-0000288 від 2019-12-26, без ПДВ",26002230449,current,351.00,Коман Анна Володимирівна,,фізична особа
НАШ КРАЙ,"Харківська обл., Дергачівський р-н, Дергачі, вул. Перемоги, буд. 14",79,2019-12-27,202,"Оренда будинків і приміщень та експлуатаційні витрати (прибирання, страхування орендованих будинків, охорона, сигналізація, ремонт, вивіз сміття, тощо)",Оренда нерухомості,345615,Харківська обласна організація,39972241,Харківська область,За оренду приміщення,UA033516290000000002600012178,current,1995.00,"ПП ""Ампір 2008""",35876460,юридична особа
НАШ КРАЙ,"Харківська обл., Харківський р-н, Циркуни, вул. Механізаторська, буд. 11",79,2019-12-27,200,"Оренда будинків і приміщень та експлуатаційні витрати (прибирання, страхування орендованих будинків, охорона, сигналізація, ремонт, вивіз сміття, тощо)",Оренда нерухомості,345614,Харківська обласна організація,39972241,Харківська область,За оренду приміщення,UA033516290000000002600012178,current,4800.00,"ТОВ ""Алькад ЛТД""",22636477,юридична особа
НАШ КРАЙ,"Харківська обл., Харківський р-н, Циркуни, вул. Механізаторська, буд. 11",79,2019-12-27,199,"Оренда будинків і приміщень та експлуатаційні витрати (прибирання, страхування орендованих будинків, охорона, сигналізація, ремонт, вивіз сміття, тощо)",Оренда нерухомості,345613,Харківська обласна організація,39972241,Харківська область,За оренду приміщення,UA033516290000000002600012178,current,4800.00,"ТОВ ""Алькад ЛТД""",22636477,юридична особа
НАШ КРАЙ,"Харківська обл., Дергачівський р-н, Дергачі, вул. Перемоги, буд. 14",79,2019-12-27,201,"Оренда будинків і приміщень та експлуатаційні витрати (прибирання, страхування орендованих будинків, охорона, сигналізація, ремонт, вивіз сміття, тощо)",Оренда нерухомості,345612,Харківська обласна організація,39972241,Харківська область,За оренду приміщення,UA033516290000000002600012178,current,3585.00,"ПП ""Ампір 2008""",35876460,юридична особа
НАШ КРАЙ,"Київ, вул. Богдана Хмельницького, буд. 64",70,2019-12-27,RCO2251_833,Банківські послуги,Інші витрати,345611,Харківська обласна організація,39972241,Харківська область,За банківське обслуговування,UA033516290000000002600012178,current,12.00,"ПАТ ""Мегабанк""",09804119,юридична особа
НАШ КРАЙ,"Миколаївська обл., Миколаїв",53,2019-12-27,281,Витрати на розміщення зовнішньої реклами,Зовнішня реклама,345318,Миколаївська обласна організація,39956738,Миколаївська область,оплата за послуги оренди рекламних площин,26003140602,current,3600.00,"ПП ""Агролідер груп""",42218883,юридична особа
НАШ КРАЙ,"Київ, вул. Богдана Хмельницького, буд. 64",70,2019-12-27,RCO2251_83,Банківські послуги,Інші витрати,345317,Миколаївська обласна організація,39956738,Миколаївська область,банківське обслуговування,26003140602,current,5.00,"ПАТ ""Мегабанк""",09804119,юридична особа
НАШ КРАЙ,"Київ, вул. Богдана Хмельницького, буд. 64",84,2019-12-27,82,"Заробітна плата, премії","Заробітна плата, лікарняні, вагітності, відрядження, компенсації",344926,Київська міська організація,39812835,Київ,Перерахунок зар.плати за грудень 2019р. відповідно до договору зарплатного проекту №02-10/2015-2 від 2015-10-02 без ПДВ,26000260477,current,2545.67,"ПАТ ""Мегабанк""",09804119,юридична особа
НАШ КРАЙ,"Київ, вул. Політехнічна, буд. 5А",62,2019-12-27,83,Сплата ЄСВ,Податкові платежі,344925,Київська міська організація,39812835,Київ,*;101;39812835;сплата єдиного внеску за грудень 2019 року;;;Без ПДВ,26000260477,current,1147.58,ДПІ у Шевченківському районі у м. Києві,39561761,юридична особа
НАШ КРАЙ,"Київ, вул. Академіка Туполєва, буд. 28А",63,2019-12-27,84,Податок на доходи,Податкові платежі,344924,Київська міська організація,39812835,Київ,*;101;39812835;Податок на доходи найм.працівників за грудень 2019 року;;;Без ПДВ,26000260477,current,569.22,УДКСУ у Шевченківському районі м. Києва,37995466,юридична особа
НАШ КРАЙ,"Київ, вул. Академіка Туполєва, буд. 28А",61,2019-12-27,85,Військовий збір,Податкові платежі,344923,Київська міська організація,39812835,Київ,*;101;39812835;Військовий збір з доходів найм.працівників за грудень 2019 року;;; Без ПДВ,26000260477,current,47.44,УДКСУ у Шевченківському районі м. Києва,37995466,юридична особа
НАШ КРАЙ,"Київ, вул. Богдана Хмельницького, буд. 64",70,2019-12-27,TR.1419161.1533,Банківські послуги,Інші витрати,344922,Київська міська організація,39812835,Київ,Сплата комісії за банківське обслуговування зг. Дог.№ 02-10/2015-2 від 2015-10-02,26000260477,current,25.46,"ПАТ ""Мегабанк""",09804119,юридична особа
НАШ КРАЙ,"Київ, вул. Богдана Хмельницького, буд. 64",70,2019-12-27,RCO2251_838,Банківські послуги,Інші витрати,344921,Київська міська організація,39812835,Київ,Списання коштiв за банкiвське обслуговування згiдно договоpу 73/2015 від 2015-09-18 р.,26000260477,current,3.00,"ПАТ ""Мегабанк""",09804119,юридична особа
НАШ КРАЙ,"Донецька обл., Словʼянський р-н, Словʼянськ",79,2019-12-27,436,"Оренда будинків і приміщень та експлуатаційні витрати (прибирання, страхування орендованих будинків, охорона, сигналізація, ремонт, вивіз сміття, тощо)",Оренда нерухомості,344700,Донецька обласна організація,39878456,Донецька область,Оплата за послуги охорони обʼєктів за листопад 2019р.,26000040299,current,1400.00,"ПП ""СБ ""ТИТАН-2""",35637538,юридична особа
НАШ КРАЙ,"Київ, вул. Богдана Хмельницького, буд. 64",70,2019-12-27,RCO2251_840,Банківські послуги,Інші витрати,344699,Донецька обласна організація,39878456,Донецька область,Списання коштів за банківське обслуговування,26000040299,current,1.00,"ПАТ ""Мегабанк""",09804119,юридична особа
НАШ КРАЙ,"Київ, вул. Богдана Хмельницького, буд. 64",70,2019-12-27,TR.1419259.1535,Банківські послуги,Інші витрати,344322,Центральний офіс,37724082,Україна,Сплата комісії за банківське обслуговування зг. Дог.№ 02-10/2015-1 від 2015-10-02,26002260475,current,42.52,"ПАТ ""Мегабанк""",09804119,юридична особа
НАШ КРАЙ,"Київ, вул. Богдана Хмельницького, буд. 64",70,2019-12-27,RCO2251_834,Банківські послуги,Інші витрати,344321,Центральний офіс,37724082,Україна,Списання коштiв за банкiвське обслуговування згiдно договоpу 71/2015 від 2015-09-15 р.,26002260475,current,4.00,"ПАТ ""Мегабанк""",09804119,юридична особа
НАШ КРАЙ,"Київ, вул. Омеляновича-Павленка, буд. 4/6, 904",48,2019-12-27,183,Публікування матеріалів у мережі Інтернет,Реклама в інтернеті,344320,Центральний офіс,37724082,Україна,"Послуги по розміщенню реклами, http://www.pravda.com.ua у вигляді банеру 1175х75, згідно рах.ф. №111 від 23 грудня 2019 р.",26002260475,current,1052.63,"ПП ""Українська правда""",31565711,юридична особа
НАШ КРАЙ,"Київ, вул. Богдана Хмельницького, буд. 64",84,2019-12-27,182,"Заробітна плата, премії","Заробітна плата, лікарняні, вагітності, відрядження, компенсації",344319,Центральний офіс,37724082,Україна,Перерахування заробітної плати за грудень 2019 відповідно до договору зарплатного проекту№02-10\2015-1 від 2015-10-02 без ПДВ,26002260475,current,4251.53,"ПАТ ""Мегабанк""",09804119,юридична особа
НАШ КРАЙ,"Київ, пров. Політехнічний, буд. 5А",62,2019-12-27,179,Сплата ЄСВ,Податкові платежі,344318,Центральний офіс,37724082,Україна,*;101;37724082;сплата єдиного внеску за грудень 2019 року;;;Без ПДВ,26002260475,current,1161.92,ДПІ у Шевченківському районі у м. Києві,39561761,юридична особа
НАШ КРАЙ,"Київ, вул. Академіка Туполєва, буд. 28А",63,2019-12-27,180,Податок на доходи,Податкові платежі,344317,Центральний офіс,37724082,Україна,*;101;37724082;Податок на доходи найм. працівників за грудень 2019 року;;;Без ПДВ,26002260475,current,950.66,УДКСУ у Шевченківському районі м. Києва,37995466,юридична особа
НАШ КРАЙ,"Київ, вул. Академіка Туполєва, буд. 28А",61,2019-12-27,181,Військовий збір,Податкові платежі,344316,Центральний офіс,37724082,Україна,*;101;37724082;Військовій збір з доходів найм.працівників за грудень 2019 року;;;Без ПДВ,26002260475,current,79.22,УДКСУ у Шевченківському районі м. Києва,37995466,юридична особа
НАШ КРАЙ,"Харківська обл., Сахновщинський р-н, Сахновщина, вул. Леніна, буд. 9",79,2019-12-26,198,"Оренда будинків і приміщень та експлуатаційні витрати (прибирання, страхування орендованих будинків, охорона, сигналізація, ремонт, вивіз сміття, тощо)",Оренда нерухомості,345610,Харківська обласна організація,39972241,Харківська область,За оренду приміщення,UA033516290000000002600012178,current,1100.00,"Підприємство споживчої кооперації ""Коопунівермаг Сахновщинської районної спілки пайовиків ""Кооператив""",01777564,юридична особа
НАШ КРАЙ,"Київ, вул. Богдана Хмельницького, буд. 64",70,2019-12-26,RCO2244_669,Банківські послуги,Інші витрати,345609,Харківська обласна організація,39972241,Харківська область,За банківське обслуговування,UA033516290000000002600012178,current,1.00,"ПАТ ""Мегабанк""",09804119,юридична особа
НАШ КРАЙ,"Київ, вул. Богдана Хмельницького, буд. 64",70,2019-12-26,RC02244_674,Банківські послуги,Інші витрати,345429,Полтавська обласна організація,40024231,Полтавська область,Списання коштів за банківське обслуговування згідно договору 57,UA153516290000000260011601190,current,3.00,"ПАТ ""Мегабанк""",09804119,юридична особа
НАШ КРАЙ,"Полтавська обл., Полтава, вул. Кагамлика, буд. 84",79,2019-12-26,103,"Оренда будинків і приміщень та експлуатаційні витрати (прибирання, страхування орендованих будинків, охорона, сигналізація, ремонт, вивіз сміття, тощо)",Оренда нерухомості,345428,Полтавська обласна організація,40024231,Полтавська область,Вивезення та захоронення твердих побутових відходів,UA153516290000000260011601190,current,18.33,Полтавське автотранспортне КП 1628,03351823,юридична особа
НАШ КРАЙ,"Миколаївська обл., Баштанський р-н, Баштанка, Баштанської республіки, 38",53,2019-12-26,280,Витрати на розміщення зовнішньої реклами,Зовнішня реклама,345316,Миколаївська обласна організація,39956738,Миколаївська область,Сплата за автопослуги вишки(поклійка борду),26003140602,current,1224.00,"КП ""Добробут""",32093667,юридична особа
НАШ КРАЙ,,62,2019-12-26,280,Сплата ЄСВ,Податкові платежі,345315,Миколаївська обласна організація,39956738,Миколаївська область,ЄСВ на ЗП (22%),26003140602,current,1150.00,ДПІ у Центральному районі м. Миколаєва ГУ ДФС у Миколаївській області,39554010,юридична особа
НАШ КРАЙ,,63,2019-12-26,275,Податок на доходи,Податкові платежі,345314,Миколаївська обласна організація,39956738,Миколаївська область,ПДФО із ЗП,26003140602,current,900.00,УДКСУ у м. Миколаєві,37992781,юридична особа
НАШ КРАЙ,,61,2019-12-26,276,Військовий збір,Податкові платежі,345313,Миколаївська обласна організація,39956738,Миколаївська область,військовий збір із ЗП,26003140602,current,80.00,УДКСУ у м. Миколаєві,37992781,юридична особа
НАШ КРАЙ,"Київ, вул. Богдана Хмельницького, буд. 64",70,2019-12-26,RCO2244_67,Банківські послуги,Інші витрати,345312,Миколаївська обласна організація,39956738,Миколаївська область,банківське обслуговування,26003140602,current,24.00,"ПАТ ""Мегабанк""",09804119,юридична особа
НАШ КРАЙ,"Миколаївська обл., Миколаїв",84,2019-12-26,277,"Заробітна плата, премії","Заробітна плата, лікарняні, вагітності, відрядження, компенсації",345098,Миколаївська обласна організація,39956738,Миколаївська область,виплата заробітної плати,26003140602,current,1991.00,Остапчук Ольга Миколаївна,,фізична особа
НАШ КРАЙ,"Миколаївська обл., Вознесенськ",53,2019-12-26,273,Витрати на розміщення зовнішньої реклами,Зовнішня реклама,345097,Миколаївська обласна організація,39956738,Миколаївська область,оплата за поклійку бордів,26003140602,current,1990.00,Григорʼєв Василь Олександрович,,фізична особа
НАШ КРАЙ,"Миколаївська обл., Новоодеський р-н, Нова Одеса",84,2019-12-26,278,"Заробітна плата, премії","Заробітна плата, лікарняні, вагітності, відрядження, компенсації",345096,Миколаївська обласна організація,39956738,Миколаївська область,виплата заробітної плати,26003140602,current,1186.00,Торопенко Денис Сергійович,,фізична особа
НАШ КРАЙ,"Миколаївська обл., Миколаїв",84,2019-12-26,279,"Заробітна плата, премії","Заробітна плата, лікарняні, вагітності, відрядження, компенсації",345095,Миколаївська обласна організація,39956738,Миколаївська область,виплата заробітної плати,26003140602,current,1186.00,Рой Юлія Ігорівна,,фізична особа
НАШ КРАЙ,"Київ, вул. Богдана Хмельницького, буд. 64",70,2019-12-24,RCO1938_530,Банківські послуги,Інші витрати,345686,Черкаська обласна організація,39947943,Черкаська область,Списання коштiв за банкiвське обслуговування згiдно договоpу № 449 від 2015-09-18 р.,26002230449,current,5.00,"ПАТ ""Мегабанк""",09804119,юридична особа
НАШ КРАЙ,"Черкаська обл., Черкаси",58,2019-12-24,151,"Виготовлення друкованих матеріалів (плакатів, листівок, буклетів та інших агітаційних матеріалів)",Друкована агітація,345645,Черкаська обласна організація,39947943,Черкаська область,"Послуги друку наліпок, зг. рах. №НА-0000242 від 2019-12-12, без ПДВ",26002230449,current,315.00,Коман Анна Володимирівна,,фізична особа
НАШ КРАЙ,"Полтавська обл., Полтава, вул. Пушкіна, буд. 115",79,2019-12-24,101,"Оренда будинків і приміщень та експлуатаційні витрати (прибирання, страхування орендованих будинків, охорона, сигналізація, ремонт, вивіз сміття, тощо)",Оренда нерухомості,345427,Полтавська обласна організація,40024231,Полтавська область,"Оренда приміщення зг. рах №1074 від 15.10.19 в т.ч. ПДВ 638,45 грн",UA153516290000000260011601190,current,4035.45,Управління майном Полтавської облради,24386961,юридична особа
НАШ КРАЙ,"Полтавська обл., Полтава, вул. Пушкіна, буд. 115",79,2019-12-24,93,"Оренда будинків і приміщень та експлуатаційні витрати (прибирання, страхування орендованих будинків, охорона, сигналізація, ремонт, вивіз сміття, тощо)",Оренда нерухомості,345426,Полтавська обласна організація,40024231,Полтавська область,"Оренда приміщення зг. рах №1074 від 15.10.19 в т.ч. ПДВ 638,45 грн",UA153516290000000260011601190,current,4031.42,Управління майном Полтавської облради,24386961,юридична особа
НАШ КРАЙ,"Полтавська обл., Полтава, вул. Комарова, буд. 2А",79,2019-12-24,102,"Оренда будинків і приміщень та експлуатаційні витрати (прибирання, страхування орендованих будинків, охорона, сигналізація, ремонт, вивіз сміття, тощо)",Оренда нерухомості,345425,Полтавська обласна організація,40024231,Полтавська область,Теплова енергія по рах №7788 від 2019-11-28,UA153516290000000260011601190,current,1950.48,"ПОКВПП ""Полтаватеплоенерго""",03338030,юридична особа
НАШ КРАЙ,"Полтавська обл., Полтава, вул. Зигіна, буд. 32А",79,2019-12-24,98,"Оренда будинків і приміщень та експлуатаційні витрати (прибирання, страхування орендованих будинків, охорона, сигналізація, ремонт, вивіз сміття, тощо)",Оренда нерухомості,345424,Полтавська обласна організація,40024231,Полтавська область,"Послуги охорони, зг дог №1990/17 від 22.09.17, рах №14348 від 2019-12-03",UA153516290000000260011601190,current,450.00,Управління поліції охорони в Полтавській області,40109042,юридична особа
НАШ КРАЙ,"Полтавська обл., Полтава, вул. Зигіна, буд. 32А",79,2019-12-24,95,"Оренда будинків і приміщень та експлуатаційні витрати (прибирання, страхування орендованих будинків, охорона, сигналізація, ремонт, вивіз сміття, тощо)",Оренда нерухомості,345423,Полтавська обласна організація,40024231,Полтавська область,"Послуги охорони, зг дог №1990/17 від 22.09.17, рах №13304 від 2019-11-04",UA153516290000000260011601190,current,450.00,Управління поліції охорони в Полтавській області,40109042,юридична особа
НАШ КРАЙ,"Полтавська обл., Полтава, вул. Пушкіна, буд. 115",79,2019-12-24,91,"Оренда будинків і приміщень та експлуатаційні витрати (прибирання, страхування орендованих будинків, охорона, сигналізація, ремонт, вивіз сміття, тощо)",Оренда нерухомості,345422,Полтавська обласна організація,40024231,Полтавська область,Відшкодування витрат за спожиту електроенергію по рах №1131 від 2019-11-01 без ПДВ,UA153516290000000260011601190,current,356.96,Управління майном Полтавської облради,24386961,юридична особа
НАШ КРАЙ,"Полтавська обл., Полтава, вул. Пушкіна, буд. 115",60,2019-12-24,100,Інші податки,Податкові платежі,345421,Полтавська обласна організація,40024231,Полтавська область,Відшкодування земельного податку зг рах №1298 від 2019-12-11 без ПДВ,UA153516290000000260011601190,current,345.42,Управління майном Полтавської облради,24386961,юридична особа
НАШ КРАЙ,"Полтавська обл., Полтава, вул. Пушкіна, буд. 115",79,2019-12-24,96,"Оренда будинків і приміщень та експлуатаційні витрати (прибирання, страхування орендованих будинків, охорона, сигналізація, ремонт, вивіз сміття, тощо)",Оренда нерухомості,345420,Полтавська обласна організація,40024231,Полтавська область,Відшкодування витрат за спожиту електроенергію по рах №1361 від 2019-12-12 без ПДВ,UA153516290000000260011601190,current,298.79,Управління майном Полтавської облради,24386961,юридична особа
НАШ КРАЙ,"Полтавська обл., Полтава, вул. Пушкіна, буд. 115",79,2019-12-24,99,"Оренда будинків і приміщень та експлуатаційні витрати (прибирання, страхування орендованих будинків, охорона, сигналізація, ремонт, вивіз сміття, тощо)",Оренда нерухомості,345419,Полтавська обласна організація,40024231,Полтавська область,Відшкодування витрат за спожиту електроенергію по рах №1361 від 2019-12-12 без ПДВ,UA153516290000000260011601190,current,285.57,Управління майном Полтавської облради,24386961,юридична особа
НАШ КРАЙ,"Полтавська обл., Полтава, вул. Пушкіна, буд. 115",60,2019-12-24,92,Інші податки,Податкові платежі,345418,Полтавська обласна організація,40024231,Полтавська область,Відшкодування земельного податку зг рах №1174 від 2019-11-14,UA153516290000000260011601190,current,172.71,Управління майном Полтавської облради,24386961,юридична особа
НАШ КРАЙ,"Полтавська обл., Полтава, вул. Пушкіна, буд. 115",79,2019-12-24,97,"Оренда будинків і приміщень та експлуатаційні витрати (прибирання, страхування орендованих будинків, охорона, сигналізація, ремонт, вивіз сміття, тощо)",Оренда нерухомості,345417,Полтавська обласна організація,40024231,Полтавська область,Відшкодування витрат за водопостачання по рах №1254 від 2019-12-02 без ПДВ,UA153516290000000260011601190,current,146.48,Управління майном Полтавської облради,24386961,юридична особа
НАШ КРАЙ,"Полтавська обл., Полтава, вул. Пушкіна, буд. 115",79,2019-12-24,94,"Оренда будинків і приміщень та експлуатаційні витрати (прибирання, страхування орендованих будинків, охорона, сигналізація, ремонт, вивіз сміття, тощо)",Оренда нерухомості,345416,Полтавська обласна організація,40024231,Полтавська область,Відшкодування витрат за водопостачання по рах №1104 від 2019-11-01 без ПДВ,UA153516290000000260011601190,current,101.99,Управління майном Полтавської облради,24386961,юридична особа
НАШ КРАЙ,"Київ, вул. Богдана Хмельницького, буд. 64",70,2019-12-24,RC01938_533,Банківські послуги,Інші витрати,345415,Полтавська обласна організація,40024231,Полтавська область,Списання коштів за банківське обслуговування згідно договору 57,UA153516290000000260011601190,current,60.00,"ПАТ ""Мегабанк""",09804119,юридична особа
НАШ КРАЙ,"Миколаївська обл., Миколаїв, вул. Георгія Гонгадзе, буд. 3",49,2019-12-24,272,Публікування матеріалів у друкованих ЗМІ,Реклама в друкованих ЗМІ,345311,Миколаївська обласна організація,39956738,Миколаївська область,"Сплата за друк газети ""Наш край-Миколаївщина""",26003140602,current,12840.00,КП Миколаївська областна друкарня,02467676,юридична особа
НАШ КРАЙ,"Київ, вул. Богдана Хмельницького, буд. 64",70,2019-12-24,RCO1938_52,Банківські послуги,Інші витрати,345310,Миколаївська обласна організація,39956738,Миколаївська область,банківське обслуговування,26003140602,current,3.00,"ПАТ ""Мегабанк""",09804119,юридична особа
НАШ КРАЙ,"Київ, вул. Богдана Хмельницького, буд. 64",70,2019-12-24,RCO1938_528,Банківські послуги,Інші витрати,344315,Центральний офіс,37724082,Україна,Списання коштiв за банкiвське обслуговування згiдно договоpу 71/2015 від 2015-09-15 р.,26002260475,current,1.00,"ПАТ ""Мегабанк""",09804119,юридична особа
НАШ КРАЙ,"Київ, вул. Богдана Хмельницького, буд. 64",70,2019-12-23,RCO1939_50,Банківські послуги,Інші витрати,345309,Миколаївська обласна організація,39956738,Миколаївська область,банківське обслуговування,26003140602,current,3.00,"ПАТ ""Мегабанк""",09804119,юридична особа
НАШ КРАЙ,"Миколаївська обл., Миколаїв",53,2019-12-23,265,Витрати на розміщення зовнішньої реклами,Зовнішня реклама,345094,Миколаївська обласна організація,39956738,Миколаївська область,оплата за оренду бордів,26003140602,current,15000.00,Єнтін Олег Якович,,фізична особа
НАШ КРАЙ,"Чернігівська обл., Чернігів",79,2019-12-21,27,"Оренда будинків і приміщень та експлуатаційні витрати (прибирання, страхування орендованих будинків, охорона, сигналізація, ремонт, вивіз сміття, тощо)",Оренда нерухомості,345737,Чернігівська обласна організація,39975897,Чернігівська область,"Оплата за оренду приміщення за грудень 2019р.,згідно рахунку №6906 від 2019-12-10,в т.ч. ПДВ 196,91 грн",26003240342,current,1181.46,"ПАТ ""НАСК ""Оранта""",00034186,юридична особа
НАШ КРАЙ,"Чернігівська обл., Чернігів",79,2019-12-21,28,"Оренда будинків і приміщень та експлуатаційні витрати (прибирання, страхування орендованих будинків, охорона, сигналізація, ремонт, вивіз сміття, тощо)",Оренда нерухомості,345736,Чернігівська обласна організація,39975897,Чернігівська область,"Компенсація за комунальні послуги за грудень 2019р., згідно рахунку-фактури №6907 від 2019-12-10,в т.ч. ПДВ 108,33 грн",26003240342,current,650.00,"ПАТ ""НАСК ""Оранта""",00034186,юридична особа
НАШ КРАЙ,"Київ, вул. Богдана Хмельницького, буд. 64",70,2019-12-21,RCO1916_19,Банківські послуги,Інші витрати,345735,Чернігівська обласна організація,39975897,Чернігівська область,Списання коштів за банківське обслуговування договору 342/15,26003240342,current,2.00,"ПАТ ""Мегабанк""",09804119,юридична особа
НАШ КРАЙ,"Київ, вул. Богдана Хмельницького, буд. 64",70,2019-12-20,RC01956_591,Банківські послуги,Інші витрати,345414,Полтавська обласна організація,40024231,Полтавська область,Списання коштів за банківське обслуговування згідно договору 57,UA153516290000000260011601190,current,1.00,"ПАТ ""Мегабанк""",09804119,юридична особа
НАШ КРАЙ,"Полтавська обл., Полтава",49,2019-12-20,90,Публікування матеріалів у друкованих ЗМІ,Реклама в друкованих ЗМІ,345320,Полтавська обласна організація,40024231,Полтавська область,розміщення матеріалів в газеті по рах №57/2019 від 2019-12-09,UA153516290000000260011601190,current,18557.50,Оніщенко К В,,фізична особа
НАШ КРАЙ,"Донецька обл., Словʼянський р-н, Словʼянськ",62,2019-12-19,434,Сплата ЄСВ,Податкові платежі,344698,Донецька обласна організація,39878456,Донецька область,Нарахування ЄСВ 22% на заробітну плату(аванс) за грудень 2019р.,26000040299,current,1870.00,"Краматорське УК/м. Краматорськ, ГУ ДКСУ У ДОНЕЦЬКІЙ ОБЛАСТІ",43142826,юридична особа
НАШ КРАЙ,"Донецька обл., Словʼянський р-н, Словʼянськ",63,2019-12-19,433,Податок на доходи,Податкові платежі,344697,Донецька обласна організація,39878456,Донецька область,ПДФО утриманий із заробітної плати(аванс) за грудень 2019р.,26000040299,current,1252.31,УДКСУ у м. Словʼянську Донецької області,37803368,юридична особа
НАШ КРАЙ,"Донецька обл., Словʼянський р-н, Словʼянськ",61,2019-12-19,435,Військовий збір,Податкові платежі,344696,Донецька обласна організація,39878456,Донецька область,"Військовий збір 1,5%утриманий із заробітної плати(аванс) за грудень 2019р.",26000040299,current,111.57,УДКСУ у м. Словʼянську Донецької області,37803368,юридична особа
НАШ КРАЙ,"Київ, вул. Богдана Хмельницького, буд. 64",70,2019-12-19,TR.1555804.2036.3006,Банківські послуги,Інші витрати,344695,Донецька обласна організація,39878456,Донецька область,Сплата комісії за банківське обслуговування,26000040299,current,43.64,"ПАТ ""Мегабанк""",09804119,юридична особа
НАШ КРАЙ,"Київ, вул. Богдана Хмельницького, буд. 64",70,2019-12-19,RCO1917_458,Банківські послуги,Інші витрати,344694,Донецька обласна організація,39878456,Донецька область,Списання коштів за банківське обслуговування,26000040299,current,12.00,"ПАТ ""Мегабанк""",09804119,юридична особа
НАШ КРАЙ,"Донецька обл., Словʼянський р-н, Словʼянськ",84,2019-12-19,429,"Заробітна плата, премії","Заробітна плата, лікарняні, вагітності, відрядження, компенсації",344432,Донецька обласна організація,39878456,Донецька область,Заробітна плата за грудень(аванс) 2019р.,26000040299,current,1710.62,Кіч О В,,фізична особа
НАШ КРАЙ,"Донецька обл., Словʼянський р-н, Словʼянськ",84,2019-12-19,431,"Заробітна плата, премії","Заробітна плата, лікарняні, вагітності, відрядження, компенсації",344431,Донецька обласна організація,39878456,Донецька область,Заробітна плата за грудень(аванс) 2019р.,26000040299,current,1710.62,Макогон Ю П,,фізична особа
НАШ КРАЙ,"Донецька обл., Словʼянський р-н, Словʼянськ",84,2019-12-19,430,"Заробітна плата, премії","Заробітна плата, лікарняні, вагітності, відрядження, компенсації",344430,Донецька обласна організація,39878456,Донецька область,Заробітна плата за грудень(аванс) 2019р.,26000040299,current,1710.62,Єжова Н Л,,фізична особа
НАШ КРАЙ,"Донецька обл., Словʼянський р-н, Словʼянськ",84,2019-12-19,432,"Заробітна плата, премії","Заробітна плата, лікарняні, вагітності, відрядження, компенсації",344429,Донецька обласна організація,39878456,Донецька область,Заробітна плата за грудень(аванс) 2019р.,26000040299,current,941.76,Шумакова А О,,фізична особа
НАШ КРАЙ,,62,2019-12-16,266,Сплата ЄСВ,Податкові платежі,345308,Миколаївська обласна організація,39956738,Миколаївська область,ЄСВ на ЗП (22%),26003140602,current,2460.00,ДПІ у Центральному районі м. Миколаєва ГУ ДФС у Миколаївській області,39554010,юридична особа
НАШ КРАЙ,,63,2019-12-16,267,Податок на доходи,Податкові платежі,345307,Миколаївська обласна організація,39956738,Миколаївська область,ПДФО із ЗП,26003140602,current,2015.00,УДКСУ у м. Миколаєві,37992781,юридична особа
НАШ КРАЙ,,61,2019-12-16,268,Військовий збір,Податкові платежі,345306,Миколаївська обласна організація,39956738,Миколаївська область,військовий збір із ЗП,26003140602,current,168.00,УДКСУ у м. Миколаєві,37992781,юридична особа
НАШ КРАЙ,"Київ, вул. Богдана Хмельницького, буд. 64",70,2019-12-16,RCO1954_52,Банківські послуги,Інші витрати,345305,Миколаївська обласна організація,39956738,Миколаївська область,банківське обслуговування,26003140602,current,6.00,"ПАТ ""Мегабанк""",09804119,юридична особа
НАШ КРАЙ,"Миколаївська обл., Новоодеський р-н, Нова Одеса",84,2019-12-16,271,"Заробітна плата, премії","Заробітна плата, лікарняні, вагітності, відрядження, компенсації",345093,Миколаївська обласна організація,39956738,Миколаївська область,виплата заробітної плати,26003140602,current,3000.00,Торопенко Денис Сергійович,,фізична особа
НАШ КРАЙ,"Миколаївська обл., Миколаїв",84,2019-12-16,270,"Заробітна плата, премії","Заробітна плата, лікарняні, вагітності, відрядження, компенсації",345092,Миколаївська обласна організація,39956738,Миколаївська область,виплата заробітної плати,26003140602,current,3000.00,Рой Юлія Ігорівна,,фізична особа
НАШ КРАЙ,"Миколаївська обл., Миколаїв",84,2019-12-16,269,"Заробітна плата, премії","Заробітна плата, лікарняні, вагітності, відрядження, компенсації",345091,Миколаївська обласна організація,39956738,Миколаївська область,виплата заробітної плати,26003140602,current,3000.00,Остапчук Ольга Миколаївна,,фізична особа
НАШ КРАЙ,"Київ, вул. Богдана Хмельницького, буд. 64",70,2019-12-13,RCO2012_57,Банківські послуги,Інші витрати,345304,Миколаївська обласна організація,39956738,Миколаївська область,банківське обслуговування,26003140602,current,1.00,"ПАТ ""Мегабанк""",09804119,юридична особа
НАШ КРАЙ,"Миколаївська обл., Миколаїв",53,2019-12-13,264,Витрати на розміщення зовнішньої реклами,Зовнішня реклама,345090,Миколаївська обласна організація,39956738,Миколаївська область,оплата за оренду бордів,26003140602,current,6120.00,Єнтін Олег Якович,,фізична особа
НАШ КРАЙ,Київ,72,2019-12-13,428,"Придбання, ремонт офісної техніки та програмного забезпечення (Бухгалтерські програми, Ліга.закон, домени)",Придбання офісної техніки та програмного забезпечення,344693,Донецька обласна організація,39878456,Донецька область,Місячний програмний пакет Google Cloud G Suite Basic for Work для домену nkdonbass.com.ua,26000040299,current,3123.84,"ТОВ ""СВІТ ТЕХНОЛОГІЙ""",38992838,юридична особа
НАШ КРАЙ,"Київ, вул. Богдана Хмельницького, буд. 64",70,2019-12-13,RCO2012_579,Банківські послуги,Інші витрати,344692,Донецька обласна організація,39878456,Донецька область,Списання коштів за банківське обслуговування,26000040299,current,1.00,"ПАТ ""Мегабанк""",09804119,юридична особа
НАШ КРАЙ,"Київ, вул. Богдана Хмельницького, буд. 64",70,2019-12-12,RCO1939_460,Банківські послуги,Інші витрати,345685,Черкаська обласна організація,39947943,Черкаська область,Списання коштiв за банкiвське обслуговування згiдно договоpу № 449 від 2015-09-18 р.,26002230449,current,1.00,"ПАТ ""Мегабанк""",09804119,юридична особа
НАШ КРАЙ,"Черкаська обл., Черкаси",58,2019-12-12,149,"Виготовлення друкованих матеріалів (плакатів, листівок, буклетів та інших агітаційних матеріалів)",Друкована агітація,345644,Черкаська обласна організація,39947943,Черкаська область,"Послуги друку наліпок, зг. рах. №НА-0000237 від 2019-12-10, без ПДВ",26002230449,current,1346.00,Коман Анна Володимирівна,,фізична особа
НАШ КРАЙ,"Донецька обл., Словʼянський р-н, Словʼянськ",63,2019-12-12,426,Податок на доходи,Податкові платежі,344691,Донецька обласна організація,39878456,Донецька область,ПДФО утриманий із доходів Білоусова О.Ю. за жовтень-листопад 2019р.,26000040299,current,2016.00,УДКСУ у м. Словʼянську Донецької області,37803368,юридична особа
НАШ КРАЙ,"Донецька обл., Словʼянський р-н, Словʼянськ",62,2019-12-12,421,Сплата ЄСВ,Податкові платежі,344690,Донецька обласна організація,39878456,Донецька область,Нарахування ЄСВ 22% на заробітну плату за листопад 2019р.,26000040299,current,1870.00,"Краматорське УК/м. Краматорськ, ГУ ДКСУ У ДОНЕЦЬКІЙ ОБЛАСТІ",43142826,юридична особа
НАШ КРАЙ,"Донецька обл., Словʼянський р-н, Словʼянськ",63,2019-12-12,420,Податок на доходи,Податкові платежі,344689,Донецька обласна організація,39878456,Донецька область,ПДФО утриманий із заробітної плати за листопад 2019р.,26000040299,current,1252.30,УДКСУ у м. Словʼянську Донецької області,37803368,юридична особа
НАШ КРАЙ,"Донецька обл., Словʼянський р-н, Словʼянськ",61,2019-12-12,427,Військовий збір,Податкові платежі,344688,Донецька обласна організація,39878456,Донецька область,"Військовий збір 1,5%утриманий із доходів Білоусова О.Ю. за жовтень-листопад 2019р.",26000040299,current,168.00,УДКСУ у м. Словʼянську Донецької області,37803368,юридична особа
НАШ КРАЙ,"Донецька обл., Словʼянський р-н, Словʼянськ",61,2019-12-12,422,Військовий збір,Податкові платежі,344687,Донецька обласна організація,39878456,Донецька область,"Військовий збір 1,5%утриманий із заробітної плати за листопад 2019р.",26000040299,current,111.56,УДКСУ у м. Словʼянську Донецької області,37803368,юридична особа
НАШ КРАЙ,"Київ, вул. Богдана Хмельницького, буд. 64",70,2019-12-12,TR.1555804.1839.3006,Банківські послуги,Інші витрати,344686,Донецька обласна організація,39878456,Донецька область,Сплата комісії за банківське обслуговування,26000040299,current,43.64,"ПАТ ""Мегабанк""",09804119,юридична особа
НАШ КРАЙ,"Київ, вул. Богдана Хмельницького, буд. 64",70,2019-12-12,RCO1939_463,Банківські послуги,Інші витрати,344685,Донецька обласна організація,39878456,Донецька область,Списання коштів за банківське обслуговування,26000040299,current,21.00,"ПАТ ""Мегабанк""",09804119,юридична особа
НАШ КРАЙ,"Донецька обл., Словʼянський р-н, Словʼянськ",79,2019-12-12,426,"Оренда будинків і приміщень та експлуатаційні витрати (прибирання, страхування орендованих будинків, охорона, сигналізація, ремонт, вивіз сміття, тощо)",Оренда нерухомості,344428,Донецька обласна організація,39878456,Донецька область,Оплата за оренду жовтень-листопад 2019р.,26000040299,current,9016.00,Білоусов О Ю,,фізична особа
НАШ КРАЙ,"Донецька обл., Словʼянський р-н, Словʼянськ",84,2019-12-12,424,"Заробітна плата, премії","Заробітна плата, лікарняні, вагітності, відрядження, компенсації",344427,Донецька обласна організація,39878456,Донецька область,Заробітна плата за листопад 2019р.,26000040299,current,1710.63,Кіч О В,,фізична особа
НАШ КРАЙ,"Донецька обл., Словʼянський р-н, Словʼянськ",84,2019-12-12,419,"Заробітна плата, премії","Заробітна плата, лікарняні, вагітності, відрядження, компенсації",344426,Донецька обласна організація,39878456,Донецька область,Заробітна плата за листопад 2019р.,26000040299,current,1710.63,Єжова Н Л,,фізична особа
НАШ КРАЙ,"Донецька обл., Словʼянський р-н, Словʼянськ",84,2019-12-12,418,"Заробітна плата, премії","Заробітна плата, лікарняні, вагітності, відрядження, компенсації",344425,Донецька обласна організація,39878456,Донецька область,Заробітна плата за листопад 2019р.,26000040299,current,1710.63,Макогон Ю П,,фізична особа
НАШ КРАЙ,"Донецька обл., Словʼянський р-н, Словʼянськ",84,2019-12-12,423,"Заробітна плата, премії","Заробітна плата, лікарняні, вагітності, відрядження, компенсації",344424,Донецька обласна організація,39878456,Донецька область,Заробітна плата за листопад 2019р.,26000040299,current,941.75,Шумакова А О,,фізична особа
НАШ КРАЙ,"Київ, бульв. Тараса Шевченка, буд. 18",76,2019-12-11,196,Послуги зв’язку,Послуги зв’язку,345608,Харківська обласна організація,39972241,Харківська область,За телекомунiкацiйнi послуги,UA033516290000000002600012178,current,400.00,"ПАТ ""Укртелеком""",21560766,юридична особа
НАШ КРАЙ,"Харківська обл., Дергачівський р-н, Дергачі, вул. Перемоги, буд. 14",79,2019-12-11,197,"Оренда будинків і приміщень та експлуатаційні витрати (прибирання, страхування орендованих будинків, охорона, сигналізація, ремонт, вивіз сміття, тощо)",Оренда нерухомості,345607,Харківська обласна організація,39972241,Харківська область,"За послуги по приміщенню, що орендується",UA033516290000000002600012178,current,151.92,"ПП ""Ампір 2008""",35876460,юридична особа
НАШ КРАЙ,"Київ, вул. Богдана Хмельницького, буд. 64",70,2019-12-11,RCO1932_438,Банківські послуги,Інші витрати,345606,Харківська обласна організація,39972241,Харківська область,За банківське обслуговування,UA033516290000000002600012178,current,2.00,"ПАТ ""Мегабанк""",09804119,юридична особа
НАШ КРАЙ,"Миколаївська обл., Миколаїв",52,2019-12-11,263,Інша реклама (без класифікації),Реклама (без класифікації),345303,Миколаївська обласна організація,39956738,Миколаївська область,Сплата за розміщення рекламних матеріалів,26003140602,current,5000.00,"ТОВ ""Ротар Галерея""",37518316,юридична особа
НАШ КРАЙ,"Київ, вул. Богдана Хмельницького, буд. 64",70,2019-12-11,RCO1932_43,Банківські послуги,Інші витрати,345302,Миколаївська обласна організація,39956738,Миколаївська область,банківське обслуговування,26003140602,current,1.00,"ПАТ ""Мегабанк""",09804119,юридична особа
НАШ КРАЙ,"Запорізька обл., Запоріжжя, Космічна вул., 122, 10",74,2019-12-11,п/д № 28,"Придбання канцтоварів, паперу, інших предметів і матеріалів, а також госп товари",Придбання канцтоварів та госп. товарів,344838,Запорізька обласна організація,39968366,Запорізька область,Оплата за канц.товари згід.рах.№ Т/ШГ-00476 від 2019-12-10 року. Без ПДВ.,UA113139570000026000300238443,current,338.35,Шафоростов Геннадій Анатолійович,2469107130,фізична особа
НАШ КРАЙ,"Запорізька обл., Запоріжжя, просп. Соборний, буд. 111",79,2019-12-11,п/д № 27,"Оренда будинків і приміщень та експлуатаційні витрати (прибирання, страхування орендованих будинків, охорона, сигналізація, ремонт, вивіз сміття, тощо)",Оренда нерухомості,344837,Запорізька обласна організація,39968366,Запорізька область,"Сплата за оренду приміщення згід.Дог.№ 8 від 2017-03-01 р. В т.ч. ПДВ 83,60 грн.",UA113139570000026000300238443,current,501.60,"Спільне українсько-німецьке підприємство ""Саксонія ГМБХ""",19364710,юридична особа
НАШ КРАЙ,"Полтавська обл., Зіньківський р-н, Зіньків, вул. Соборності, буд. 45",49,2019-12-10,88,Публікування матеріалів у друкованих ЗМІ,Реклама в друкованих ЗМІ,345413,Полтавська обласна організація,40024231,Полтавська область,За публікацію по рах №620 від 2019-12-09 без ПДВ,UA153516290000000260011601190,current,1242.50,"ТОВ ""РГ ""Голос Зіньківщини""",02474593,юридична особа
НАШ КРАЙ,"Київ, вул. Богдана Хмельницького, буд. 64",70,2019-12-10,RC01941_435,Банківські послуги,Інші витрати,345412,Полтавська обласна організація,40024231,Полтавська область,Списання коштів за банківське обслуговування згідно договору 57,UA153516290000000260011601190,current,6.00,"ПАТ ""Мегабанк""",09804119,юридична особа
НАШ КРАЙ,"Полтавська обл., Полтава",58,2019-12-10,89,"Виготовлення друкованих матеріалів (плакатів, листівок, буклетів та інших агітаційних матеріалів)",Друкована агітація,345319,Полтавська обласна організація,40024231,Полтавська область,послуга з виготовлення друкованих матеріалів по рах № 56/2019 від 2019-12-04 без ПДВ,UA153516290000000260011601190,current,3000.00,Оніщенко К В,,фізична особа
НАШ КРАЙ,"Київ, вул. Богдана Хмельницького, буд. 64",70,2019-12-10,RCO1941_43,Банківські послуги,Інші витрати,345301,Миколаївська обласна організація,39956738,Миколаївська область,банківське обслуговування,26003140602,current,5.00,"ПАТ ""Мегабанк""",09804119,юридична особа
НАШ КРАЙ,"Миколаївська обл., Миколаїв",58,2019-12-10,262,"Виготовлення друкованих матеріалів (плакатів, листівок, буклетів та інших агітаційних матеріалів)",Друкована агітація,345089,Миколаївська обласна організація,39956738,Миколаївська область,Сплата за друковану продукцію,26003140602,current,2800.00,Румянцева Ганна Валеріївна,,фізична особа
НАШ КРАЙ,"Миколаївська обл., Врадіївський р-н, Врадіївка, вул. Героїв Врадіївщини, буд. 89",79,2019-12-06,260,"Оренда будинків і приміщень та експлуатаційні витрати (прибирання, страхування орендованих будинків, охорона, сигналізація, ремонт, вивіз сміття, тощо)",Оренда нерухомості,345300,Миколаївська обласна організація,39956738,Миколаївська область,оплата за оренду приміщення,26003140602,current,6900.00,"Благодійний фонд ""Карітас Врадіївка УГКЦ""",34362437,юридична особа
НАШ КРАЙ,"Миколаївська обл., Кривоозерський р-н, Криве Озеро",79,2019-12-06,256,"Оренда будинків і приміщень та експлуатаційні витрати (прибирання, страхування орендованих будинків, охорона, сигналізація, ремонт, вивіз сміття, тощо)",Оренда нерухомості,345299,Миколаївська обласна організація,39956738,Миколаївська область,сплата за оренду приміщення,26003140602,current,2020.26,"ТОВ ""Вікторія-союз""",35596853,юридична особа
НАШ КРАЙ,"Київ, вул. Богдана Хмельницького, буд. 64",70,2019-12-06,RCO2003_61,Банківські послуги,Інші витрати,345298,Миколаївська обласна організація,39956738,Миколаївська область,банківське обслуговування,26003140602,current,30.00,"ПАТ ""Мегабанк""",09804119,юридична особа
НАШ КРАЙ,"Миколаївська обл., Миколаїв",57,2019-12-06,256,Виготовлення брендованої продукції,"Виготовлення брендованої продукції (футболки, кепки, парасольки)",345088,Миколаївська обласна організація,39956738,Миколаївська область,Сплата за брендовану продукцію,26003140602,current,2000.00,Вілінська Анастасія Петрівна,,фізична особа
НАШ КРАЙ,"Миколаївська обл., Очаків",79,2019-12-06,259,"Оренда будинків і приміщень та експлуатаційні витрати (прибирання, страхування орендованих будинків, охорона, сигналізація, ремонт, вивіз сміття, тощо)",Оренда нерухомості,345087,Миколаївська обласна організація,39956738,Миколаївська область,сплата за оренду приміщення,26003140602,current,2000.00,Как Марина Олександрівна,,фізична особа
НАШ КРАЙ,"Миколаївська обл., Миколаївський р-н, Сапетня",79,2019-12-06,257,"Оренда будинків і приміщень та експлуатаційні витрати (прибирання, страхування орендованих будинків, охорона, сигналізація, ремонт, вивіз сміття, тощо)",Оренда нерухомості,345086,Миколаївська обласна організація,39956738,Миколаївська область,сплата за оренду приміщення,26003140602,current,1500.00,Іщенко Віктор Андрійович,,фізична особа
НАШ КРАЙ,"Миколаївська обл., Березнегуватський р-н, Березнегувате",79,2019-12-06,258,"Оренда будинків і приміщень та експлуатаційні витрати (прибирання, страхування орендованих будинків, охорона, сигналізація, ремонт, вивіз сміття, тощо)",Оренда нерухомості,345085,Миколаївська обласна організація,39956738,Миколаївська область,сплата за оренду приміщення,26003140602,current,1000.00,Чайка Оксана Миколаївна,,фізична особа
НАШ КРАЙ,"Запорізька обл., Запоріжжя, просп. Соборний, буд. 111",79,2019-12-05,п/д № 26,"Оренда будинків і приміщень та експлуатаційні витрати (прибирання, страхування орендованих будинків, охорона, сигналізація, ремонт, вивіз сміття, тощо)",Оренда нерухомості,344836,Запорізька обласна організація,39968366,Запорізька область,"Сплата за оренду приміщення згід.Дог.№ 8 від 2017-03-01 р. В т.ч. ПДВ 83,60 грн.",UA113139570000026000300238443,current,501.60,"Спільне українсько-німецьке підприємство ""Саксонія ГМБХ""",19364710,юридична особа
НАШ КРАЙ,"Сумська обл., Путивльський р-н, Путивль, вул. Князя Володимира, буд. 50",59,2019-12-04,1,Грошова застава,Грошова застава,345431,Сумська обласна організація,40007724,Сумська область,"Грошова застава кандидатів в депутати від Путивльської рай.парт.організації політ.партії ""Наш Край"" в багатомандатн.ВО з виборів депут.Путивл.міськради Сумськ.",2600318247,current,2660.00,Путивльська міська виборча комісія,34025473,юридична особа
НАШ КРАЙ,"Київ, вул. Богдана Хмельницького, буд. 64",70,2019-12-04,RCO1941_351629,Банківські послуги,Інші витрати,345430,Сумська обласна організація,40007724,Сумська область,Списання коштів за банківське обслуговування згідно договору,2600318247,current,7.98,"ПАТ ""Мегабанк""",09804119,юридична особа
НАШ КРАЙ,"Київ, вул. Богдана Хмельницького, буд. 64",70,2019-12-04,2470_10,Банківські послуги,Інші витрати,345411,Полтавська обласна організація,40024231,Полтавська область,"Оплата за видачу довідок, у к-сті 2 шт, з-но дог.№57 від 2015-09-23 без ПДВ",UA153516290000000260011601190,current,200.00,"ПАТ ""Мегабанк""",09804119,юридична особа
НАШ КРАЙ,"Київ, вул. Богдана Хмельницького, буд. 64",70,2019-12-03,RCO1948_460,Банківські послуги,Інші витрати,345605,Харківська обласна організація,39972241,Харківська область,За банківське обслуговування,UA033516290000000002600012178,current,1.00,"ПАТ ""Мегабанк""",09804119,юридична особа
НАШ КРАЙ,"Харківська обл., Харків, просп. Гагаріна, буд. 169Б, 28",79,2019-12-03,195,"Оренда будинків і приміщень та експлуатаційні витрати (прибирання, страхування орендованих будинків, охорона, сигналізація, ремонт, вивіз сміття, тощо)",Оренда нерухомості,345468,Харківська обласна організація,39972241,Харківська область,За оренду приміщення,UA033516290000000002600012178,current,6550.00,Манукян Арпіне Араіківна,3279004761,фізична особа
НАШ КРАЙ,"Миколаївська обл., Южноукраїнськ, вул. Паркова, буд. 5",79,2019-12-03,250,"Оренда будинків і приміщень та експлуатаційні витрати (прибирання, страхування орендованих будинків, охорона, сигналізація, ремонт, вивіз сміття, тощо)",Оренда нерухомості,345297,Миколаївська обласна організація,39956738,Миколаївська область,оренда приміщення,26003140602,current,196.91,"КП ""Житлово-експлутаційне обʼєднання”",31537375,юридична особа
НАШ КРАЙ,"Київ, вул. Богдана Хмельницького, буд. 64",70,2019-12-03,RCO1938_46,Банківські послуги,Інші витрати,345296,Миколаївська обласна організація,39956738,Миколаївська область,банківське обслуговування,26003140602,current,27.00,"ПАТ ""Мегабанк""",09804119,юридична особа
НАШ КРАЙ,"Миколаївська обл., Веселинівський р-н, Веселинове, вул. Мозолевського, буд. 5",79,2019-12-03,254,"Оренда будинків і приміщень та експлуатаційні витрати (прибирання, страхування орендованих будинків, охорона, сигналізація, ремонт, вивіз сміття, тощо)",Оренда нерухомості,345295,Миколаївська обласна організація,39956738,Миколаївська область,сплата за оренду приміщення,26003140602,current,400.00,Веселинівське районне споживче товариство,01760285,юридична особа
НАШ КРАЙ,"Миколаївська обл., Баштанський р-н, Баштанка",79,2019-12-03,251,"Оренда будинків і приміщень та експлуатаційні витрати (прибирання, страхування орендованих будинків, охорона, сигналізація, ремонт, вивіз сміття, тощо)",Оренда нерухомості,345084,Миколаївська обласна організація,39956738,Миколаївська область,сплата за оренду приміщення,26003140602,current,750.00,Федорова Антоніна Павлівна,,фізична особа
НАШ КРАЙ,"Миколаївська обл., Казанківський р-н, Казанка, вул. Миру, буд. 190",79,2019-12-03,253,"Оренда будинків і приміщень та експлуатаційні витрати (прибирання, страхування орендованих будинків, охорона, сигналізація, ремонт, вивіз сміття, тощо)",Оренда нерухомості,345082,Миколаївська обласна організація,39956738,Миколаївська область,сплата за оренду приміщення,26003140602,current,300.00,Маляр Валерій Миколайович,2513206992,фізична особа
НАШ КРАЙ,"Миколаївська обл., Єланецький р-н, Єланець",79,2019-12-03,252,"Оренда будинків і приміщень та експлуатаційні витрати (прибирання, страхування орендованих будинків, охорона, сигналізація, ремонт, вивіз сміття, тощо)",Оренда нерухомості,345081,Миколаївська обласна організація,39956738,Миколаївська область,сплата за оренду приміщення,26003140602,current,200.00,Андросюк Микола Миколайович,,фізична особа
НАШ КРАЙ,"Миколаївська обл., Снігурівський р-н, Новопетрівка",79,2019-12-03,255,"Оренда будинків і приміщень та експлуатаційні витрати (прибирання, страхування орендованих будинків, охорона, сигналізація, ремонт, вивіз сміття, тощо)",Оренда нерухомості,345080,Миколаївська обласна організація,39956738,Миколаївська область,сплата за оренду приміщення,26003140602,current,100.00,Кваша Володимир Миколайович,,фізична особа
НАШ КРАЙ,"Київ, вул. Богдана Хмельницького, буд. 64",70,2019-12-02,RCO2049_1410,Банківські послуги,Інші витрати,345734,Чернігівська обласна організація,39975897,Чернігівська область,Списання коштів за банківське обслуговування договору 342/15,26003240342,current,100.00,"ПАТ ""Мегабанк""",09804119,юридична особа
НАШ КРАЙ,"Харківська обл., Сахновщинський р-н, Сахновщина, вул. Леніна, буд. 9",79,2019-12-02,194,"Оренда будинків і приміщень та експлуатаційні витрати (прибирання, страхування орендованих будинків, охорона, сигналізація, ремонт, вивіз сміття, тощо)",Оренда нерухомості,345604,Харківська обласна організація,39972241,Харківська область,За оренду приміщення,UA033516290000000002600012178,current,1100.00,"Підприємство споживчої кооперації ""Коопунівермаг Сахновщинської районної спілки пайовиків ""Кооператив""",01777564,юридична особа
НАШ КРАЙ,"Київ, вул. Богдана Хмельницького, буд. 64",70,2019-12-02,RCO2049_1394,Банківські послуги,Інші витрати,345603,Харківська обласна організація,39972241,Харківська область,За банківське обслуговування,UA033516290000000002600012178,current,126.00,"ПАТ ""Мегабанк""",09804119,юридична особа
НАШ КРАЙ,"Київ, вул. Богдана Хмельницького, буд. 64",70,2019-12-02,RC02049_1404,Банківські послуги,Інші витрати,345410,Полтавська обласна організація,40024231,Полтавська область,Списання коштів за банківське обслуговування згідно договору 57,UA153516290000000260011601190,current,100.00,"ПАТ ""Мегабанк""",09804119,юридична особа
НАШ КРАЙ,"Київ, вул. Богдана Хмельницького, буд. 64",70,2019-12-02,RCO2049_13,Банківські послуги,Інші витрати,345294,Миколаївська обласна організація,39956738,Миколаївська область,банківське обслуговування,26003140602,current,148.00,"ПАТ ""Мегабанк""",09804119,юридична особа
НАШ КРАЙ,,62,2019-12-02,242,Сплата ЄСВ,Податкові платежі,345293,Миколаївська обласна організація,39956738,Миколаївська область,ЄСВ на ЗП (22%),26003140602,current,1150.00,ДПІ у Центральному районі м. Миколаєва ГУ ДФС у Миколаївській області,39554010,юридична особа
НАШ КРАЙ,,63,2019-12-02,243,Податок на доходи,Податкові платежі,345292,Миколаївська обласна організація,39956738,Миколаївська область,ПДФО із ЗП,26003140602,current,900.00,УДКСУ у м. Миколаєві,37992781,юридична особа
НАШ КРАЙ,,61,2019-12-02,247,Військовий збір,Податкові платежі,345291,Миколаївська обласна організація,39956738,Миколаївська область,військовий збір із ЗП,26003140602,current,80.00,УДКСУ у м. Миколаєві,37992781,юридична особа
НАШ КРАЙ,"Миколаївська обл., Миколаїв",53,2019-12-02,249,Витрати на розміщення зовнішньої реклами,Зовнішня реклама,345083,Миколаївська обласна організація,39956738,Миколаївська область,оплата за оренду бордів,26003140602,current,600.00,Єнтін Олег Якович,,фізична особа
НАШ КРАЙ,"Миколаївська обл., Миколаїв",84,2019-12-02,244,"Заробітна плата, премії","Заробітна плата, лікарняні, вагітності, відрядження, компенсації",345079,Миколаївська обласна організація,39956738,Миколаївська область,виплата заробітної плати,26003140602,current,1991.00,Остапчук Ольга Миколаївна,,фізична особа
НАШ КРАЙ,"Миколаївська обл., Миколаїв",53,2019-12-02,248,Витрати на розміщення зовнішньої реклами,Зовнішня реклама,345078,Миколаївська обласна організація,39956738,Миколаївська область,оплата за оренду бордів,26003140602,current,1200.00,Єнтін Олег Якович,,фізична особа
НАШ КРАЙ,"Миколаївська обл., Новоодеський р-н, Нова Одеса",84,2019-12-02,245,"Заробітна плата, премії","Заробітна плата, лікарняні, вагітності, відрядження, компенсації",345077,Миколаївська обласна організація,39956738,Миколаївська область,виплата заробітної плати,26003140602,current,1186.00,Торопенко Денис Сергійович,,фізична особа
НАШ КРАЙ,"Миколаївська обл., Миколаїв",84,2019-12-02,246,"Заробітна плата, премії","Заробітна плата, лікарняні, вагітності, відрядження, компенсації",345076,Миколаївська обласна організація,39956738,Миколаївська область,виплата заробітної плати,26003140602,current,1186.00,Рой Юлія Ігорівна,,фізична особа
НАШ КРАЙ,"Київ, вул. Богдана Хмельницького, буд. 64",70,2019-12-02,RCO2049_1399,Банківські послуги,Інші витрати,344920,Київська міська організація,39812835,Київ,Списання коштiв за банкiвське обслуговування згiдно договоpу 73/2015 від 2015-09-18 р.,26000260477,current,50.00,"ПАТ ""Мегабанк""",09804119,юридична особа
НАШ КРАЙ,"Запорізька обл., Запоріжжя, просп. Соборний, буд. 111",70,2019-12-02,№ 6152847709,Банківські послуги,Інші витрати,344835,Запорізька обласна організація,39968366,Запорізька область,Списание щомісячної плати за обслуговування ТП Мій бізнес за листопад 2019 р.. Без ПДВ.,UA113139570000026000300238443,current,149.00,Запорізька обласна організація Наш край,39968366,юридична особа
НАШ КРАЙ,"Київ, вул. Михайла Грушевського, буд. 1",70,2019-12-02,AN9BT00AHP,Банківські послуги,Інші витрати,344718,Закарпатська обласна організація,39994726,Закарпатська область,Комісія за ослуговування рахунку,26000053915382,current,100.00,"ПАТ КБ ""Приватбанк""",14360570,юридична особа
НАШ КРАЙ,"Київ, вул. Богдана Хмельницького, буд. 64",70,2019-12-02,RCO2049_1403,Банківські послуги,Інші витрати,344684,Донецька обласна організація,39878456,Донецька область,Списання коштів за банківське обслуговування,26000040299,current,125.00,"ПАТ ""Мегабанк""",09804119,юридична особа
НАШ КРАЙ,"Київ, вул. Богдана Хмельницького, буд. 64",70,2019-12-02,RCO2049_1395,Банківські послуги,Інші витрати,344313,Центральний офіс,37724082,Україна,Списання коштiв за банкiвське обслуговування згiдно договоpу 71/2015 від 2015-09-15 р.,26002260475,current,50.00,"ПАТ ""Мегабанк""",09804119,юридична особа
НАШ КРАЙ,"Київ, вул. Богдана Хмельницького, буд. 64",84,2019-11-29,78,"Заробітна плата, премії","Заробітна плата, лікарняні, вагітності, відрядження, компенсації",344919,Київська міська організація,39812835,Київ,Перерахунок зар.плати за листопад 2019р. відповідно до договору зарплатного проекту №02-10/2015-2 від 2015-10-02 без ПДВ,26000260477,current,2544.49,"ПАТ ""Мегабанк""",09804119,юридична особа
НАШ КРАЙ,"Київ, вул. Політехнічна, буд. 5А",62,2019-11-29,79,Сплата ЄСВ,Податкові платежі,344918,Київська міська організація,39812835,Київ,*;101;39812835;сплата єдиного внеску за листопад 2019 року;;;Без ПДВ,26000260477,current,1147.58,ДПІ у Шевченківському районі у м. Києві,39561761,юридична особа
НАШ КРАЙ,"Київ, вул. Академіка Туполєва, буд. 28А",63,2019-11-29,80,Податок на доходи,Податкові платежі,344917,Київська міська організація,39812835,Київ,*;101;39812835;Податок на доходи найм.працівників за листопад 2019 року;;;Без ПДВ,26000260477,current,568.96,УДКСУ у Шевченківському районі м. Києва,37995466,юридична особа
НАШ КРАЙ,"Київ, вул. Академіка Туполєва, буд. 28А",61,2019-11-29,81,Військовий збір,Податкові платежі,344916,Київська міська організація,39812835,Київ,*;101;39812835;Військовий збір з доходів найм.працівників за листопад 2019 року;;; Без ПДВ,26000260477,current,47.41,УДКСУ у Шевченківському районі м. Києва,37995466,юридична особа
НАШ КРАЙ,"Київ, вул. Богдана Хмельницького, буд. 64",70,2019-11-29,TR.1419161.7914,Банківські послуги,Інші витрати,344915,Київська міська організація,39812835,Київ,Сплата комісії за банківське обслуговування зг. Дог.№ 02-10/2015-2 від 2015-10-02,26000260477,current,25.44,"ПАТ ""Мегабанк""",09804119,юридична особа
НАШ КРАЙ,"Київ, вул. Богдана Хмельницького, буд. 64",70,2019-11-29,RCO2237_801,Банківські послуги,Інші витрати,344914,Київська міська організація,39812835,Київ,Списання коштiв за банкiвське обслуговування згiдно договоpу 73/2015 від 2015-09-18 р.,26000260477,current,3.00,"ПАТ ""Мегабанк""",09804119,юридична особа
НАШ КРАЙ,"Київ, вул. Богдана Хмельницького, буд. 64",70,2019-11-29,TR.1419259.7918,Банківські послуги,Інші витрати,344312,Центральний офіс,37724082,Україна,Сплата комісії за банківське обслуговування зг. Дог.№ 02-10/2015-1 від 2015-10-02,26002260475,current,42.49,"ПАТ ""Мегабанк""",09804119,юридична особа
НАШ КРАЙ,"Київ, вул. Богдана Хмельницького, буд. 64",70,2019-11-29,RCO2237_800,Банківські послуги,Інші витрати,344311,Центральний офіс,37724082,Україна,Списання коштiв за банкiвське обслуговування згiдно договоpу 71/2015 від 2015-09-15 р.,26002260475,current,5.00,"ПАТ ""Мегабанк""",09804119,юридична особа
НАШ КРАЙ,"Київ, вул. Богдана Хмельницького, буд. 64",84,2019-11-29,173,"Заробітна плата, премії","Заробітна плата, лікарняні, вагітності, відрядження, компенсації",344310,Центральний офіс,37724082,Україна,Перерахування заробітної плати за листопад 2019 відповідно до договору зарплатного проекту№02-10\2015-1 від 2015-10-02 без ПДВ,26002260475,current,4249.16,"ПАТ ""Мегабанк""",09804119,юридична особа
НАШ КРАЙ,"Київ, вул. Мечникова, буд. 6",68,2019-11-29,172,Соцдослідження,"Гонорари, в тому числі за надані консультаційні послуги",344309,Центральний офіс,37724082,Україна,за надання послуг з питань організації діяльності Call-центру та його підтримки.Відповідно до договору 287\5від 2016-05-04 (рах.№10від31.10.19) без ПДВ,26002260475,current,21000.70,"ТОВ ""КЕНД-К ГРУП""",39794078,юридична особа
НАШ КРАЙ,"Київ, пров. Політехнічний, буд. 5А",62,2019-11-29,174,Сплата ЄСВ,Податкові платежі,344307,Центральний офіс,37724082,Україна,*;101;37724082;сплата єдиного внеску за листопад 2019 року;;;Без ПДВ,26002260475,current,1161.27,ДПІ у Шевченківському районі у м. Києві,39561761,юридична особа
НАШ КРАЙ,"Київ, вул. Академіка Туполєва, буд. 28А",63,2019-11-29,175,Податок на доходи,Податкові платежі,344306,Центральний офіс,37724082,Україна,*;101;37724082;Податок на доходи найм. працівників за листопад 2019 року;;;Без ПДВ,26002260475,current,950.13,УДКСУ у Шевченківському районі м. Києва,37995466,юридична особа
НАШ КРАЙ,"Київ, вул. Академіка Туполєва, буд. 28А",61,2019-11-29,176,Військовий збір,Податкові платежі,344305,Центральний офіс,37724082,Україна,*;101;37724082;Військовій збір з доходів найм.працівників за листопад 2019 року;;;Без ПДВ,26002260475,current,79.18,УДКСУ у Шевченківському районі м. Києва,37995466,юридична особа
НАШ КРАЙ,"Полтавська обл., Зіньківський р-н, Зіньків, вул. Воздвиженська, буд. 67",59,2019-11-26,87,Грошова застава,Грошова застава,345409,Полтавська обласна організація,40024231,Полтавська область,"Грошова застава для виборчого списку кандидатів у депутати Зіньк. р-ну, Полт. Обл. висунутого багатомандатному виборчому окрузі на перших місцевих виборах 22.12.19",UA153516290000000260011601190,current,1471.00,Зіньківська міська виборча комісія,33977134,юридична особа
НАШ КРАЙ,"Київ, вул. Богдана Хмельницького, буд. 64",70,2019-11-26,RC01929_433,Банківські послуги,Інші витрати,345408,Полтавська обласна організація,40024231,Полтавська область,Списання коштів за банківське обслуговування згідно договору 57,UA153516290000000260011601190,current,3.00,"ПАТ ""Мегабанк""",09804119,юридична особа
НАШ КРАЙ,"Чернігівська обл., Чернігів",79,2019-11-25,25,"Оренда будинків і приміщень та експлуатаційні витрати (прибирання, страхування орендованих будинків, охорона, сигналізація, ремонт, вивіз сміття, тощо)",Оренда нерухомості,345733,Чернігівська обласна організація,39975897,Чернігівська область,"Оплата за оренду приміщення за листопад 2019р.,згідно рахунку №6391 від 2019-11-13,в т.ч. ПДВ 196,72 грн",26003240342,current,1180.30,"ПАТ ""НАСК ""Оранта""",00034186,юридична особа
НАШ КРАЙ,"Чернігівська обл., Чернігів",79,2019-11-25,24,"Оренда будинків і приміщень та експлуатаційні витрати (прибирання, страхування орендованих будинків, охорона, сигналізація, ремонт, вивіз сміття, тощо)",Оренда нерухомості,345732,Чернігівська обласна організація,39975897,Чернігівська область,"Оплата за оренду приміщення за жовтень 2019р.,згідно рахунку №5867 від 2019-10-18,в т.ч. ПДВ 195,36 грн",26003240342,current,1172.15,"ПАТ ""НАСК ""Оранта""",00034186,юридична особа
НАШ КРАЙ,"Чернігівська обл., Чернігів",79,2019-11-25,22,"Оренда будинків і приміщень та експлуатаційні витрати (прибирання, страхування орендованих будинків, охорона, сигналізація, ремонт, вивіз сміття, тощо)",Оренда нерухомості,345731,Чернігівська обласна організація,39975897,Чернігівська область,"Оплата за оренду приміщення за вересень 2019р.,згідно рахунку №5099 від 2019-09-10,в т.ч. ПДВ 194,00 грн",26003240342,current,1164.00,"ПАТ ""НАСК ""Оранта""",00034186,юридична особа
НАШ КРАЙ,"Чернігівська обл., Чернігів",79,2019-11-25,23,"Оренда будинків і приміщень та експлуатаційні витрати (прибирання, страхування орендованих будинків, охорона, сигналізація, ремонт, вивіз сміття, тощо)",Оренда нерухомості,345730,Чернігівська обласна організація,39975897,Чернігівська область,"Компенсація за комунальні послуги за жовтень 2019р., згідно рахунку-фактури №5868 від 2019-10-18,в т.ч. ПДВ 108,33 грн",26003240342,current,650.00,"ПАТ ""НАСК ""Оранта""",00034186,юридична особа
НАШ КРАЙ,"Чернігівська обл., Чернігів",79,2019-11-25,21,"Оренда будинків і приміщень та експлуатаційні витрати (прибирання, страхування орендованих будинків, охорона, сигналізація, ремонт, вивіз сміття, тощо)",Оренда нерухомості,345729,Чернігівська обласна організація,39975897,Чернігівська область,"Компенсація за комунальні послуги за вересень 2019р., згідно рахунку-фактури №5100 від 2019-09-10,в т.ч. ПДВ 108,33 грн",26003240342,current,650.00,"ПАТ ""НАСК ""Оранта""",00034186,юридична особа
НАШ КРАЙ,"Чернігівська обл., Чернігів",79,2019-11-25,26,"Оренда будинків і приміщень та експлуатаційні витрати (прибирання, страхування орендованих будинків, охорона, сигналізація, ремонт, вивіз сміття, тощо)",Оренда нерухомості,345728,Чернігівська обласна організація,39975897,Чернігівська область,"Компенсація за комунальні послуги за листопад 2019р., згідно рахунку-фактури №6392 від 2019-11-13,в т.ч. ПДВ 108,33 грн",26003240342,current,650.00,"ПАТ ""НАСК ""Оранта""",00034186,юридична особа
НАШ КРАЙ,"Київ, вул. Богдана Хмельницького, буд. 64",70,2019-11-25,RCO2005_442,Банківські послуги,Інші витрати,345727,Чернігівська обласна організація,39975897,Чернігівська область,Списання коштів за банківське обслуговування договору 342/15,26003240342,current,18.00,"ПАТ ""Мегабанк""",09804119,юридична особа
НАШ КРАЙ,"Київ, вул. Богдана Хмельницького, буд. 64",70,2019-11-20,RCO1954_48,Банківські послуги,Інші витрати,345290,Миколаївська обласна організація,39956738,Миколаївська область,банківське обслуговування,26003140602,current,1.00,"ПАТ ""Мегабанк""",09804119,юридична особа
НАШ КРАЙ,"Миколаївська обл., Казанківський р-н, Казанка, вул. Миру, буд. 6",49,2019-11-20,241,Публікування матеріалів у друкованих ЗМІ,Реклама в друкованих ЗМІ,345289,Миколаївська обласна організація,39956738,Миколаївська область,Оплата за публікацію,26003140602,current,3000.00,"РРГ ""Голос Казанківщини""",02474156,юридична особа
НАШ КРАЙ,"Київ, вул. Богдана Хмельницького, буд. 64",70,2019-11-18,RCO2005_527,Банківські послуги,Інші витрати,345602,Харківська обласна організація,39972241,Харківська область,За банківське обслуговування,UA033516290000000002600012178,current,3.00,"ПАТ ""Мегабанк""",09804119,юридична особа
НАШ КРАЙ,"Харківська обл., Дергачівський р-н, Дергачі, вул. Перемоги, буд. 14",79,2019-11-18,192,"Оренда будинків і приміщень та експлуатаційні витрати (прибирання, страхування орендованих будинків, охорона, сигналізація, ремонт, вивіз сміття, тощо)",Оренда нерухомості,345601,Харківська обласна організація,39972241,Харківська область,"За послуги по приміщенню, що орендується",UA033516290000000002600012178,current,99.97,"ПП ""Ампір 2008""",35876460,юридична особа
НАШ КРАЙ,"Київ, бульв. Тараса Шевченка, буд. 18",76,2019-11-18,193,Послуги зв’язку,Послуги зв’язку,345600,Харківська обласна організація,39972241,Харківська область,За телекомунiкацiйнi послуги,UA033516290000000002600012178,current,200.00,"ПАТ ""Укртелеком""",21560766,юридична особа
НАШ КРАЙ,"Харківська обл., Дергачівський р-н, Дергачі, вул. Перемоги, буд. 14",79,2019-11-18,191,"Оренда будинків і приміщень та експлуатаційні витрати (прибирання, страхування орендованих будинків, охорона, сигналізація, ремонт, вивіз сміття, тощо)",Оренда нерухомості,345599,Харківська обласна організація,39972241,Харківська область,"За послуги по приміщенню, що орендується",UA033516290000000002600012178,current,62.77,"ПП ""Ампір 2008""",35876460,юридична особа
НАШ КРАЙ,,62,2019-11-18,235,Сплата ЄСВ,Податкові платежі,345288,Миколаївська обласна організація,39956738,Миколаївська область,ЄСВ на ЗП (22%),26003140602,current,2512.00,ДПІ у Центральному районі м. Миколаєва ГУ ДФС у Миколаївській області,39554010,юридична особа
НАШ КРАЙ,,63,2019-11-18,236,Податок на доходи,Податкові платежі,345287,Миколаївська обласна організація,39956738,Миколаївська область,ПДФО із ЗП,26003140602,current,2092.54,УДКСУ у м. Миколаєві,37992781,юридична особа
НАШ КРАЙ,,61,2019-11-18,237,Військовий збір,Податкові платежі,345286,Миколаївська обласна організація,39956738,Миколаївська область,військовий збір із ЗП,26003140602,current,173.54,УДКСУ у м. Миколаєві,37992781,юридична особа
НАШ КРАЙ,"Київ, вул. Богдана Хмельницького, буд. 64",70,2019-11-18,RCO2005_52,Банківські послуги,Інші витрати,345285,Миколаївська обласна організація,39956738,Миколаївська область,банківське обслуговування,26003140602,current,28.00,"ПАТ ""Мегабанк""",09804119,юридична особа
НАШ КРАЙ,"Миколаївська обл., Новоодеський р-н, Нова Одеса",84,2019-11-18,240,"Заробітна плата, премії","Заробітна плата, лікарняні, вагітності, відрядження, компенсації",345075,Миколаївська обласна організація,39956738,Миколаївська область,виплата заробітної плати,26003140602,current,3190.28,Торопенко Денис Сергійович,,фізична особа
НАШ КРАЙ,"Миколаївська обл., Миколаїв",84,2019-11-18,239,"Заробітна плата, премії","Заробітна плата, лікарняні, вагітності, відрядження, компенсації",345074,Миколаївська обласна організація,39956738,Миколаївська область,виплата заробітної плати,26003140602,current,3000.00,Рой Юлія Ігорівна,,фізична особа
НАШ КРАЙ,"Миколаївська обл., Миколаїв",84,2019-11-18,166,"Заробітна плата, премії","Заробітна плата, лікарняні, вагітності, відрядження, компенсації",345073,Миколаївська обласна організація,39956738,Миколаївська область,виплата заробітної плати,26003140602,current,3000.00,Остапчук Ольга Миколаївна,,фізична особа
НАШ КРАЙ,"Донецька обл., Словʼянський р-н, Словʼянськ",62,2019-11-15,409,Сплата ЄСВ,Податкові платежі,344683,Донецька обласна організація,39878456,Донецька область,Нарахування ЄСВ 22% на заробітну плату(аванс) за листопад 2019р.,26000040299,current,1870.00,"Краматорське УК/м. Краматорськ, ГУ ДКСУ У ДОНЕЦЬКІЙ ОБЛАСТІ",43142826,юридична особа
НАШ КРАЙ,"Донецька обл., Словʼянський р-н, Словʼянськ",63,2019-11-15,410,Податок на доходи,Податкові платежі,344682,Донецька обласна організація,39878456,Донецька область,ПДФО утриманий із заробітної плати(аванс) за листопад 2019р.,26000040299,current,1252.31,УДКСУ у м. Словʼянську Донецької області,37803368,юридична особа
НАШ КРАЙ,"Донецька обл., Словʼянський р-н, Словʼянськ",61,2019-11-15,408,Військовий збір,Податкові платежі,344681,Донецька обласна організація,39878456,Донецька область,"Військовий збір 1,5%утриманий із заробітної плати(аванс) за листопад 2019р.",26000040299,current,111.57,УДКСУ у м. Словʼянську Донецької області,37803368,юридична особа
НАШ КРАЙ,"Київ, вул. Богдана Хмельницького, буд. 64",70,2019-11-15,TR.1555804.2008.3542,Банківські послуги,Інші витрати,344680,Донецька обласна організація,39878456,Донецька область,Сплата комісії за банківське обслуговування,26000040299,current,43.64,"ПАТ ""Мегабанк""",09804119,юридична особа
НАШ КРАЙ,"Київ, вул. Богдана Хмельницького, буд. 64",70,2019-11-15,RCO1938_598,Банківські послуги,Інші витрати,344679,Донецька обласна організація,39878456,Донецька область,Списання коштів за банківське обслуговування,26000040299,current,12.00,"ПАТ ""Мегабанк""",09804119,юридична особа
НАШ КРАЙ,"Донецька обл., Словʼянський р-н, Словʼянськ",84,2019-11-15,406,"Заробітна плата, премії","Заробітна плата, лікарняні, вагітності, відрядження, компенсації",344423,Донецька обласна організація,39878456,Донецька область,Заробітна плата(аванс) за листопад 2019р.,26000040299,current,1710.62,Єжова Н Л,,фізична особа
НАШ КРАЙ,"Донецька обл., Словʼянський р-н, Словʼянськ",84,2019-11-15,404,"Заробітна плата, премії","Заробітна плата, лікарняні, вагітності, відрядження, компенсації",344422,Донецька обласна організація,39878456,Донецька область,Заробітна плата(аванс) за листопад 2019р.,26000040299,current,1710.62,Макогон Ю П,,фізична особа
НАШ КРАЙ,"Донецька обл., Словʼянський р-н, Словʼянськ",84,2019-11-15,407,"Заробітна плата, премії","Заробітна плата, лікарняні, вагітності, відрядження, компенсації",344421,Донецька обласна організація,39878456,Донецька область,Заробітна плата(аванс) за листопад 2019р.,26000040299,current,1710.62,Кіч О В,,фізична особа
НАШ КРАЙ,"Донецька обл., Словʼянський р-н, Словʼянськ",84,2019-11-15,405,"Заробітна плата, премії","Заробітна плата, лікарняні, вагітності, відрядження, компенсації",344420,Донецька обласна організація,39878456,Донецька область,Заробітна плата(аванс) за листопад 2019р.,26000040299,current,941.76,Шумакова А О,,фізична особа
НАШ КРАЙ,"Миколаївська обл., Казанківський р-н, Казанка, вул. Миру, буд. 6",79,2019-11-14,234,"Оренда будинків і приміщень та експлуатаційні витрати (прибирання, страхування орендованих будинків, охорона, сигналізація, ремонт, вивіз сміття, тощо)",Оренда нерухомості,345284,Миколаївська обласна організація,39956738,Миколаївська область,оренда приміщення,26003140602,current,200.00,КУ Казанківський РЦОЗОК,42346315,юридична особа
НАШ КРАЙ,"Київ, вул. Богдана Хмельницького, буд. 64",70,2019-11-14,RCO1944_41,Банківські послуги,Інші витрати,345283,Миколаївська обласна організація,39956738,Миколаївська область,банківське обслуговування,26003140602,current,3.00,"ПАТ ""Мегабанк""",09804119,юридична особа
НАШ КРАЙ,"Харківська обл., Харківський р-н, Циркуни, вул. Механізаторська, буд. 11",79,2019-11-12,189,"Оренда будинків і приміщень та експлуатаційні витрати (прибирання, страхування орендованих будинків, охорона, сигналізація, ремонт, вивіз сміття, тощо)",Оренда нерухомості,345598,Харківська обласна організація,39972241,Харківська область,За оренду приміщення,UA033516290000000002600012178,current,4800.00,"ТОВ ""Алькад ЛТД""",22636477,юридична особа
НАШ КРАЙ,"Харківська обл., Дергачівський р-н, Дергачі, вул. Перемоги, буд. 14",79,2019-11-12,188,"Оренда будинків і приміщень та експлуатаційні витрати (прибирання, страхування орендованих будинків, охорона, сигналізація, ремонт, вивіз сміття, тощо)",Оренда нерухомості,345597,Харківська обласна організація,39972241,Харківська область,За оренду приміщення,UA033516290000000002600012178,current,3585.00,"ПП ""Ампір 2008""",35876460,юридична особа
НАШ КРАЙ,"Харківська обл., Сахновщинський р-н, Сахновщина, вул. Леніна, буд. 9",79,2019-11-12,187,"Оренда будинків і приміщень та експлуатаційні витрати (прибирання, страхування орендованих будинків, охорона, сигналізація, ремонт, вивіз сміття, тощо)",Оренда нерухомості,345596,Харківська обласна організація,39972241,Харківська область,За оренду приміщення,UA033516290000000002600012178,current,1100.00,"Підприємство споживчої кооперації ""Коопунівермаг Сахновщинської районної спілки пайовиків ""Кооператив""",01777564,юридична особа
НАШ КРАЙ,"Київ, вул. Богдана Хмельницького, буд. 64",70,2019-11-12,RCO2006_465,Банківські послуги,Інші витрати,345595,Харківська обласна організація,39972241,Харківська область,За банківське обслуговування,UA033516290000000002600012178,current,15.00,"ПАТ ""Мегабанк""",09804119,юридична особа
НАШ КРАЙ,"Харківська обл., Харків, вул. Валентинівська, буд. 15Б, 179",58,2019-11-12,186,"Виготовлення друкованих матеріалів (плакатів, листівок, буклетів та інших агітаційних матеріалів)",Друкована агітація,345469,Харківська обласна організація,39972241,Харківська область,За поліграфічну продукцію,UA033516290000000002600012178,current,3900.00,Шалда Ольга Олександрівна,2735215635,фізична особа
НАШ КРАЙ,"Харківська обл., Харків, просп. Гагаріна, буд. 169Б, 28",79,2019-11-12,190,"Оренда будинків і приміщень та експлуатаційні витрати (прибирання, страхування орендованих будинків, охорона, сигналізація, ремонт, вивіз сміття, тощо)",Оренда нерухомості,345467,Харківська обласна організація,39972241,Харківська область,За оренду приміщення,UA033516290000000002600012178,current,6550.00,Манукян Арпіне Араіківна,3279004761,фізична особа
НАШ КРАЙ,"Донецька обл., Словʼянський р-н, Словʼянськ",63,2019-11-07,387,Податок на доходи,Податкові платежі,344678,Донецька обласна організація,39878456,Донецька область,ПДФО утриманий із заробітної плати за жовтень 2019р.,26000040299,current,2330.74,УДКСУ у м. Словʼянську Донецької області,37803368,юридична особа
НАШ КРАЙ,"Донецька обл., Краматорськ",43,2019-11-07,394,Інші витрати,Інші витрати,344677,Донецька обласна організація,39878456,Донецька область,Оплата за засіб КЗІ,26000040299,current,2085.00,"ПП ""Краматорський ІТ-Центр""",36075856,юридична особа
НАШ КРАЙ,"Донецька обл., Словʼянський р-н, Словʼянськ",79,2019-11-07,396,"Оренда будинків і приміщень та експлуатаційні витрати (прибирання, страхування орендованих будинків, охорона, сигналізація, ремонт, вивіз сміття, тощо)",Оренда нерухомості,344676,Донецька обласна організація,39878456,Донецька область,Оплата за послуги охорони обʼєктів за жовтень 2019р.,26000040299,current,1400.00,"ПП ""СБ ""ТИТАН-2""",35637538,юридична особа
НАШ КРАЙ,"Донецька обл., Краматорськ",72,2019-11-07,394,"Придбання, ремонт офісної техніки та програмного забезпечення (Бухгалтерські програми, Ліга.закон, домени)",Придбання офісної техніки та програмного забезпечення,344675,Донецька обласна організація,39878456,Донецька область,"Оплата за пост.пакетів оновлень до КП ""М.Е.Doc"" Модуль ""Звітність""",26000040299,current,900.00,"ПП ""Краматорський ІТ-Центр""",36075856,юридична особа
НАШ КРАЙ,Київ,72,2019-11-07,391,"Придбання, ремонт офісної техніки та програмного забезпечення (Бухгалтерські програми, Ліга.закон, домени)",Придбання офісної техніки та програмного забезпечення,344674,Донецька обласна організація,39878456,Донецька область,Сплата за обробку даних та видачу сертифікатів ЕЦП,26000040299,current,498.00,"ТОВ ""Центр сертифікації ключів ""Україна""",36865753,юридична особа
НАШ КРАЙ,"Донецька обл., Краматорськ",82,2019-11-07,393,"Гонорари, в тому числі за надані консультаційні послуги","Гонорари, в тому числі за надані консультаційні послуги",344673,Донецька обласна організація,39878456,Донецька область,Оплата за інформаційно-консультаційні послуги,26000040299,current,300.00,Безнисько Г Л,2435411772,фізична особа
НАШ КРАЙ,Київ,76,2019-11-07,395,Послуги зв’язку,Послуги зв’язку,344672,Донецька обласна організація,39878456,Донецька область,Оплата за телекомунікаційні послуги за вересень 2019р.,26000040299,current,237.30,"ПАТ ""Укртелеком""",21560766,юридична особа
НАШ КРАЙ,"Донецька обл., Словʼянський р-н, Словʼянськ",62,2019-11-07,389,Сплата ЄСВ,Податкові платежі,344671,Донецька обласна організація,39878456,Донецька область,Нарахування ЄСВ 22% на заробітну плату за жовтень 2019р.,26000040299,current,140.88,"Краматорське УК/м. Краматорськ, ГУ ДКСУ У ДОНЕЦЬКІЙ ОБЛАСТІ",43142826,юридична особа
НАШ КРАЙ,"Київ, вул. Богдана Хмельницького, буд. 64",70,2019-11-07,TR.1555804.5517.3542,Банківські послуги,Інші витрати,344670,Донецька обласна організація,39878456,Донецька область,Сплата комісії за банківське обслуговування,26000040299,current,87.26,"ПАТ ""Мегабанк""",09804119,юридична особа
НАШ КРАЙ,"Донецька обл., Словʼянський р-н, Словʼянськ",61,2019-11-07,390,Військовий збір,Податкові платежі,344669,Донецька обласна організація,39878456,Донецька область,"Військовий збір 1,5%утриманий із заробітної плати за жовтень2019р.",26000040299,current,74.16,УДКСУ у м. Словʼянську Донецької області,37803368,юридична особа
НАШ КРАЙ,"Київ, вул. Богдана Хмельницького, буд. 64",70,2019-11-07,RCO1956_503,Банківські послуги,Інші витрати,344668,Донецька обласна організація,39878456,Донецька область,Списання коштів за банківське обслуговування,26000040299,current,34.00,"ПАТ ""Мегабанк""",09804119,юридична особа
НАШ КРАЙ,"Донецька обл., Словʼянський р-н, Словʼянськ",84,2019-11-07,384,"Заробітна плата, премії","Заробітна плата, лікарняні, вагітності, відрядження, компенсації",344419,Донецька обласна організація,39878456,Донецька область,Заробітна плата за жовтень 2019р.,26000040299,current,3421.25,Макогон Ю П,,фізична особа
НАШ КРАЙ,"Донецька обл., Словʼянський р-н, Словʼянськ",84,2019-11-07,386,"Заробітна плата, премії","Заробітна плата, лікарняні, вагітності, відрядження, компенсації",344418,Донецька обласна організація,39878456,Донецька область,Заробітна плата за жовтень 2019р.,26000040299,current,3421.25,Єжова Н Л,,фізична особа
НАШ КРАЙ,"Донецька обл., Словʼянський р-н, Словʼянськ",84,2019-11-07,388,"Заробітна плата, премії","Заробітна плата, лікарняні, вагітності, відрядження, компенсації",344417,Донецька обласна організація,39878456,Донецька область,Заробітна плата за жовтень 2019р.,26000040299,current,2643.67,Кіч О В,,фізична особа
НАШ КРАЙ,"Донецька обл., Словʼянський р-н, Словʼянськ",84,2019-11-07,385,"Заробітна плата, премії","Заробітна плата, лікарняні, вагітності, відрядження, компенсації",344416,Донецька обласна організація,39878456,Донецька область,Заробітна плата за жовтень 2019р.,26000040299,current,1883.51,Шумакова А О,,фізична особа
НАШ КРАЙ,"Київ, вул. Богдана Хмельницького, буд. 64",70,2019-11-07,RCO1956_499,Банківські послуги,Інші витрати,344304,Центральний офіс,37724082,Україна,Списання коштiв за банкiвське обслуговування згiдно договоpу 71/2015 від 2015-09-15 р.,26002260475,current,3.00,"ПАТ ""Мегабанк""",09804119,юридична особа
НАШ КРАЙ,"Київ, вул. Бастіонна, буд. 6",60,2019-11-07,171,Інші податки,Податкові платежі,344303,Центральний офіс,37724082,Україна,"Плата за скорочення термінів надання послуг у сфері держаної реєстрації, Політична партія ʼНаш крайʼ",26002260475,current,1160.00,ДКСУ,37567646,юридична особа
НАШ КРАЙ,"Київ, вул. Богдана Хмельницького, буд. 64",70,2019-11-06,RCO1917_529,Банківські послуги,Інші витрати,344667,Донецька обласна організація,39878456,Донецька область,Списання коштів за банківське обслуговування,26000040299,current,6.00,"ПАТ ""Мегабанк""",09804119,юридична особа
НАШ КРАЙ,"Донецька обл., Словʼянський р-н, Словʼянськ",62,2019-11-05,375,Сплата ЄСВ,Податкові платежі,344666,Донецька обласна організація,39878456,Донецька область,Нарахування ЄСВ 22% на заробітну плату за жовтень 2019р.,26000040299,current,3709.14,"Краматорське УК/м. Краматорськ, ГУ ДКСУ У ДОНЕЦЬКІЙ ОБЛАСТІ",43142826,юридична особа
НАШ КРАЙ,"Донецька обл., Словʼянський р-н, Словʼянськ",61,2019-11-05,376,Військовий збір,Податкові платежі,344665,Донецька обласна організація,39878456,Донецька область,"Військовий збір 1,5%утриманий із заробітної плати за жовтень2019р.",26000040299,current,134.48,УДКСУ у м. Словʼянську Донецької області,37803368,юридична особа
НАШ КРАЙ,"Миколаївська обл., Кривоозерський р-н, Криве Озеро",79,2019-11-04,229,"Оренда будинків і приміщень та експлуатаційні витрати (прибирання, страхування орендованих будинків, охорона, сигналізація, ремонт, вивіз сміття, тощо)",Оренда нерухомості,345282,Миколаївська обласна організація,39956738,Миколаївська область,сплата за оренду приміщення,26003140602,current,2022.89,"ТОВ ""Вікторія-союз""",35596853,юридична особа
НАШ КРАЙ,"Київ, бульв. Тараса Шевченка, буд. 18",76,2019-11-04,233,Послуги зв’язку,Послуги зв’язку,345281,Миколаївська обласна організація,39956738,Миколаївська область,за телекомунікаційні послуги,26003140602,current,410.00,"ПАТ ""Укртелеком""",21560766,юридична особа
НАШ КРАЙ,"Миколаївська обл., Южноукраїнськ, вул. Паркова, буд. 5",79,2019-11-04,223,"Оренда будинків і приміщень та експлуатаційні витрати (прибирання, страхування орендованих будинків, охорона, сигналізація, ремонт, вивіз сміття, тощо)",Оренда нерухомості,345280,Миколаївська обласна організація,39956738,Миколаївська область,оренда приміщення,26003140602,current,196.78,"КП ""Житлово-експлутаційне обʼєднання”",31537375,юридична особа
НАШ КРАЙ,"Київ, вул. Богдана Хмельницького, буд. 64",70,2019-11-04,RCO1948_45,Банківські послуги,Інші витрати,345279,Миколаївська обласна організація,39956738,Миколаївська область,банківське обслуговування,26003140602,current,33.00,"ПАТ ""Мегабанк""",09804119,юридична особа
НАШ КРАЙ,"Миколаївська обл., Казанківський р-н, Казанка, вул. Миру, буд. 190",79,2019-11-04,225,"Оренда будинків і приміщень та експлуатаційні витрати (прибирання, страхування орендованих будинків, охорона, сигналізація, ремонт, вивіз сміття, тощо)",Оренда нерухомості,345072,Миколаївська обласна організація,39956738,Миколаївська область,сплата за оренду приміщення,26003140602,current,300.00,Маляр Валерій Миколайович,2513206992,фізична особа
НАШ КРАЙ,"Миколаївська обл., Єланецький р-н, Єланець",79,2019-11-04,230,"Оренда будинків і приміщень та експлуатаційні витрати (прибирання, страхування орендованих будинків, охорона, сигналізація, ремонт, вивіз сміття, тощо)",Оренда нерухомості,345071,Миколаївська обласна організація,39956738,Миколаївська область,сплата за оренду приміщення,26003140602,current,200.00,Андросюк Микола Миколайович,,фізична особа
НАШ КРАЙ,"Миколаївська обл., Снігурівський р-н, Снігурівка, вул. Каховська, буд. 1",79,2019-11-04,231,"Оренда будинків і приміщень та експлуатаційні витрати (прибирання, страхування орендованих будинків, охорона, сигналізація, ремонт, вивіз сміття, тощо)",Оренда нерухомості,345070,Миколаївська обласна організація,39956738,Миколаївська область,сплата за оренду приміщення,26003140602,current,420.00,Зіньковська Юлія Сергіївна,3098319420,фізична особа
НАШ КРАЙ,"Миколаївська обл., Баштанський р-н, Баштанка",79,2019-11-04,227,"Оренда будинків і приміщень та експлуатаційні витрати (прибирання, страхування орендованих будинків, охорона, сигналізація, ремонт, вивіз сміття, тощо)",Оренда нерухомості,345069,Миколаївська обласна організація,39956738,Миколаївська область,сплата за оренду приміщення,26003140602,current,750.00,Федорова Антоніна Павлівна,,фізична особа
НАШ КРАЙ,"Миколаївська обл., Березнегуватський р-н, Березнегувате",79,2019-11-04,224,"Оренда будинків і приміщень та експлуатаційні витрати (прибирання, страхування орендованих будинків, охорона, сигналізація, ремонт, вивіз сміття, тощо)",Оренда нерухомості,345068,Миколаївська обласна організація,39956738,Миколаївська область,сплата за оренду приміщення,26003140602,current,1000.00,Чайка Оксана Миколаївна,,фізична особа
НАШ КРАЙ,"Миколаївська обл., Миколаївський р-н, Сапетня",79,2019-11-04,232,"Оренда будинків і приміщень та експлуатаційні витрати (прибирання, страхування орендованих будинків, охорона, сигналізація, ремонт, вивіз сміття, тощо)",Оренда нерухомості,345067,Миколаївська обласна організація,39956738,Миколаївська область,сплата за оренду приміщення,26003140602,current,1500.00,Іщенко Віктор Андрійович,,фізична особа
НАШ КРАЙ,"Миколаївська обл., Очаків",79,2019-11-04,228,"Оренда будинків і приміщень та експлуатаційні витрати (прибирання, страхування орендованих будинків, охорона, сигналізація, ремонт, вивіз сміття, тощо)",Оренда нерухомості,345066,Миколаївська обласна організація,39956738,Миколаївська область,сплата за оренду приміщення,26003140602,current,2000.00,Как Марина Олександрівна,,фізична особа
НАШ КРАЙ,"Миколаївська обл., Снігурівський р-н, Новопетрівка",79,2019-11-04,226,"Оренда будинків і приміщень та експлуатаційні витрати (прибирання, страхування орендованих будинків, охорона, сигналізація, ремонт, вивіз сміття, тощо)",Оренда нерухомості,345065,Миколаївська обласна організація,39956738,Миколаївська область,сплата за оренду приміщення,26003140602,current,100.00,Кваша Володимир Миколайович,,фізична особа
НАШ КРАЙ,"Запорізька обл., Запоріжжя, просп. Соборний, буд. 111",79,2019-11-04,п/д № 25,"Оренда будинків і приміщень та експлуатаційні витрати (прибирання, страхування орендованих будинків, охорона, сигналізація, ремонт, вивіз сміття, тощо)",Оренда нерухомості,344834,Запорізька обласна організація,39968366,Запорізька область,"Сплата за оренду приміщення згід.Дог.№ 8 від 2017-03-01 р. В т.ч. ПДВ 83,60 грн.",UA113139570000026000300238443,current,501.60,"Спільне українсько-німецьке підприємство ""Саксонія ГМБХ""",19364710,юридична особа
НАШ КРАЙ,"Київ, вул. Михайла Грушевського, буд. 1",70,2019-11-04,AN9AV05G8P,Банківські послуги,Інші витрати,344717,Закарпатська обласна організація,39994726,Закарпатська область,Комісія за ослуговування рахунку,26000053915382,current,100.00,"ПАТ КБ ""Приватбанк""",14360570,юридична особа
НАШ КРАЙ,"Київ, вул. Богдана Хмельницького, буд. 64",70,2019-11-04,RCO1948_458,Банківські послуги,Інші витрати,344664,Донецька обласна організація,39878456,Донецька область,Списання коштів за банківське обслуговування,26000040299,current,116.38,"ПАТ ""Мегабанк""",09804119,юридична особа
НАШ КРАЙ,"Київ, вул. Богдана Хмельницького, буд. 64",70,2019-11-04,TR.1555804.14388.3542,Банківські послуги,Інші витрати,344663,Донецька обласна організація,39878456,Донецька область,Сплата комісії за банківське обслуговування,26000040299,current,40.00,"ПАТ ""Мегабанк""",09804119,юридична особа
НАШ КРАЙ,"Київ, вул. Богдана Хмельницького, буд. 64",70,2019-11-01,RCO2008_1393,Банківські послуги,Інші витрати,345594,Харківська обласна організація,39972241,Харківська область,За банківське обслуговування,UA033516290000000002600012178,current,125.00,"ПАТ ""Мегабанк""",09804119,юридична особа
НАШ КРАЙ,"Київ, вул. Богдана Хмельницького, буд. 64",70,2019-11-01,RC02008_1403,Банківські послуги,Інші витрати,345407,Полтавська обласна організація,40024231,Полтавська область,Списання коштів за банківське обслуговування згідно договору 57,UA153516290000000260011601190,current,100.00,"ПАТ ""Мегабанк""",09804119,юридична особа
НАШ КРАЙ,,62,2019-11-01,146,Сплата ЄСВ,Податкові платежі,345278,Миколаївська обласна організація,39956738,Миколаївська область,ЄСВ на ЗП (22%),26003140602,current,860.00,ДПІ у Центральному районі м. Миколаєва ГУ ДФС у Миколаївській області,39554010,юридична особа
НАШ КРАЙ,,63,2019-11-01,145,Податок на доходи,Податкові платежі,345277,Миколаївська обласна організація,39956738,Миколаївська область,ПДФО із ЗП,26003140602,current,710.00,УДКСУ у м. Миколаєві,37992781,юридична особа
НАШ КРАЙ,"Київ, вул. Богдана Хмельницького, буд. 64",70,2019-11-01,RCO2008_13,Банківські послуги,Інші витрати,345276,Миколаївська обласна організація,39956738,Миколаївська область,банківське обслуговування,26003140602,current,140.00,"ПАТ ""Мегабанк""",09804119,юридична особа
НАШ КРАЙ,,61,2019-11-01,215,Військовий збір,Податкові платежі,345275,Миколаївська обласна організація,39956738,Миколаївська область,військовий збір із ЗП,26003140602,current,25.00,УДКСУ у м. Миколаєві,37992781,юридична особа
НАШ КРАЙ,"Миколаївська обл., Миколаїв",84,2019-11-01,221,"Заробітна плата, премії","Заробітна плата, лікарняні, вагітності, відрядження, компенсації",345064,Миколаївська обласна організація,39956738,Миколаївська область,виплата заробітної плати,26003140602,current,1991.00,Остапчук Ольга Миколаївна,,фізична особа
НАШ КРАЙ,"Миколаївська обл., Миколаїв",84,2019-11-01,222,"Заробітна плата, премії","Заробітна плата, лікарняні, вагітності, відрядження, компенсації",345063,Миколаївська обласна організація,39956738,Миколаївська область,виплата заробітної плати,26003140602,current,1186.00,Рой Юлія Ігорівна,,фізична особа
НАШ КРАЙ,"Київ, вул. Богдана Хмельницького, буд. 64",70,2019-11-01,RCO2008_1398,Банківські послуги,Інші витрати,344913,Київська міська організація,39812835,Київ,Списання коштiв за банкiвське обслуговування згiдно договоpу 73/2015 від 2015-09-18 р.,26000260477,current,50.00,"ПАТ ""Мегабанк""",09804119,юридична особа
НАШ КРАЙ,"Запорізька обл., Запоріжжя, просп. Соборний, буд. 111",70,2019-11-01,№ 0846888809,Банківські послуги,Інші витрати,344833,Запорізька обласна організація,39968366,Запорізька область,Списание щомісячної плати за обслуговування ТП Мій бізнес за жовтень 2019 р.. Без ПДВ.,UA113139570000026000300238443,current,149.00,Запорізька обласна організація Наш край,39968366,юридична особа
НАШ КРАЙ,"Київ, вул. Богдана Хмельницького, буд. 64",70,2019-11-01,RCO2008_1402,Банківські послуги,Інші витрати,344662,Донецька обласна організація,39878456,Донецька область,Списання коштів за банківське обслуговування,26000040299,current,8.62,"ПАТ ""Мегабанк""",09804119,юридична особа
НАШ КРАЙ,"Київ, вул. Богдана Хмельницького, буд. 64",70,2019-11-01,RCO2008_1394,Банківські послуги,Інші витрати,344302,Центральний офіс,37724082,Україна,Списання коштiв за банкiвське обслуговування згiдно договоpу 71/2015 від 2015-09-15 р.,26002260475,current,50.00,"ПАТ ""Мегабанк""",09804119,юридична особа
НАШ КРАЙ,"Київ, вул. Єреванська, буд. 1",70,2019-10-31,TR3038911 72108.2667,Банківські послуги,Інші витрати,344932,Луганська обласна організація,39966023,Луганська область,Списання коштів за банківське обслуговування,UA273204780000000026008288858,current,60.00,"АБ ""Укргазбанк""",23697280,юридична особа
НАШ КРАЙ,"Київ, вул. Академіка Туполєва, буд. 28А",61,2019-10-31,74,Військовий збір,Податкові платежі,344912,Київська міська організація,39812835,Київ,*;101;39812835;Військовий збір з доходів найм.працівників за жовтень 2019 року;;; Без ПДВ,26000260477,current,46.95,УДКСУ у Шевченківському районі м. Києва,37995466,юридична особа
НАШ КРАЙ,"Київ, вул. Богдана Хмельницького, буд. 64",84,2019-10-31,71,"Заробітна плата, премії","Заробітна плата, лікарняні, вагітності, відрядження, компенсації",344911,Київська міська організація,39812835,Київ,Перерахунок зар.плати за жовтень 2019р. відповідно до договору зарплатного проекту №02-10/2015-2 від 2015-10-02 без ПДВ,26000260477,current,2519.44,"ПАТ ""Мегабанк""",09804119,юридична особа
НАШ КРАЙ,"Київ, вул. Політехнічна, буд. 5А",62,2019-10-31,72,Сплата ЄСВ,Податкові платежі,344910,Київська міська організація,39812835,Київ,*;101;39812835;сплата єдиного внеску за жовтень 2019 року;;;Без ПДВ,26000260477,current,1147.58,ДПІ у Шевченківському районі у м. Києві,39561761,юридична особа
НАШ КРАЙ,"Київ, вул. Академіка Туполєва, буд. 28А",63,2019-10-31,73,Податок на доходи,Податкові платежі,344909,Київська міська організація,39812835,Київ,*;101;39812835;Податок на доходи найм.працівників за жовтень 2019 року;;;Без ПДВ,26000260477,current,563.36,УДКСУ у Шевченківському районі м. Києва,37995466,юридична особа
НАШ КРАЙ,"Київ, вул. Богдана Хмельницького, буд. 64",84,2019-10-31,75,"Заробітна плата, премії","Заробітна плата, лікарняні, вагітності, відрядження, компенсації",344908,Київська міська організація,39812835,Київ,Доплата перерахунок зар.плати за жовтень 2019р. відповідно до договору зарплатного проекту №02-10/2015-2 від 2015-10-02 без ПДВ,26000260477,current,25.05,"ПАТ ""Мегабанк""",09804119,юридична особа
НАШ КРАЙ,"Київ, вул. Академіка Туполєва, буд. 28А",63,2019-10-31,76,Податок на доходи,Податкові платежі,344907,Київська міська організація,39812835,Київ,*;101;39812835;доплата податок на доходи найм.працівників за жовтень 2019 року;;;Без ПДВ,26000260477,current,5.60,УДКСУ у Шевченківському районі м. Києва,37995466,юридична особа
НАШ КРАЙ,"Київ, вул. Академіка Туполєва, буд. 28А",61,2019-10-31,77,Військовий збір,Податкові платежі,344906,Київська міська організація,39812835,Київ,*;101;39812835;доплата військовий збір з доходів найм.працівників за жоавтень 2019 року;;; Без ПДВ,26000260477,current,0.46,УДКСУ у Шевченківському районі м. Києва,37995466,юридична особа
НАШ КРАЙ,"Київ, вул. Богдана Хмельницького, буд. 64",70,2019-10-31,TR.1419161.7656,Банківські послуги,Інші витрати,344905,Київська міська організація,39812835,Київ,Сплата комісії за банківське обслуговування зг. Дог.№ 02-10/2015-2 від 2015-10-02,26000260477,current,25.44,"ПАТ ""Мегабанк""",09804119,юридична особа
НАШ КРАЙ,"Київ, вул. Богдана Хмельницького, буд. 64",70,2019-10-31,RCO2057_733,Банківські послуги,Інші витрати,344904,Київська міська організація,39812835,Київ,Списання коштiв за банкiвське обслуговування згiдно договоpу 73/2015 від 2015-09-18 р.,26000260477,current,5.00,"ПАТ ""Мегабанк""",09804119,юридична особа
НАШ КРАЙ,Київ,72,2019-10-31,374,"Придбання, ремонт офісної техніки та програмного забезпечення (Бухгалтерські програми, Ліга.закон, домени)",Придбання офісної техніки та програмного забезпечення,344661,Донецька обласна організація,39878456,Донецька область,Місячний програмний пакет Google Cloud G Suite Basic for Work для домену nkdonbass.com.ua,26000040299,current,2653.95,"ТОВ ""СВІТ ТЕХНОЛОГІЙ""",38992838,юридична особа
НАШ КРАЙ,"Київ, вул. Богдана Хмельницького, буд. 64",70,2019-10-31,RCO2057,Банківські послуги,Інші витрати,344660,Донецька обласна організація,39878456,Донецька область,Списання коштів за банківське обслуговування,26000040299,current,3.00,"ПАТ ""Мегабанк""",09804119,юридична особа
НАШ КРАЙ,"Київ, вул. Богдана Хмельницького, буд. 64",70,2019-10-31,TR.1419259.7658,Банківські послуги,Інші витрати,344301,Центральний офіс,37724082,Україна,Сплата комісії за банківське обслуговування зг. Дог.№ 02-10/2015-1 від 2015-10-02,26002260475,current,42.49,"ПАТ ""Мегабанк""",09804119,юридична особа
НАШ КРАЙ,"Київ, вул. Богдана Хмельницького, буд. 64",70,2019-10-31,RCO2057_731,Банківські послуги,Інші витрати,344300,Центральний офіс,37724082,Україна,Списання коштiв за банкiвське обслуговування згiдно договоpу 71/2015 від 2015-09-15 р.,26002260475,current,8.00,"ПАТ ""Мегабанк""",09804119,юридична особа
НАШ КРАЙ,"Київ, вул. Богдана Хмельницького, буд. 64",84,2019-10-31,161,"Заробітна плата, премії","Заробітна плата, лікарняні, вагітності, відрядження, компенсації",344299,Центральний офіс,37724082,Україна,Перерахування заробітної плати за жовтень 2019 відповідно до договору зарплатного проекту№02-10\2015-1 від 2015-10-02 без ПДВ,26002260475,current,4199.07,"ПАТ ""Мегабанк""",09804119,юридична особа
НАШ КРАЙ,"Київ, вул. Мечникова, буд. 6",68,2019-10-31,165,Соцдослідження,"Гонорари, в тому числі за надані консультаційні послуги",344298,Центральний офіс,37724082,Україна,за надання послуг з питань організації діяльності Call-центру та його підтримки.Відповідно до договору 287\5від 2016-05-04 (рах.№9від30.09.19) без ПДВ,26002260475,current,21000.57,"ТОВ ""КЕНД-К ГРУП""",39794078,юридична особа
НАШ КРАЙ,"Київ, вул. Богдана Хмельницького, буд. 64",84,2019-10-31,166,"Заробітна плата, премії","Заробітна плата, лікарняні, вагітності, відрядження, компенсації",344297,Центральний офіс,37724082,Україна,Доплата перерахування заробітної плати за жовтень 2019 відповідно до договору зарплатного проекту№02-10\2015-1 від 2015-10-02 без ПДВ,26002260475,current,50.09,"ПАТ ""Мегабанк""",09804119,юридична особа
НАШ КРАЙ,"Київ, пров. Політехнічний, буд. 5А",62,2019-10-31,162,Сплата ЄСВ,Податкові платежі,344295,Центральний офіс,37724082,Україна,*;101;37724082;сплата єдиного внеску за жовтень 2019 року;;;Без ПДВ,26002260475,current,1147.58,ДПІ у Шевченківському районі у м. Києві,39561761,юридична особа
НАШ КРАЙ,"Київ, вул. Академіка Туполєва, буд. 28А",63,2019-10-31,163,Податок на доходи,Податкові платежі,344294,Центральний офіс,37724082,Україна,*;101;37724082;Податок на доходи найм. працівників за жовтень 2019 року;;;Без ПДВ,26002260475,current,938.93,УДКСУ у Шевченківському районі м. Києва,37995466,юридична особа
НАШ КРАЙ,"Київ, вул. Академіка Туполєва, буд. 28А",63,2019-10-31,168,Податок на доходи,Податкові платежі,344293,Центральний офіс,37724082,Україна,*;101;37724082;доплата Податок на доходи найм. працівників за жовтень 2019 року;;;Без ПДВ,26002260475,current,11.20,Центральний офіс Наш край,37724082,юридична особа
НАШ КРАЙ,"Київ, пров. Політехнічний, буд. 5А",62,2019-10-31,167,Сплата ЄСВ,Податкові платежі,344292,Центральний офіс,37724082,Україна,*;101;37724082;доплата єдиного внеску за жовтень 2019 року;;;Без ПДВ,26002260475,current,13.69,ДПІ у Шевченківському районі у м. Києві,39561761,юридична особа
НАШ КРАЙ,"Київ, вул. Богдана Хмельницького, буд. 64",61,2019-10-31,169,Військовий збір,Податкові платежі,344291,Центральний офіс,37724082,Україна,*;101;37724082;доплата Військовій збір з доходів найм.працівників за жоавтень 2019 року;;;Без ПДВ,26002260475,current,0.93,"ПАТ ""Мегабанк""",09804119,юридична особа
НАШ КРАЙ,"Київ, вул. Академіка Туполєва, буд. 28А",61,2019-10-31,164,Військовий збір,Податкові платежі,344290,Центральний офіс,37724082,Україна,*;101;37724082;Військовій збір з доходів найм.працівників за жовтень 2019 року;;;Без ПДВ,26002260475,current,78.25,УДКСУ у Шевченківському районі м. Києва,37995466,юридична особа
НАШ КРАЙ,"Полтавська обл., Полтава, вул. Пушкіна, буд. 115",79,2019-10-28,82,"Оренда будинків і приміщень та експлуатаційні витрати (прибирання, страхування орендованих будинків, охорона, сигналізація, ремонт, вивіз сміття, тощо)",Оренда нерухомості,345406,Полтавська обласна організація,40024231,Полтавська область,"Оренда приміщення зг. рах №1074 від 15.10.19 в т.ч. ПДВ 638,45 грн",UA153516290000000260011601190,current,3830.68,Управління майном Полтавської облради,24386961,юридична особа
НАШ КРАЙ,"Полтавська обл., Полтава, вул. Зигіна, буд. 32А",79,2019-10-28,84,"Оренда будинків і приміщень та експлуатаційні витрати (прибирання, страхування орендованих будинків, охорона, сигналізація, ремонт, вивіз сміття, тощо)",Оренда нерухомості,345405,Полтавська обласна організація,40024231,Полтавська область,"Послуги охорони зг дог №1990/17 від 2019-09-22, рах №10241 від 02.10.19 в т.ч. ПДВ 75,00 грн",UA153516290000000260011601190,current,450.00,Управління поліції охорони в Полтавській області,40109042,юридична особа
НАШ КРАЙ,"Полтавська обл., Полтава, вул. Пушкіна, буд. 115",79,2019-10-28,83,"Оренда будинків і приміщень та експлуатаційні витрати (прибирання, страхування орендованих будинків, охорона, сигналізація, ремонт, вивіз сміття, тощо)",Оренда нерухомості,345404,Полтавська обласна організація,40024231,Полтавська область,Відшкодування витрат за спожиту електроенергію по рах №981 від 01.10.19 без ПДВ,UA153516290000000260011601190,current,185.96,Управління майном Полтавської облради,24386961,юридична особа
НАШ КРАЙ,"Полтавська обл., Полтава, вул. Пушкіна, буд. 115",60,2019-10-28,81,Інші податки,Податкові платежі,345403,Полтавська обласна організація,40024231,Полтавська область,Відшкодування земельного податку за зг рах №1026 від 15.10.19 без ПДВ,UA153516290000000260011601190,current,174.64,Управління майном Полтавської облради,24386961,юридична особа
НАШ КРАЙ,"Полтавська обл., Полтава, вул. Пушкіна, буд. 115",79,2019-10-28,85,"Оренда будинків і приміщень та експлуатаційні витрати (прибирання, страхування орендованих будинків, охорона, сигналізація, ремонт, вивіз сміття, тощо)",Оренда нерухомості,345402,Полтавська обласна організація,40024231,Полтавська область,Відшкодування витрат за водопостачання по рах №1005 від 10.10.19 без ПДВ,UA153516290000000260011601190,current,93.24,Управління майном Полтавської облради,24386961,юридична особа
НАШ КРАЙ,"Київ, вул. Богдана Хмельницького, буд. 64",70,2019-10-28,RC01938_422,Банківські послуги,Інші витрати,345401,Полтавська обласна організація,40024231,Полтавська область,Списання коштів за банківське обслуговування згідно договору 57,UA153516290000000260011601190,current,15.00,"ПАТ ""Мегабанк""",09804119,юридична особа
НАШ КРАЙ,"Київ, вул. Богдана Хмельницького, буд. 64",70,2019-10-22,3247_6,Банківські послуги,Інші витрати,344659,Донецька обласна організація,39878456,Донецька область,Нарахування комісії за видачу довідки про рух коштів по поточному рахунку зг.дог.№1 до договору №167 від 2015-09-22р.,26000040299,current,100.00,"ПАТ ""Мегабанк""",09804119,юридична особа
НАШ КРАЙ,"Миколаївська обл., Южноукраїнськ, вул. Паркова, буд. 5",79,2019-10-21,205,"Оренда будинків і приміщень та експлуатаційні витрати (прибирання, страхування орендованих будинків, охорона, сигналізація, ремонт, вивіз сміття, тощо)",Оренда нерухомості,345274,Миколаївська обласна організація,39956738,Миколаївська область,оренда приміщення,26003140602,current,196.78,"КП ""Житлово-експлутаційне обʼєднання”",31537375,юридична особа
НАШ КРАЙ,,62,2019-10-21,213,Сплата ЄСВ,Податкові платежі,345273,Миколаївська обласна організація,39956738,Миколаївська область,ЄСВ на ЗП (22%),26003140602,current,1650.00,ДПІ у Центральному районі м. Миколаєва ГУ ДФС у Миколаївській області,39554010,юридична особа
НАШ КРАЙ,,63,2019-10-21,214,Податок на доходи,Податкові платежі,345272,Миколаївська обласна організація,39956738,Миколаївська область,ПДФО із ЗП,26003140602,current,1350.00,УДКСУ у м. Миколаєві,37992781,юридична особа
НАШ КРАЙ,,61,2019-10-21,215,Військовий збір,Податкові платежі,345271,Миколаївська обласна організація,39956738,Миколаївська область,військовий збір із ЗП,26003140602,current,150.00,УДКСУ у м. Миколаєві,37992781,юридична особа
НАШ КРАЙ,"Київ, вул. Богдана Хмельницького, буд. 64",70,2019-10-21,RCO1938_50,Банківські послуги,Інші витрати,345270,Миколаївська обласна організація,39956738,Миколаївська область,банківське обслуговування,26003140602,current,11.00,"ПАТ ""Мегабанк""",09804119,юридична особа
НАШ КРАЙ,"Миколаївська обл., Березнегуватський р-н, Березнегувате",79,2019-10-21,212,"Оренда будинків і приміщень та експлуатаційні витрати (прибирання, страхування орендованих будинків, охорона, сигналізація, ремонт, вивіз сміття, тощо)",Оренда нерухомості,345062,Миколаївська обласна організація,39956738,Миколаївська область,сплата за оренду приміщення,26003140602,current,1000.00,Чайка Оксана Миколаївна,,фізична особа
НАШ КРАЙ,"Миколаївська обл., Миколаїв",84,2019-10-21,217,"Заробітна плата, премії","Заробітна плата, лікарняні, вагітності, відрядження, компенсації",345061,Миколаївська обласна організація,39956738,Миколаївська область,виплата заробітної плати,26003140602,current,3000.00,Рой Юлія Ігорівна,,фізична особа
НАШ КРАЙ,"Миколаївська обл., Миколаїв, вул. Адміральська",84,2019-10-21,216,"Заробітна плата, премії","Заробітна плата, лікарняні, вагітності, відрядження, компенсації",345060,Миколаївська обласна організація,39956738,Миколаївська область,виплата заробітної плати,26003140602,current,3000.00,Остапчук Ольга Миколаївна,,фізична особа
НАШ КРАЙ,"Київ, вул. Богдана Хмельницького, буд. 64",70,2019-10-21,RCO1938_507,Банківські послуги,Інші витрати,344289,Центральний офіс,37724082,Україна,Списання коштiв за банкiвське обслуговування згiдно договоpу 71/2015 від 2015-09-15 р.,26002260475,current,5.00,"ПАТ ""Мегабанк""",09804119,юридична особа
НАШ КРАЙ,"Київ, вул. Бастіонна, буд. 6",60,2019-10-21,159,Інші податки,Податкові платежі,344288,Центральний офіс,37724082,Україна,"*;170;22010300; Адмін.збір за держ.реєстр.змін до відомостей про юр.особу, що міст. в ЄДР. Політична партія ʼНАШ КРАЙʼ, без ПДВ",26002260475,current,580.00,ДКСУ,37567646,юридична особа
НАШ КРАЙ,"Київ, вул. Богдана Хмельницького, буд. 64",70,2019-10-08,RC01953,Банківські послуги,Інші витрати,345621,Херсонська обласна організація,39833792,Херсонська область,Списання коштів за банківське обслуговування згідно договору 887,UA353516290000000026004210887,current,100.00,"ПАТ ""Мегабанк""",09804119,юридична особа
НАШ КРАЙ,"Миколаївська обл., Миколаїв, вул. Георгія Гонгадзе, буд. 3",49,2019-10-08,194,Публікування матеріалів у друкованих ЗМІ,Реклама в друкованих ЗМІ,345269,Миколаївська обласна організація,39956738,Миколаївська область,"Сплата за друк газети ""Наш край-Миколаївщина""",26003140602,current,13637.00,КП Миколаївська областна друкарня,02467676,юридична особа
НАШ КРАЙ,"Миколаївська обл., Кривоозерський р-н, Криве Озеро",79,2019-10-08,210,"Оренда будинків і приміщень та експлуатаційні витрати (прибирання, страхування орендованих будинків, охорона, сигналізація, ремонт, вивіз сміття, тощо)",Оренда нерухомості,345268,Миколаївська обласна організація,39956738,Миколаївська область,сплата за оренду приміщення,26003140602,current,2027.00,"ТОВ ""Вікторія-союз""",35596853,юридична особа
НАШ КРАЙ,"Київ, вул. Богдана Хмельницького, буд. 64",70,2019-10-08,RCO1953_45,Банківські послуги,Інші витрати,345267,Миколаївська обласна організація,39956738,Миколаївська область,банківське обслуговування,26003140602,current,9.00,"ПАТ ""Мегабанк""",09804119,юридична особа
НАШ КРАЙ,"Миколаївська обл., Баштанський р-н, Баштанка",79,2019-10-08,211,"Оренда будинків і приміщень та експлуатаційні витрати (прибирання, страхування орендованих будинків, охорона, сигналізація, ремонт, вивіз сміття, тощо)",Оренда нерухомості,345059,Миколаївська обласна організація,39956738,Миколаївська область,сплата за оренду приміщення,26003140602,current,750.00,Федорова Антоніна Павлівна,,фізична особа
НАШ КРАЙ,"Київ, вул. Богдана Хмельницького, буд. 64",70,2019-10-07,RCO1933_55,Банківські послуги,Інші витрати,345266,Миколаївська обласна організація,39956738,Миколаївська область,банківське обслуговування,26003140602,current,100.00,"ПАТ ""Мегабанк""",09804119,юридична особа
НАШ КРАЙ,"Київ, вул. Богдана Хмельницького, буд. 64",70,2019-10-07,2339_1,Банківські послуги,Інші витрати,344939,Львівська обласна організація,39981738,Львівська область,За довідку,26006130675,current,100.00,"ПАТ ""Мегабанк""",09804119,юридична особа
НАШ КРАЙ,"Запорізька обл., Запоріжжя, просп. Соборний, буд. 111",79,2019-10-07,п/д № 24,"Оренда будинків і приміщень та експлуатаційні витрати (прибирання, страхування орендованих будинків, охорона, сигналізація, ремонт, вивіз сміття, тощо)",Оренда нерухомості,344832,Запорізька обласна організація,39968366,Запорізька область,"Сплата за оренду приміщення згід.Дог.№ 8 від 2017-03-01 р. В т.ч. ПДВ 83,60 грн.",UA113139570000026000300238443,current,501.60,"Спільне українсько-німецьке підприємство ""Саксонія ГМБХ""",19364710,юридична особа
НАШ КРАЙ,,62,2019-10-04,201,Сплата ЄСВ,Податкові платежі,345265,Миколаївська обласна організація,39956738,Миколаївська область,ЄСВ на відпускні (22%),26003140602,current,900.00,ДПІ у Центральному районі м. Миколаєва ГУ ДФС у Миколаївській області,39554010,юридична особа
НАШ КРАЙ,,63,2019-10-04,202,Податок на доходи,Податкові платежі,345264,Миколаївська обласна організація,39956738,Миколаївська область,ПДФО із вдпускних за 2018-2019,26003140602,current,750.00,УДКСУ у м. Миколаєві,37992781,юридична особа
НАШ КРАЙ,,62,2019-10-04,196,Сплата ЄСВ,Податкові платежі,345263,Миколаївська обласна організація,39956738,Миколаївська область,ЄСВ на ЗП (22%),26003140602,current,700.00,ДПІ у Центральному районі м. Миколаєва ГУ ДФС у Миколаївській області,39554010,юридична особа
НАШ КРАЙ,,63,2019-10-04,195,Податок на доходи,Податкові платежі,345262,Миколаївська обласна організація,39956738,Миколаївська область,ПДФО із ЗП,26003140602,current,560.00,УДКСУ у м. Миколаєві,37992781,юридична особа
НАШ КРАЙ,,61,2019-10-04,203,Військовий збір,Податкові платежі,345261,Миколаївська обласна організація,39956738,Миколаївська область,військовий збір із відпускних,26003140602,current,65.00,УДКСУ у м. Миколаєві,37992781,юридична особа
НАШ КРАЙ,,61,2019-10-04,197,Військовий збір,Податкові платежі,345260,Миколаївська обласна організація,39956738,Миколаївська область,військовий збір із ЗП,26003140602,current,50.00,УДКСУ у м. Миколаєві,37992781,юридична особа
НАШ КРАЙ,"Київ, вул. Богдана Хмельницького, буд. 64",70,2019-10-04,RCO1937_52,Банківські послуги,Інші витрати,345259,Миколаївська обласна організація,39956738,Миколаївська область,банківське обслуговування,26003140602,current,42.00,"ПАТ ""Мегабанк""",09804119,юридична особа
НАШ КРАЙ,"Миколаївська обл., Миколаїв",84,2019-10-04,199,"Заробітна плата, премії","Заробітна плата, лікарняні, вагітності, відрядження, компенсації",345058,Миколаївська обласна організація,39956738,Миколаївська область,виплата заробітної плати,26003140602,current,598.01,Рой Юлія Ігорівна,,фізична особа
НАШ КРАЙ,"Миколаївська обл., Миколаїв",84,2019-10-04,198,"Заробітна плата, премії","Заробітна плата, лікарняні, вагітності, відрядження, компенсації",345057,Миколаївська обласна організація,39956738,Миколаївська область,виплата заробітної плати,26003140602,current,713.01,Остапчук Ольга Миколаївна,,фізична особа
НАШ КРАЙ,"Миколаївська обл., Новоодеський р-н, Нова Одеса",83,2019-10-04,204,"Виплати працівникам (не зарплата): лікарняні, вагітності, відрядження, компенсації ","Заробітна плата, лікарняні, вагітності, відрядження, компенсації",345056,Миколаївська обласна організація,39956738,Миколаївська область,виплата звідпускних за 2018-2019р.,26003140602,current,3239.48,Торопенко Денис Сергійович,,фізична особа
НАШ КРАЙ,"Миколаївська обл., Новоодеський р-н, Нова Одеса",84,2019-10-04,200,"Заробітна плата, премії","Заробітна плата, лікарняні, вагітності, відрядження, компенсації",345055,Миколаївська обласна організація,39956738,Миколаївська область,виплата заробітної плати,26003140602,current,1186.02,Торопенко Денис Сергійович,,фізична особа
НАШ КРАЙ,"Миколаївська обл., Снігурівський р-н, Снігурівка, вул. Каховська, буд. 1",79,2019-10-04,207,"Оренда будинків і приміщень та експлуатаційні витрати (прибирання, страхування орендованих будинків, охорона, сигналізація, ремонт, вивіз сміття, тощо)",Оренда нерухомості,345054,Миколаївська обласна організація,39956738,Миколаївська область,сплата за оренду приміщення,26003140602,current,420.00,Зіньковська Юлія Сергіївна,3098319420,фізична особа
НАШ КРАЙ,"Миколаївська обл., Казанківський р-н, Казанка, вул. Миру, буд. 190",79,2019-10-04,208,"Оренда будинків і приміщень та експлуатаційні витрати (прибирання, страхування орендованих будинків, охорона, сигналізація, ремонт, вивіз сміття, тощо)",Оренда нерухомості,345053,Миколаївська обласна організація,39956738,Миколаївська область,сплата за оренду приміщення,26003140602,current,300.00,Маляр Валерій Миколайович,2513206992,фізична особа
НАШ КРАЙ,"Миколаївська обл., Єланецький р-н, Єланець",79,2019-10-04,206,"Оренда будинків і приміщень та експлуатаційні витрати (прибирання, страхування орендованих будинків, охорона, сигналізація, ремонт, вивіз сміття, тощо)",Оренда нерухомості,345052,Миколаївська обласна організація,39956738,Миколаївська область,сплата за оренду приміщення,26003140602,current,200.00,Андросюк Микола Миколайович,,фізична особа
НАШ КРАЙ,"Миколаївська обл., Снігурівський р-н, Новопетрівка",79,2019-10-04,209,"Оренда будинків і приміщень та експлуатаційні витрати (прибирання, страхування орендованих будинків, охорона, сигналізація, ремонт, вивіз сміття, тощо)",Оренда нерухомості,345051,Миколаївська обласна організація,39956738,Миколаївська область,сплата за оренду приміщення,26003140602,current,100.00,Кваша Володимир Миколайович,,фізична особа
НАШ КРАЙ,"Луганська обл., Лисичанськ, просп. Перемоги, буд. 111",79,2019-10-04,2,"Оренда будинків і приміщень та експлуатаційні витрати (прибирання, страхування орендованих будинків, охорона, сигналізація, ремонт, вивіз сміття, тощо)",Оренда нерухомості,344931,Луганська обласна організація,39966023,Луганська область,плата за оренду приміщення під офіс,UA273204780000000026008288858,current,2000.00,Кісельова Надія Геннадіївна,2162109962,фізична особа
НАШ КРАЙ,"Київ, вул. Єреванська, буд. 1",70,2019-10-04,TR3038911 36659240,Банківські послуги,Інші витрати,344930,Луганська обласна організація,39966023,Луганська область,Списання коштів за банківське обслуговування,UA273204780000000026008288858,current,10.00,"АБ ""Укргазбанк""",23697280,юридична особа
НАШ КРАЙ,"Київ, вул. Богдана Хмельницького, буд. 64",70,2019-10-03,RCO1953_423,Банківські послуги,Інші витрати,345593,Харківська обласна організація,39972241,Харківська область,За банківське обслуговування,UA033516290000000002600012178,current,1.00,"ПАТ ""Мегабанк""",09804119,юридична особа
НАШ КРАЙ,"Харківська обл., Харків, просп. Гагаріна, буд. 169Б, 28",79,2019-10-03,185,"Оренда будинків і приміщень та експлуатаційні витрати (прибирання, страхування орендованих будинків, охорона, сигналізація, ремонт, вивіз сміття, тощо)",Оренда нерухомості,345466,Харківська обласна організація,39972241,Харківська область,За оренду приміщення,UA033516290000000002600012178,current,6550.00,Манукян Арпіне Араіківна,3279004761,фізична особа
НАШ КРАЙ,"Київ, вул. Богдана Хмельницького, буд. 64",70,2019-10-01,RCO2014_1375,Банківські послуги,Інші витрати,345592,Харківська обласна організація,39972241,Харківська область,За банківське обслуговування,UA033516290000000002600012178,current,125.00,"ПАТ ""Мегабанк""",09804119,юридична особа
НАШ КРАЙ,"Київ, вул. Богдана Хмельницького, буд. 64",70,2019-10-01,RC02014_1386,Банківські послуги,Інші витрати,345400,Полтавська обласна організація,40024231,Полтавська область,Списання коштів за банківське обслуговування згідно договору 57,UA153516290000000260011601190,current,100.00,"ПАТ ""Мегабанк""",09804119,юридична особа
НАШ КРАЙ,"Київ, вул. Богдана Хмельницького, буд. 64",70,2019-10-01,RCO2014_13,Банківські послуги,Інші витрати,345258,Миколаївська обласна організація,39956738,Миколаївська область,банківське обслуговування,26003140602,current,125.00,"ПАТ ""Мегабанк""",09804119,юридична особа
НАШ КРАЙ,"Київ, вул. Богдана Хмельницького, буд. 64",70,2019-10-01,RCO2014_1380,Банківські послуги,Інші витрати,344903,Київська міська організація,39812835,Київ,Списання коштiв за банкiвське обслуговування згiдно договоpу 73/2015 від 2015-09-18 р.,26000260477,current,50.00,"ПАТ ""Мегабанк""",09804119,юридична особа
НАШ КРАЙ,"Запорізька обл., Запоріжжя, просп. Соборний, буд. 48",70,2019-10-01,№ 5402516209,Банківські послуги,Інші витрати,344831,Запорізька обласна організація,39968366,Запорізька область,За видачу довідки про рух грошових коштів згідно тарифів банку.Без ПДВ.,UA113139570000026000300238443,current,150.00,"Запорізька обласна філія АТ ""Ощадбанк""",02760363,юридична особа
НАШ КРАЙ,"Запорізька обл., Запоріжжя, просп. Соборний, буд. 111",70,2019-10-01,№ 5411469209,Банківські послуги,Інші витрати,344830,Запорізька обласна організація,39968366,Запорізька область,Списание щомісячної плати за обслуговування ТП Мій бізнес за вересень 2019 р.. Без ПДВ.,UA113139570000026000300238443,current,149.00,Запорізька обласна організація Наш край,39968366,юридична особа
НАШ КРАЙ,"Київ, вул. Михайла Грушевського, буд. 1",70,2019-10-01,AN99U00B1P,Банківські послуги,Інші витрати,344716,Закарпатська обласна організація,39994726,Закарпатська область,Комісія за ослуговування рахунку,26000053915382,current,100.00,"ПАТ КБ ""Приватбанк""",14360570,юридична особа
НАШ КРАЙ,"Київ, вул. Богдана Хмельницького, буд. 64",70,2019-10-01,RCO2014,Банківські послуги,Інші витрати,344658,Донецька обласна організація,39878456,Донецька область,Списання коштів за банківське обслуговування,26000040299,current,125.00,"ПАТ ""Мегабанк""",09804119,юридична особа
НАШ КРАЙ,"Київ, вул. Богдана Хмельницького, буд. 64",70,2019-10-01,RCO2014_1376,Банківські послуги,Інші витрати,344287,Центральний офіс,37724082,Україна,Списання коштiв за банкiвське обслуговування згiдно договоpу 71/2015 від 2015-09-15 р.,26002260475,current,50.00,"ПАТ ""Мегабанк""",09804119,юридична особа
НАШ КРАЙ,"Харківська обл., Дергачівський р-н, Дергачі, вул. Перемоги, буд. 14",79,2019-09-30,182,"Оренда будинків і приміщень та експлуатаційні витрати (прибирання, страхування орендованих будинків, охорона, сигналізація, ремонт, вивіз сміття, тощо)",Оренда нерухомості,345591,Харківська обласна організація,39972241,Харківська область,"За послуги по приміщенню, що орендується",UA033516290000000002600012178,current,158.65,"ПП ""Ампір 2008""",35876460,юридична особа
НАШ КРАЙ,"Харківська обл., Дергачівський р-н, Дергачі, вул. Перемоги, буд. 14",79,2019-09-30,183,"Оренда будинків і приміщень та експлуатаційні витрати (прибирання, страхування орендованих будинків, охорона, сигналізація, ремонт, вивіз сміття, тощо)",Оренда нерухомості,345590,Харківська обласна організація,39972241,Харківська область,"За послуги по приміщенню, що орендується",UA033516290000000002600012178,current,92.49,"ПП ""Ампір 2008""",35876460,юридична особа
НАШ КРАЙ,"Харківська обл., Дергачівський р-н, Дергачі, вул. Перемоги, буд. 14",79,2019-09-30,184,"Оренда будинків і приміщень та експлуатаційні витрати (прибирання, страхування орендованих будинків, охорона, сигналізація, ремонт, вивіз сміття, тощо)",Оренда нерухомості,345589,Харківська обласна організація,39972241,Харківська область,"За послуги по приміщенню, що орендується",UA033516290000000002600012178,current,49.68,"ПП ""Ампір 2008""",35876460,юридична особа
НАШ КРАЙ,"Київ, вул. Богдана Хмельницького, буд. 64",70,2019-09-30,RCO2042_798,Банківські послуги,Інші витрати,345588,Харківська обласна організація,39972241,Харківська область,За банківське обслуговування,UA033516290000000002600012178,current,3.00,"ПАТ ""Мегабанк""",09804119,юридична особа
НАШ КРАЙ,"Донецька обл., Словʼянський р-н, Словʼянськ",62,2019-09-30,372,Сплата ЄСВ,Податкові платежі,344657,Донецька обласна організація,39878456,Донецька область,Нарахування ЄСВ 22% на з/пл за вересень 2019р.,26000040299,current,1404.47,Словʼянська ОДПІ ГУ ДФС у Донецькій області,39883094,юридична особа
НАШ КРАЙ,"Донецька обл., Словʼянський р-н, Словʼянськ",63,2019-09-30,373,Податок на доходи,Податкові платежі,344656,Донецька обласна організація,39878456,Донецька область,ПДФО утриманий із з/пл за вересень 2019р.,26000040299,current,961.32,УДКСУ у м. Словʼянську Донецької області,37803368,юридична особа
НАШ КРАЙ,"Донецька обл., Словʼянський р-н, Словʼянськ",61,2019-09-30,371,Військовий збір,Податкові платежі,344655,Донецька обласна організація,39878456,Донецька область,"Військовий збір 1,5% утриманий із з/пл за вересень 2019р.",26000040299,current,80.11,УДКСУ у м. Словʼянську Донецької області,37803368,юридична особа
НАШ КРАЙ,"Київ, вул. Богдана Хмельницького, буд. 64",70,2019-09-30,TR.15558,Банківські послуги,Інші витрати,344654,Донецька обласна організація,39878456,Донецька область,Сплата комісії за банківське обслуговування,26000040299,current,43.87,"ПАТ ""Мегабанк""",09804119,юридична особа
НАШ КРАЙ,"Київ, вул. Богдана Хмельницького, буд. 64",70,2019-09-30,RCO2042,Банківські послуги,Інші витрати,344653,Донецька обласна організація,39878456,Донецька область,Списання коштів за банківське обслуговування,26000040299,current,9.00,"ПАТ ""Мегабанк""",09804119,юридична особа
НАШ КРАЙ,"Донецька обл., Словʼянський р-н, Словʼянськ",84,2019-09-30,276,"Заробітна плата, премії","Заробітна плата, лікарняні, вагітності, відрядження, компенсації",344415,Донецька обласна організація,39878456,Донецька область,Заробітна плата за вересень 2019р.,26000040299,current,1729.72,Єжова Н Л,,фізична особа
НАШ КРАЙ,"Донецька обл., Словʼянський р-н, Словʼянськ",84,2019-09-30,267,"Заробітна плата, премії","Заробітна плата, лікарняні, вагітності, відрядження, компенсації",344414,Донецька обласна організація,39878456,Донецька область,Заробітна плата за вересень 2019р.,26000040299,current,1679.63,Макогон Ю П,,фізична особа
НАШ КРАЙ,"Донецька обл., Словʼянський р-н, Словʼянськ",84,2019-09-30,266,"Заробітна плата, премії","Заробітна плата, лікарняні, вагітності, відрядження, компенсації",344413,Донецька обласна організація,39878456,Донецька область,Заробітна плата за вересень 2019р.,26000040299,current,976.64,Шумакова А О,,фізична особа
НАШ КРАЙ,"Київ, вул. Богдана Хмельницького, буд. 64",70,2019-09-26,RCO1932_,Банківські послуги,Інші витрати,345257,Миколаївська обласна організація,39956738,Миколаївська область,банківське обслуговування,26003140602,current,1.00,"ПАТ ""Мегабанк""",09804119,юридична особа
НАШ КРАЙ,"Миколаївська обл., Миколаїв",57,2019-09-26,193,Виготовлення брендованої продукції,"Виготовлення брендованої продукції (футболки, кепки, парасольки)",345050,Миколаївська обласна організація,39956738,Миколаївська область,Сплата за брендовану продукцію,26003140602,current,3998.00,Вілінська Анастасія Петрівна,,фізична особа
НАШ КРАЙ,"Київ, вул. Богдана Хмельницького, буд. 64",84,2019-09-26,66,"Заробітна плата, премії","Заробітна плата, лікарняні, вагітності, відрядження, компенсації",344902,Київська міська організація,39812835,Київ,Перерахунок зар.плати за вересень 2019р. відповідно до договору зарплатного проекту №02-10/2015-2 від 2015-10-02 без ПДВ,26000260477,current,2544.49,"ПАТ ""Мегабанк""",09804119,юридична особа
НАШ КРАЙ,"Київ, пров. Політехнічний, буд. 5А",62,2019-09-26,67,Сплата ЄСВ,Податкові платежі,344901,Київська міська організація,39812835,Київ,*;101;39812835;сплата єдиного внеску за вересень 2019 року;;;Без ПДВ,26000260477,current,1147.58,ДПІ у Шевченківському районі у м. Києві,39561761,юридична особа
НАШ КРАЙ,"Київ, вул. Академіка Туполєва, буд. 28А",63,2019-09-26,68,Податок на доходи,Податкові платежі,344900,Київська міська організація,39812835,Київ,*;101;39812835;Податок на доходи найм.працівників за вересень 2019 року;;;Без ПДВ,26000260477,current,568.96,УДКСУ у Шевченківському районі м. Києва,37995466,юридична особа
НАШ КРАЙ,"Київ, вул. Академіка Туполєва, буд. 28А",61,2019-09-26,69,Військовий збір,Податкові платежі,344899,Київська міська організація,39812835,Київ,*;101;39812835;Військовий збір з доходів найм.працівників за вересень 2019 року;;; Без ПДВ,26000260477,current,47.41,УДКСУ у Шевченківському районі м. Києва,37995466,юридична особа
НАШ КРАЙ,"Київ, вул. Богдана Хмельницького, буд. 64",70,2019-09-26,TR.1419161.4795,Банківські послуги,Інші витрати,344898,Київська міська організація,39812835,Київ,Сплата комісії за банківське обслуговування зг. Дог.№ 02-10/2015-2 від 2015-10-02,26000260477,current,25.44,"ПАТ ""Мегабанк""",09804119,юридична особа
НАШ КРАЙ,"Київ, вул. Богдана Хмельницького, буд. 64",70,2019-09-26,RCO1932_406,Банківські послуги,Інші витрати,344897,Київська міська організація,39812835,Київ,Списання коштiв за банкiвське обслуговування згiдно договоpу 73/2015 від 2015-09-18 р.,26000260477,current,3.00,"ПАТ ""Мегабанк""",09804119,юридична особа
НАШ КРАЙ,"Київ, вул. Мечникова, буд. 6",68,2019-09-26,158,Соцдослідження,"Гонорари, в тому числі за надані консультаційні послуги",344285,Центральний офіс,37724082,Україна,за надання послуг з питань організації діяльності Call-центру та його підтримки.Відповідно до договору 287\5від 2016-05-04 (рах.№8від31.08.19) без ПДВ,26002260475,current,21001.46,"ТОВ ""КЕНД-К ГРУП""",39794078,юридична особа
НАШ КРАЙ,"Київ, вул. Богдана Хмельницького, буд. 64",84,2019-09-26,154,"Заробітна плата, премії","Заробітна плата, лікарняні, вагітності, відрядження, компенсації",344284,Центральний офіс,37724082,Україна,Перерахування заробітної плати за вересень 2019 відповідно до договору зарплатного проекту№02-10\2015-1 від 2015-10-02 без ПДВ,26002260475,current,4249.16,"ПАТ ""Мегабанк""",09804119,юридична особа
НАШ КРАЙ,"Київ, пров. Політехнічний, буд. 5А",62,2019-09-26,155,Сплата ЄСВ,Податкові платежі,344283,Центральний офіс,37724082,Україна,*;101;37724082;сплата єдиного внеску за вересень 2019 року;;;Без ПДВ,26002260475,current,1161.27,ДПІ у Шевченківському районі у м. Києві,39561761,юридична особа
НАШ КРАЙ,"Київ, вул. Академіка Туполєва, буд. 28А",63,2019-09-26,156,Податок на доходи,Податкові платежі,344282,Центральний офіс,37724082,Україна,*;101;37724082;Податок на доходи найм. працівників за вересень 2019 року;;;Без ПДВ,26002260475,current,950.13,УДКСУ у Шевченківському районі м. Києва,37995466,юридична особа
НАШ КРАЙ,"Київ, вул. Академіка Туполєва, буд. 28А",61,2019-09-26,157,Військовий збір,Податкові платежі,344281,Центральний офіс,37724082,Україна,*;101;37724082;Військовій збір з доходів найм.працівників за вересень 2019 року;;;Без ПДВ,26002260475,current,79.18,УДКСУ у Шевченківському районі м. Києва,37995466,юридична особа
НАШ КРАЙ,"Київ, вул. Богдана Хмельницького, буд. 64",70,2019-09-26,TR.1419259.4798,Банківські послуги,Інші витрати,344280,Центральний офіс,37724082,Україна,Сплата комісії за банківське обслуговування зг. Дог.№ 02-10/2015-1 від 2015-10-02,26002260475,current,42.49,"ПАТ ""Мегабанк""",09804119,юридична особа
НАШ КРАЙ,"Київ, вул. Богдана Хмельницького, буд. 64",70,2019-09-26,RCO1932_404,Банківські послуги,Інші витрати,344279,Центральний офіс,37724082,Україна,Списання коштiв за банкiвське обслуговування згiдно договоpу 71/2015 від 2015-09-15 р.,26002260475,current,5.00,"ПАТ ""Мегабанк""",09804119,юридична особа
НАШ КРАЙ,"Полтавська обл., Полтава, вул. Пушкіна, буд. 115",79,2019-09-25,79,"Оренда будинків і приміщень та експлуатаційні витрати (прибирання, страхування орендованих будинків, охорона, сигналізація, ремонт, вивіз сміття, тощо)",Оренда нерухомості,345399,Полтавська обласна організація,40024231,Полтавська область,Оренда приміщення зг. рах №592 від 2019-06-14,UA153516290000000260011601190,current,3975.56,Управління майном Полтавської облради,24386961,юридична особа
НАШ КРАЙ,"Полтавська обл., Полтава, вул. Зигіна, буд. 32А",79,2019-09-25,75,"Оренда будинків і приміщень та експлуатаційні витрати (прибирання, страхування орендованих будинків, охорона, сигналізація, ремонт, вивіз сміття, тощо)",Оренда нерухомості,345398,Полтавська обласна організація,40024231,Полтавська область,"Послуги охорони, зг дог №1990/17 від 22.09.17, рах №9200 від 2019-09-03",UA153516290000000260011601190,current,450.00,Управління поліції охорони в Полтавській області,40109042,юридична особа
НАШ КРАЙ,"Полтавська обл., Полтава, вул. Пушкіна, буд. 115",60,2019-09-25,78,Інші податки,Податкові платежі,345397,Полтавська обласна організація,40024231,Полтавська область,Відшкодування земельного податку зазг рах №904 вфд 13.09.19,UA153516290000000260011601190,current,172.71,Управління майном Полтавської облради,24386961,юридична особа
НАШ КРАЙ,"Полтавська обл., Полтава, вул. Пушкіна, буд. 115",79,2019-09-25,77,"Оренда будинків і приміщень та експлуатаційні витрати (прибирання, страхування орендованих будинків, охорона, сигналізація, ремонт, вивіз сміття, тощо)",Оренда нерухомості,345396,Полтавська обласна організація,40024231,Полтавська область,Відшкодування витрат за спожиту електроенергію по рах №860 від 2019-09-02,UA153516290000000260011601190,current,133.00,Управління майном Полтавської облради,24386961,юридична особа
НАШ КРАЙ,"Полтавська обл., Полтава, вул. Пушкіна, буд. 115",79,2019-09-25,76,"Оренда будинків і приміщень та експлуатаційні витрати (прибирання, страхування орендованих будинків, охорона, сигналізація, ремонт, вивіз сміття, тощо)",Оренда нерухомості,345395,Полтавська обласна організація,40024231,Полтавська область,Відшкодування витрат за водопостачання по рах №898 від 2019-09-02,UA153516290000000260011601190,current,119.74,Управління майном Полтавської облради,24386961,юридична особа
НАШ КРАЙ,"Київ, вул. Богдана Хмельницького, буд. 64",70,2019-09-25,RC01952_431,Банківські послуги,Інші витрати,345394,Полтавська обласна організація,40024231,Полтавська область,Списання коштів за банківське обслуговування згідно договору 57,UA153516290000000260011601190,current,6.00,"ПАТ ""Мегабанк""",09804119,юридична особа
НАШ КРАЙ,"Полтавська обл., Полтава, вул. Кагамлика, буд. 84",79,2019-09-25,80,"Оренда будинків і приміщень та експлуатаційні витрати (прибирання, страхування орендованих будинків, охорона, сигналізація, ремонт, вивіз сміття, тощо)",Оренда нерухомості,345393,Полтавська обласна організація,40024231,Полтавська область,Вивезення та захоронення твердих побутових відходів,UA153516290000000260011601190,current,3.11,Полтавське автотранспортне КП 1628,03351823,юридична особа
НАШ КРАЙ,"Донецька обл., Словʼянський р-н, Словʼянськ",62,2019-09-18,363,Сплата ЄСВ,Податкові платежі,344652,Донецька обласна організація,39878456,Донецька область,Нарахування ЄСВ 22% на з/пл(аванс) за вересень 2019р.,26000040299,current,1390.78,Словʼянська ОДПІ ГУ ДФС у Донецькій області,39883094,юридична особа
НАШ КРАЙ,"Донецька обл., Словʼянський р-н, Словʼянськ",63,2019-09-18,364,Податок на доходи,Податкові платежі,344651,Донецька обласна організація,39878456,Донецька область,ПДФО утриманий із з/пл(аванс) за вересень 2019р.,26000040299,current,1077.33,УДКСУ у м. Словʼянську Донецької області,37803368,юридична особа
НАШ КРАЙ,"Донецька обл., Словʼянський р-н, Словʼянськ",63,2019-09-18,366,Податок на доходи,Податкові платежі,344650,Донецька обласна організація,39878456,Донецька область,ПДФО із доходів Білоусова О.Ю. ІПН 2218706613,26000040299,current,900.00,УДКСУ у м. Словʼянську Донецької області,37803368,юридична особа
НАШ КРАЙ,"Донецька обл., Словʼянський р-н, Словʼянськ",61,2019-09-18,362,Військовий збір,Податкові платежі,344649,Донецька обласна організація,39878456,Донецька область,"Військовий збір 1,5%утриманий із з/пл за вересень 2019р.",26000040299,current,81.27,УДКСУ у м. Словʼянську Донецької області,37803368,юридична особа
НАШ КРАЙ,"Донецька обл., Словʼянський р-н, Словʼянськ",61,2019-09-18,367,Військовий збір,Податкові платежі,344648,Донецька обласна організація,39878456,Донецька область,"Військовий збір 1,5%утриманий із доходів Білоусова О.Ю. ІПН 2218706613",26000040299,current,75.00,УДКСУ у м. Словʼянську Донецької області,37803368,юридична особа
НАШ КРАЙ,"Київ, вул. Богдана Хмельницького, буд. 64",70,2019-09-18,TR.15558,Банківські послуги,Інші витрати,344647,Донецька обласна організація,39878456,Донецька область,Сплата комісії за банківське обслуговування,26000040299,current,42.86,"ПАТ ""Мегабанк""",09804119,юридична особа
НАШ КРАЙ,"Київ, вул. Богдана Хмельницького, буд. 64",70,2019-09-18,RCO1929,Банківські послуги,Інші витрати,344646,Донецька обласна організація,39878456,Донецька область,Списання коштів за банківське обслуговування,26000040299,current,18.00,"ПАТ ""Мегабанк""",09804119,юридична особа
НАШ КРАЙ,"Донецька обл., Словʼянський р-н, Словʼянськ",79,2019-09-18,365,"Оренда будинків і приміщень та експлуатаційні витрати (прибирання, страхування орендованих будинків, охорона, сигналізація, ремонт, вивіз сміття, тощо)",Оренда нерухомості,344412,Донецька обласна організація,39878456,Донецька область,Оплата за оренду вересень 2019р.,26000040299,current,4025.00,Білоусов О Ю,,фізична особа
НАШ КРАЙ,"Донецька обл., Словʼянський р-н, Словʼянськ",84,2019-09-18,359,"Заробітна плата, премії","Заробітна плата, лікарняні, вагітності, відрядження, компенсації",344411,Донецька обласна організація,39878456,Донецька область,Заробітна плата за вересень(аванс) 2019р.,26000040299,current,1679.63,Макогон Ю П,,фізична особа
НАШ КРАЙ,"Донецька обл., Словʼянський р-н, Словʼянськ",84,2019-09-18,361,"Заробітна плата, премії","Заробітна плата, лікарняні, вагітності, відрядження, компенсації",344410,Донецька обласна організація,39878456,Донецька область,Заробітна плата за вересень(аванс) 2019р.,26000040299,current,1679.63,Єжова Н Л,,фізична особа
НАШ КРАЙ,"Донецька обл., Словʼянський р-н, Словʼянськ",84,2019-09-18,360,"Заробітна плата, премії","Заробітна плата, лікарняні, вагітності, відрядження, компенсації",344409,Донецька обласна організація,39878456,Донецька область,Заробітна плата за вересень(аванс) 2019р.,26000040299,current,926.46,Шумакова А О,,фізична особа
НАШ КРАЙ,"Київ, вул. Богдана Хмельницького, буд. 64",70,2019-09-17,RCO1942_,Банківські послуги,Інші витрати,345256,Миколаївська обласна організація,39956738,Миколаївська область,банківське обслуговування,26003140602,current,1.00,"ПАТ ""Мегабанк""",09804119,юридична особа
НАШ КРАЙ,"Миколаївська обл., Миколаїв",84,2019-09-17,192,"Заробітна плата, премії","Заробітна плата, лікарняні, вагітності, відрядження, компенсації",345049,Миколаївська обласна організація,39956738,Миколаївська область,виплата заробітної плати,26003140602,current,3000.00,Торопенко Денис Сергійович,,фізична особа
НАШ КРАЙ,,62,2019-09-16,189,Сплата ЄСВ,Податкові платежі,345255,Миколаївська обласна організація,39956738,Миколаївська область,ЄСВ на ЗП (22%),26003140602,current,825.00,ДПІ у Центральному районі м. Миколаєва ГУ ДФС у Миколаївській області,39554010,юридична особа
НАШ КРАЙ,,63,2019-09-16,190,Податок на доходи,Податкові платежі,345254,Миколаївська обласна організація,39956738,Миколаївська область,ПДФО із ЗП,26003140602,current,680.00,УДКСУ у м. Миколаєві,37992781,юридична особа
НАШ КРАЙ,,61,2019-09-16,191,Військовий збір,Податкові платежі,345253,Миколаївська обласна організація,39956738,Миколаївська область,військовий збір із ЗП,26003140602,current,60.00,УДКСУ у м. Миколаєві,37992781,юридична особа
НАШ КРАЙ,"Київ, вул. Богдана Хмельницького, буд. 64",70,2019-09-16,RCO1930_,Банківські послуги,Інші витрати,345252,Миколаївська обласна організація,39956738,Миколаївська область,банківське обслуговування,26003140602,current,3.00,"ПАТ ""Мегабанк""",09804119,юридична особа
НАШ КРАЙ,"Харківська обл., Харківський р-н, Циркуни, вул. Механізаторська, буд. 11",79,2019-09-11,180,"Оренда будинків і приміщень та експлуатаційні витрати (прибирання, страхування орендованих будинків, охорона, сигналізація, ремонт, вивіз сміття, тощо)",Оренда нерухомості,345587,Харківська обласна організація,39972241,Харківська область,За оренду приміщення,UA033516290000000002600012178,current,4800.00,"ТОВ ""Алькад ЛТД""",22636477,юридична особа
НАШ КРАЙ,"Харківська обл., Дергачівський р-н, Дергачі, вул. Перемоги, буд. 14",79,2019-09-11,181,"Оренда будинків і приміщень та експлуатаційні витрати (прибирання, страхування орендованих будинків, охорона, сигналізація, ремонт, вивіз сміття, тощо)",Оренда нерухомості,345586,Харківська обласна організація,39972241,Харківська область,За оренду приміщення,UA033516290000000002600012178,current,3585.00,"ПП ""Ампір 2008""",35876460,юридична особа
НАШ КРАЙ,"Харківська обл., Сахновщинський р-н, Сахновщина, вул. Леніна, буд. 9",79,2019-09-11,177,"Оренда будинків і приміщень та експлуатаційні витрати (прибирання, страхування орендованих будинків, охорона, сигналізація, ремонт, вивіз сміття, тощо)",Оренда нерухомості,345585,Харківська обласна організація,39972241,Харківська область,За оренду приміщення,UA033516290000000002600012178,current,1100.00,"Підприємство споживчої кооперації ""Коопунівермаг Сахновщинської районної спілки пайовиків ""Кооператив""",01777564,юридична особа
НАШ КРАЙ,"Київ, бульв. Тараса Шевченка, буд. 18",76,2019-09-11,178,Послуги зв’язку,Послуги зв’язку,345584,Харківська обласна організація,39972241,Харківська область,За телекомунiкацiйнi послуги,UA033516290000000002600012178,current,400.00,"ПАТ ""Укртелеком""",21560766,юридична особа
НАШ КРАЙ,"Київ, вул. Богдана Хмельницького, буд. 64",70,2019-09-11,RCO1941_391,Банківські послуги,Інші витрати,345583,Харківська обласна організація,39972241,Харківська область,За банківське обслуговування,UA033516290000000002600012178,current,5.00,"ПАТ ""Мегабанк""",09804119,юридична особа
НАШ КРАЙ,"Харківська обл., Харків, просп. Гагаріна, буд. 169Б, 28",79,2019-09-11,,"Оренда будинків і приміщень та експлуатаційні витрати (прибирання, страхування орендованих будинків, охорона, сигналізація, ремонт, вивіз сміття, тощо)",Оренда нерухомості,345465,Харківська обласна організація,39972241,Харківська область,За оренду приміщення,UA033516290000000002600012178,current,6550.00,Манукян Арпіне Араіківна,3279004761,фізична особа
НАШ КРАЙ,"Донецька обл., Маріуполь",52,2019-09-11,357,Інша реклама (без класифікації),Реклама (без класифікації),344645,Донецька обласна організація,39878456,Донецька область,Оплата за розміщення реклами,26000040299,current,10360.00,Василець Л М,1928807644,фізична особа
НАШ КРАЙ,"Донецька обл., Маріуполь",52,2019-09-11,358,Інша реклама (без класифікації),Реклама (без класифікації),344644,Донецька обласна організація,39878456,Донецька область,Оплата за друк рекламного матеріалу,26000040299,current,6650.00,Єсаян І В,2868316209,фізична особа
НАШ КРАЙ,"Донецька обл., Маріуполь",52,2019-09-11,356,Інша реклама (без класифікації),Реклама (без класифікації),344643,Донецька обласна організація,39878456,Донецька область,Оплата за розміщення реклами,26000040299,current,4800.00,Василець Л М,1928807644,фізична особа
НАШ КРАЙ,"Донецька обл., Маріуполь",52,2019-09-11,355,Інша реклама (без класифікації),Реклама (без класифікації),344642,Донецька обласна організація,39878456,Донецька область,Оплата за демонтаж рекламних матеріалів,26000040299,current,840.00,Василець Л М,1928807644,фізична особа
НАШ КРАЙ,"Київ, вул. Богдана Хмельницького, буд. 64",70,2019-09-11,RCO1941,Банківські послуги,Інші витрати,344641,Донецька обласна організація,39878456,Донецька область,Списання коштів за банківське обслуговування,26000040299,current,20.00,"ПАТ ""Мегабанк""",09804119,юридична особа
НАШ КРАЙ,"Київ, вул. Богдана Хмельницького, буд. 64",70,2019-09-09,RCO1935_,Банківські послуги,Інші витрати,345251,Миколаївська обласна організація,39956738,Миколаївська область,банківське обслуговування,26003140602,current,1.00,"ПАТ ""Мегабанк""",09804119,юридична особа
НАШ КРАЙ,"Миколаївська обл., Баштанський р-н, Баштанка",79,2019-09-09,188,"Оренда будинків і приміщень та експлуатаційні витрати (прибирання, страхування орендованих будинків, охорона, сигналізація, ремонт, вивіз сміття, тощо)",Оренда нерухомості,345048,Миколаївська обласна організація,39956738,Миколаївська область,сплата за оренду приміщення,26003140602,current,750.00,Федорова Антоніна Павлівна,,фізична особа
НАШ КРАЙ,"Миколаївська обл., Кривоозерський р-н, Криве Озеро",79,2019-09-06,175,"Оренда будинків і приміщень та експлуатаційні витрати (прибирання, страхування орендованих будинків, охорона, сигналізація, ремонт, вивіз сміття, тощо)",Оренда нерухомості,345250,Миколаївська обласна організація,39956738,Миколаївська область,сплата за оренду приміщення,26003140602,current,2025.11,"ТОВ ""Вікторія-союз""",35596853,юридична особа
НАШ КРАЙ,"Київ, бульв. Тараса Шевченка, буд. 18",76,2019-09-06,182,Послуги зв’язку,Послуги зв’язку,345249,Миколаївська обласна організація,39956738,Миколаївська область,за телекомунікаційні послуги,26003140602,current,410.00,"ПАТ ""Укртелеком""",21560766,юридична особа
НАШ КРАЙ,,62,2019-09-06,185,Сплата ЄСВ,Податкові платежі,345248,Миколаївська обласна організація,39956738,Миколаївська область,ЄСВ на ЗП (22%),26003140602,current,325.00,ДПІ у Центральному районі м. Миколаєва ГУ ДФС у Миколаївській області,39554010,юридична особа
НАШ КРАЙ,,63,2019-09-06,184,Податок на доходи,Податкові платежі,345247,Миколаївська обласна організація,39956738,Миколаївська область,ПДФО із ЗП,26003140602,current,265.20,УДКСУ у м. Миколаєві,37992781,юридична особа
НАШ КРАЙ,"Миколаївська обл., Южноукраїнськ, вул. Паркова, буд. 5",79,2019-09-06,174,"Оренда будинків і приміщень та експлуатаційні витрати (прибирання, страхування орендованих будинків, охорона, сигналізація, ремонт, вивіз сміття, тощо)",Оренда нерухомості,345246,Миколаївська обласна організація,39956738,Миколаївська область,оренда приміщення,26003140602,current,196.69,"КП ""Житлово-експлутаційне обʼєднання”",31537375,юридична особа
НАШ КРАЙ,,61,2019-09-06,186,Військовий збір,Податкові платежі,345245,Миколаївська обласна організація,39956738,Миколаївська область,військовий збір із ЗП,26003140602,current,22.10,УДКСУ у м. Миколаєві,37992781,юридична особа
НАШ КРАЙ,"Київ, вул. Богдана Хмельницького, буд. 64",70,2019-09-06,RCO2037_,Банківські послуги,Інші витрати,345244,Миколаївська обласна організація,39956738,Миколаївська область,банківське обслуговування,26003140602,current,14.00,"ПАТ ""Мегабанк""",09804119,юридична особа
НАШ КРАЙ,"Миколаївська обл., Очаків",79,2019-09-06,181,"Оренда будинків і приміщень та експлуатаційні витрати (прибирання, страхування орендованих будинків, охорона, сигналізація, ремонт, вивіз сміття, тощо)",Оренда нерухомості,345047,Миколаївська обласна організація,39956738,Миколаївська область,сплата за оренду приміщення,26003140602,current,2000.00,Как Марина Олександрівна,,фізична особа
НАШ КРАЙ,"Миколаївська обл., Миколаївський р-н, Сапетня",79,2019-09-06,180,"Оренда будинків і приміщень та експлуатаційні витрати (прибирання, страхування орендованих будинків, охорона, сигналізація, ремонт, вивіз сміття, тощо)",Оренда нерухомості,345046,Миколаївська обласна організація,39956738,Миколаївська область,сплата за оренду приміщення,26003140602,current,1500.00,Іщенко Віктор Андрійович,,фізична особа
НАШ КРАЙ,"Миколаївська обл., Миколаїв",84,2019-09-06,187,"Заробітна плата, премії","Заробітна плата, лікарняні, вагітності, відрядження, компенсації",345045,Миколаївська обласна організація,39956738,Миколаївська область,виплата заробітної плати,26003140602,current,1186.00,Торопенко Денис Сергійович,,фізична особа
НАШ КРАЙ,"Миколаївська обл., Березнегуватський р-н, Березнегувате",79,2019-09-06,176,"Оренда будинків і приміщень та експлуатаційні витрати (прибирання, страхування орендованих будинків, охорона, сигналізація, ремонт, вивіз сміття, тощо)",Оренда нерухомості,345044,Миколаївська обласна організація,39956738,Миколаївська область,сплата за оренду приміщення,26003140602,current,1000.00,Чайка Оксана Миколаївна,,фізична особа
НАШ КРАЙ,"Миколаївська обл., Снігурівський р-н, Снігурівка, вул. Каховська, буд. 1",79,2019-09-06,178,"Оренда будинків і приміщень та експлуатаційні витрати (прибирання, страхування орендованих будинків, охорона, сигналізація, ремонт, вивіз сміття, тощо)",Оренда нерухомості,345043,Миколаївська обласна організація,39956738,Миколаївська область,сплата за оренду приміщення,26003140602,current,420.00,Зіньковська Юлія Сергіївна,3098319420,фізична особа
НАШ КРАЙ,"Миколаївська обл., Казанківський р-н, Казанка, вул. Миру, буд. 190",79,2019-09-06,179,"Оренда будинків і приміщень та експлуатаційні витрати (прибирання, страхування орендованих будинків, охорона, сигналізація, ремонт, вивіз сміття, тощо)",Оренда нерухомості,345042,Миколаївська обласна організація,39956738,Миколаївська область,сплата за оренду приміщення,26003140602,current,300.00,Маляр Валерій Миколайович,2513206992,фізична особа
НАШ КРАЙ,"Миколаївська обл., Миколаїв",79,2019-09-06,177,"Оренда будинків і приміщень та експлуатаційні витрати (прибирання, страхування орендованих будинків, охорона, сигналізація, ремонт, вивіз сміття, тощо)",Оренда нерухомості,345041,Миколаївська обласна організація,39956738,Миколаївська область,сплата за оренду приміщення,26003140602,current,200.00,Андросюк Микола Миколайович,,фізична особа
НАШ КРАЙ,"Миколаївська обл., Снігурівський р-н, Новопетрівка",79,2019-09-06,183,"Оренда будинків і приміщень та експлуатаційні витрати (прибирання, страхування орендованих будинків, охорона, сигналізація, ремонт, вивіз сміття, тощо)",Оренда нерухомості,345040,Миколаївська обласна організація,39956738,Миколаївська область,сплата за оренду приміщення,26003140602,current,100.00,Кваша Володимир Миколайович,,фізична особа
НАШ КРАЙ,"Харківська обл., Харків, Московський просп., 257",79,2019-09-05,176,"Оренда будинків і приміщень та експлуатаційні витрати (прибирання, страхування орендованих будинків, охорона, сигналізація, ремонт, вивіз сміття, тощо)",Оренда нерухомості,345582,Харківська обласна організація,39972241,Харківська область,"За послуги по приміщенню, що орендується",UA033516290000000002600012178,current,2400.00,"ТОВ ""ККООН ""Будсервіс""",37577214,юридична особа
НАШ КРАЙ,"Харківська обл., Харків, просп. Ювілейний, буд. 56",79,2019-09-05,175,"Оренда будинків і приміщень та експлуатаційні витрати (прибирання, страхування орендованих будинків, охорона, сигналізація, ремонт, вивіз сміття, тощо)",Оренда нерухомості,345581,Харківська обласна організація,39972241,Харківська область,За оренду приміщення,UA033516290000000002600012178,current,1600.00,"ПАТ ""ПТІМАШ""",00212334,юридична особа
НАШ КРАЙ,"Київ, вул. Богдана Хмельницького, буд. 64",70,2019-09-05,RCO1935_539,Банківські послуги,Інші витрати,345580,Харківська обласна організація,39972241,Харківська область,За банківське обслуговування,UA033516290000000002600012178,current,2.00,"ПАТ ""Мегабанк""",09804119,юридична особа
НАШ КРАЙ,"Донецька обл., Словʼянський р-н, Словʼянськ",62,2019-09-05,349,Сплата ЄСВ,Податкові платежі,344640,Донецька обласна організація,39878456,Донецька область,Нарахування ЄСВ 22% на з/пл за серпень 2019р.,26000040299,current,918.06,Словʼянська ОДПІ ГУ ДФС у Донецькій області,39883094,юридична особа
НАШ КРАЙ,"Донецька обл., Словʼянський р-н, Словʼянськ",63,2019-09-05,353,Податок на доходи,Податкові платежі,344639,Донецька обласна організація,39878456,Донецька область,ПДФО із доходів Білоусова О.Ю. ІПН 2218706613,26000040299,current,900.00,УДКСУ у м. Словʼянську Донецької області,37803368,юридична особа
НАШ КРАЙ,"Донецька обл., Словʼянський р-н, Словʼянськ",63,2019-09-05,351,Податок на доходи,Податкові платежі,344638,Донецька обласна організація,39878456,Донецька область,ПДФО утриманий із з/пл за серпень 2019р.,26000040299,current,488.06,УДКСУ у м. Словʼянську Донецької області,37803368,юридична особа
НАШ КРАЙ,"Донецька обл., Словʼянський р-н, Словʼянськ",61,2019-09-05,354,Військовий збір,Податкові платежі,344637,Донецька обласна організація,39878456,Донецька область,"Військовий збір 1,5%утриманий із доходів Білоусова О.Ю. ІПН 2218706613",26000040299,current,75.00,УДКСУ у м. Словʼянську Донецької області,37803368,юридична особа
НАШ КРАЙ,"Донецька обл., Словʼянський р-н, Словʼянськ",61,2019-09-05,350,Військовий збір,Податкові платежі,344636,Донецька обласна організація,39878456,Донецька область,"Військовий збір 1,5%утриманий із з/пл за серпень 2019р.",26000040299,current,47.89,УДКСУ у м. Словʼянську Донецької області,37803368,юридична особа
НАШ КРАЙ,"Київ, вул. Богдана Хмельницького, буд. 64",70,2019-09-05,TR.15558,Банківські послуги,Інші витрати,344635,Донецька обласна організація,39878456,Донецька область,Сплата комісії за банківське обслуговування,26000040299,current,26.57,"ПАТ ""Мегабанк""",09804119,юридична особа
НАШ КРАЙ,"Київ, вул. Богдана Хмельницького, буд. 64",70,2019-09-05,RCO1935,Банківські послуги,Інші витрати,344634,Донецька обласна організація,39878456,Донецька область,Списання коштів за банківське обслуговування,26000040299,current,18.00,"ПАТ ""Мегабанк""",09804119,юридична особа
НАШ КРАЙ,"Донецька обл., Словʼянський р-н, Словʼянськ",79,2019-09-05,352,"Оренда будинків і приміщень та експлуатаційні витрати (прибирання, страхування орендованих будинків, охорона, сигналізація, ремонт, вивіз сміття, тощо)",Оренда нерухомості,344408,Донецька обласна організація,39878456,Донецька область,Оплата за оренду серпень 2019р.,26000040299,current,4025.00,Білоусов О Ю,,фізична особа
НАШ КРАЙ,"Донецька обл., Словʼянський р-н, Словʼянськ",84,2019-09-05,347,"Заробітна плата, премії","Заробітна плата, лікарняні, вагітності, відрядження, компенсації",344407,Донецька обласна організація,39878456,Донецька область,Заробітна плата за серпень 2019р.,26000040299,current,1679.63,Макогон Ю П,,фізична особа
НАШ КРАЙ,"Донецька обл., Словʼянський р-н, Словʼянськ",84,2019-09-05,348,"Заробітна плата, премії","Заробітна плата, лікарняні, вагітності, відрядження, компенсації",344406,Донецька обласна організація,39878456,Донецька область,Заробітна плата за серпень 2019р.,26000040299,current,976.64,Шумакова А О,,фізична особа
НАШ КРАЙ,"Полтавська обл., Полтава, вул. Пушкіна, буд. 115",79,2019-09-03,72,"Оренда будинків і приміщень та експлуатаційні витрати (прибирання, страхування орендованих будинків, охорона, сигналізація, ремонт, вивіз сміття, тощо)",Оренда нерухомості,345392,Полтавська обласна організація,40024231,Полтавська область,Оренда приміщення зг. рах №483 від 2019-05-15,UA153516290000000260011601190,current,3975.56,Управління майном Полтавської облради,24386961,юридична особа
НАШ КРАЙ,"Полтавська обл., Полтава, вул. Пушкіна, буд. 115",79,2019-09-03,73,"Оренда будинків і приміщень та експлуатаційні витрати (прибирання, страхування орендованих будинків, охорона, сигналізація, ремонт, вивіз сміття, тощо)",Оренда нерухомості,345391,Полтавська обласна організація,40024231,Полтавська область,Відшкодування витрат за водопостачання по рах №804 від 2019-08-12,UA153516290000000260011601190,current,186.47,Управління майном Полтавської облради,24386961,юридична особа
НАШ КРАЙ,"Київ, вул. Богдана Хмельницького, буд. 64",70,2019-09-03,RC01932_496,Банківські послуги,Інші витрати,345390,Полтавська обласна організація,40024231,Полтавська область,Списання коштів за банківське обслуговування згідно договору 57,UA153516290000000260011601190,current,67.03,"ПАТ ""Мегабанк""",09804119,юридична особа
НАШ КРАЙ,"Полтавська обл., Полтава, вул. Кагамлика, буд. 84",79,2019-09-03,74,"Оренда будинків і приміщень та експлуатаційні витрати (прибирання, страхування орендованих будинків, охорона, сигналізація, ремонт, вивіз сміття, тощо)",Оренда нерухомості,345389,Полтавська обласна організація,40024231,Полтавська область,Вивезення та захоронення твердих побутових відходів,UA153516290000000260011601190,current,21.33,Полтавське автотранспортне КП 1628,03351823,юридична особа
НАШ КРАЙ,"Запорізька обл., Запоріжжя, просп. Соборний, буд. 111",79,2019-09-03,№ 23,"Оренда будинків і приміщень та експлуатаційні витрати (прибирання, страхування орендованих будинків, охорона, сигналізація, ремонт, вивіз сміття, тощо)",Оренда нерухомості,344829,Запорізька обласна організація,39968366,Запорізька область,"Сплата за оренду приміщення згід.Дог.№ 8 від 2017-03-01 р. В т.ч. ПДВ 83,60 грн.",UA113139570000026000300238443,current,501.60,"Спільне українсько-німецьке підприємство ""Саксонія ГМБХ""",19364710,юридична особа
НАШ КРАЙ,"Київ, вул. Богдана Хмельницького, буд. 64",70,2019-09-02,RCO2020_1409,Банківські послуги,Інші витрати,345726,Чернігівська обласна організація,39975897,Чернігівська область,Списання коштів за банківське обслуговування договору 342/15,26003240342,current,100.00,"ПАТ ""Мегабанк""",09804119,юридична особа
НАШ КРАЙ,"Київ, вул. Богдана Хмельницького, буд. 64",70,2019-09-02,RCO2020_1394,Банківські послуги,Інші витрати,345579,Харківська обласна організація,39972241,Харківська область,За банківське обслуговування,UA033516290000000002600012178,current,125.00,"ПАТ ""Мегабанк""",09804119,юридична особа
НАШ КРАЙ,"Київ, вул. Богдана Хмельницького, буд. 64",70,2019-09-02,RC02020_1403,Банківські послуги,Інші витрати,345388,Полтавська обласна організація,40024231,Полтавська область,Списання коштів за банківське обслуговування згідно договору 57,UA153516290000000260011601190,current,35.97,"ПАТ ""Мегабанк""",09804119,юридична особа
НАШ КРАЙ,"Київ, вул. Богдана Хмельницького, буд. 64",70,2019-09-02,RCO2020_,Банківські послуги,Інші витрати,345243,Миколаївська обласна організація,39956738,Миколаївська область,банківське обслуговування,26003140602,current,125.00,"ПАТ ""Мегабанк""",09804119,юридична особа
НАШ КРАЙ,"Київ, вул. Богдана Хмельницького, буд. 64",70,2019-09-02,RCO2020_1399,Банківські послуги,Інші витрати,344896,Київська міська організація,39812835,Київ,Списання коштiв за банкiвське обслуговування згiдно договоpу 73/2015 від 2015-09-18 р.,26000260477,current,50.00,"ПАТ ""Мегабанк""",09804119,юридична особа
НАШ КРАЙ,"Київ, вул. Богдана Хмельницького, буд. 64",70,2019-09-02,RCO2020,Банківські послуги,Інші витрати,344633,Донецька обласна організація,39878456,Донецька область,Списання коштів за банківське обслуговування,26000040299,current,125.00,"ПАТ ""Мегабанк""",09804119,юридична особа
НАШ КРАЙ,"Київ, вул. Богдана Хмельницького, буд. 64",70,2019-09-02,RCO2020_1395,Банківські послуги,Інші витрати,344278,Центральний офіс,37724082,Україна,Списання коштiв за банкiвське обслуговування згiдно договоpу 71/2015 від 2015-09-15 р.,26002260475,current,50.00,"ПАТ ""Мегабанк""",09804119,юридична особа
НАШ КРАЙ,"Київ, вул. Михайла Грушевського, буд. 1",70,2019-09-01,AN98U00AWP,Банківські послуги,Інші витрати,344715,Закарпатська обласна організація,39994726,Закарпатська область,Комісія за ослуговування рахунку,26000053915382,current,100.00,"ПАТ КБ ""Приватбанк""",14360570,юридична особа
НАШ КРАЙ,"Київ, пров. Політехнічний, буд. 5А",62,2019-08-30,63,Сплата ЄСВ,Податкові платежі,344895,Київська міська організація,39812835,Київ,*;101;39812835;сплата єдиного внеску за серпень 2019 року;;;Без ПДВ,26000260477,current,1147.58,ДПІ у Шевченківському районі у м. Києві,39561761,юридична особа
НАШ КРАЙ,"Київ, вул. Академіка Туполєва, буд. 28А",61,2019-08-30,64,Військовий збір,Податкові платежі,344894,Київська міська організація,39812835,Київ,*;101;39812835;Військовий збір з доходів найм.працівників за серпень 2019 року;;; Без ПДВ,26000260477,current,47.41,УДКСУ у Шевченківському районі м. Києва,37995466,юридична особа
НАШ КРАЙ,"Київ, вул. Академіка Туполєва, буд. 28А",63,2019-08-30,П/П,Податок на доходи,Податкові платежі,344893,Київська міська організація,39812835,Київ,*;101;39812835;Податок на доходи найм.працівників за серпень 2019 року;;;Без ПДВ,26000260477,current,568.96,УДКСУ у Шевченківському районі м. Києва,37995466,юридична особа
НАШ КРАЙ,"Київ, вул. Богдана Хмельницького, буд. 64",84,2019-08-30,62,"Заробітна плата, премії","Заробітна плата, лікарняні, вагітності, відрядження, компенсації",344892,Київська міська організація,39812835,Київ,Перерахунок зар.плати за серпень 2019р. відповідно до договору зарплатного проекту №02-10/2015-2 від 2015-10-02 без ПДВ,26000260477,current,2544.49,"ПАТ ""Мегабанк""",09804119,юридична особа
НАШ КРАЙ,"Київ, вул. Богдана Хмельницького, буд. 64",70,2019-08-30,TR.1419161.1630,Банківські послуги,Інші витрати,344891,Київська міська організація,39812835,Київ,Сплата комісії за банківське обслуговування зг. Дог.№ 02-10/2015-2 від 2015-10-02,26000260477,current,25.44,"ПАТ ""Мегабанк""",09804119,юридична особа
НАШ КРАЙ,"Київ, вул. Богдана Хмельницького, буд. 64",70,2019-08-30,RCO2033_756,Банківські послуги,Інші витрати,344890,Київська міська організація,39812835,Київ,Списання коштiв за банкiвське обслуговування згiдно договоpу 73/2015 від 2015-09-18 р.,26000260477,current,3.00,"ПАТ ""Мегабанк""",09804119,юридична особа
НАШ КРАЙ,"Запорізька обл., Запоріжжя, просп. Соборний, буд. 48",70,2019-08-30,№ 9265107009,Банківські послуги,Інші витрати,344828,Запорізька обласна організація,39968366,Запорізька область,Списание щомісячної плати за обслуговування ТП Мій бізнес за серпень 2019 р.. Без ПДВ.,UA113139570000026000300238443,current,149.00,"Запорізька обласна філія АТ ""Ощадбанк""",02760363,юридична особа
НАШ КРАЙ,"Запорізька обл., Запоріжжя, просп. Соборний, буд. 111",70,2019-08-30,п/д № 22,Банківські послуги,Інші витрати,344827,Запорізька обласна організація,39968366,Запорізька область,Сплата комісії за зарахування зар.плати за 2-шу пол.серпня 2019 р та розрахункових.,UA113139570000026000300238443,current,23.06,Запорізька обласна організація Наш край,39968366,юридична особа
НАШ КРАЙ,"Запорізька обл., Запоріжжя, просп. Соборний, буд. 111",84,2019-08-30,п/д № 21,"Заробітна плата, премії","Заробітна плата, лікарняні, вагітності, відрядження, компенсації",344826,Запорізька обласна організація,39968366,Запорізька область,Зар.плата за 2-шу половину серпня 2019 року та розрахункові,UA113139570000026000300238443,current,4612.68,Запорізька обласна організація Наш край,39968366,юридична особа
НАШ КРАЙ,"Запорізька обл., Запоріжжя, вул. Дніпровська, буд. 34",62,2019-08-30,п/д № 20,Сплата ЄСВ,Податкові платежі,344825,Запорізька обласна організація,39968366,Запорізька область,Начис.ЕСВ 22% на з/п за 2-шу половину серпня 2019 року та розрахункових,UA113139570000026000300238443,current,1260.60,ГУ ДФС у Запорізькій області,39396146,юридична особа
НАШ КРАЙ,"Запорізька обл., Запоріжжя, вул. Олександрівська, буд. 7",63,2019-08-30,п/д № 19,Податок на доходи,Податкові платежі,344824,Запорізька обласна організація,39968366,Запорізька область,"Податок з доходів фіз.оіб, утрим.із з/п за 2-шу половину серпня 2019 року та розрахункових.",UA113139570000026000300238443,current,1031.40,УДКСУ в Олександрівському районі м. Запоріжжя,38025440,юридична особа
НАШ КРАЙ,"Запорізька обл., Запоріжжя, вул. Олександрівська, буд. 7",61,2019-08-30,п/д № 18,Військовий збір,Податкові платежі,344823,Запорізька обласна організація,39968366,Запорізька область,"Військовий збір 1,5%, утрим. із.зар.плати за 2-гу половину серпня 2019 року та розрахункових.",UA113139570000026000300238443,current,85.95,УДКСУ в Олександрівському районі м. Запоріжжя,38025440,юридична особа
НАШ КРАЙ,"Київ, вул. Академіка Туполєва, буд. 28А",63,2019-08-30,152,Податок на доходи,Податкові платежі,344276,Центральний офіс,37724082,Україна,*;101;37724082;Податок на доходи найм. працівників за серпень 2019 року;;;Без ПДВ,26002260475,current,950.13,УДКСУ у Шевченківському районі м. Києва,37995466,юридична особа
НАШ КРАЙ,"Київ, вул. Академіка Туполєва, буд. 28А",61,2019-08-30,151,Військовий збір,Податкові платежі,344275,Центральний офіс,37724082,Україна,*;101;37724082;Військовій збір з доходів найм.працівників за серпень 2019 року;;;Без ПДВ,26002260475,current,79.18,УДКСУ у Шевченківському районі м. Києва,37995466,юридична особа
НАШ КРАЙ,"Київ, пров. Політехнічний, буд. 5А",62,2019-08-30,150,Сплата ЄСВ,Податкові платежі,344274,Центральний офіс,37724082,Україна,*;101;37724082;сплата єдиного внеску за серпень 2019 року;;;Без ПДВ,26002260475,current,1161.27,ДПІ у Шевченківському районі у м. Києві,39561761,юридична особа
НАШ КРАЙ,"Київ, вул. Богдана Хмельницького, буд. 64",84,2019-08-30,149,"Заробітна плата, премії","Заробітна плата, лікарняні, вагітності, відрядження, компенсації",344273,Центральний офіс,37724082,Україна,Перерахування заробітної плати за серпень 2019 відповідно до договору зарплатного проекту№02-10\2015-1 від 2015-10-02 без ПДВ,26002260475,current,4249.16,"ПАТ ""Мегабанк""",09804119,юридична особа
НАШ КРАЙ,"Київ, вул. Богдана Хмельницького, буд. 64",70,2019-08-30,TR.1419259.1631,Банківські послуги,Інші витрати,344272,Центральний офіс,37724082,Україна,Сплата комісії за банківське обслуговування зг. Дог.№ 02-10/2015-1 від 2015-10-02,26002260475,current,42.49,"ПАТ ""Мегабанк""",09804119,юридична особа
НАШ КРАЙ,"Київ, вул. Богдана Хмельницького, буд. 64",70,2019-08-30,RCO2033_754,Банківські послуги,Інші витрати,344271,Центральний офіс,37724082,Україна,Списання коштiв за банкiвське обслуговування згiдно договоpу 71/2015 від 2015-09-15 р.,26002260475,current,4.00,"ПАТ ""Мегабанк""",09804119,юридична особа
НАШ КРАЙ,,62,2019-08-28,164,Сплата ЄСВ,Податкові платежі,345242,Миколаївська обласна організація,39956738,Миколаївська область,ЄСВ на ЗП (22%),26003140602,current,1998.62,ДПІ у Центральному районі м. Миколаєва ГУ ДФС у Миколаївській області,39554010,юридична особа
НАШ КРАЙ,,63,2019-08-28,170,Податок на доходи,Податкові платежі,345241,Миколаївська обласна організація,39956738,Миколаївська область,ПДФО із ЗП,26003140602,current,1635.24,УДКСУ у м. Миколаєві,37992781,юридична особа
НАШ КРАЙ,,61,2019-08-28,171,Військовий збір,Податкові платежі,345240,Миколаївська обласна організація,39956738,Миколаївська область,військовий збір із ЗП,26003140602,current,136.26,УДКСУ у м. Миколаєві,37992781,юридична особа
НАШ КРАЙ,"Київ, вул. Богдана Хмельницького, буд. 64",70,2019-08-28,RCO1938_,Банківські послуги,Інші витрати,345239,Миколаївська обласна організація,39956738,Миколаївська область,банківське обслуговування,26003140602,current,5.00,"ПАТ ""Мегабанк""",09804119,юридична особа
НАШ КРАЙ,"Миколаївська обл., Миколаїв",83,2019-08-28,172,"Виплати працівникам (не зарплата): лікарняні, вагітності, відрядження, компенсації ","Заробітна плата, лікарняні, вагітності, відрядження, компенсації",345039,Миколаївська обласна організація,39956738,Миколаївська область,виплата відпускних за 2018-2019 р.,26003140602,current,3983.99,Остапчук Ольга Миколаївна,,фізична особа
НАШ КРАЙ,"Миколаївська обл., Миколаїв",83,2019-08-28,173,"Виплати працівникам (не зарплата): лікарняні, вагітності, відрядження, компенсації ","Заробітна плата, лікарняні, вагітності, відрядження, компенсації",345038,Миколаївська обласна організація,39956738,Миколаївська область,виплата відпускних за 2018-2019 р.,26003140602,current,3329.23,Рой Юлія Ігорівна,,фізична особа
НАШ КРАЙ,"Київ, вул. Мечникова, буд. 6",68,2019-08-28,147,Соцдослідження,"Гонорари, в тому числі за надані консультаційні послуги",344270,Центральний офіс,37724082,Україна,за надання послуг з питань організації діяльності Call-центру та його підтримки.Відповідно до договору 287\5від 2016-05-04 (рах.№7від31.07.19) без ПДВ,26002260475,current,21002.75,"ТОВ ""КЕНД-К ГРУП""",39794078,юридична особа
НАШ КРАЙ,"Київ, вул. Богдана Хмельницького, буд. 64",70,2019-08-28,RCO1938_516,Банківські послуги,Інші витрати,344269,Центральний офіс,37724082,Україна,Списання коштiв за банкiвське обслуговування згiдно договоpу 71/2015 від 2015-09-15 р.,26002260475,current,1.00,"ПАТ ""Мегабанк""",09804119,юридична особа
НАШ КРАЙ,"Донецька обл., Маріуполь",52,2019-08-27,343,Інша реклама (без класифікації),Реклама (без класифікації),344632,Донецька обласна організація,39878456,Донецька область,Оплата за друк рекламного матеріалу,26000040299,current,15000.00,Єсаян І В,2868316209,фізична особа
НАШ КРАЙ,"Донецька обл., Маріуполь",52,2019-08-27,342,Інша реклама (без класифікації),Реклама (без класифікації),344631,Донецька обласна організація,39878456,Донецька область,Оплата за розміщення реклами,26000040299,current,5000.00,Василець Л М,1928807644,фізична особа
НАШ КРАЙ,"Донецька обл., Словʼянський р-н, Словʼянськ",63,2019-08-27,346,Податок на доходи,Податкові платежі,344630,Донецька обласна організація,39878456,Донецька область,ПДФО утриманий із доходів Коссе Л.І. ІПН 1826453264 за червень 2019р.,26000040299,current,180.00,УДКСУ у м. Словʼянську Донецької області,37803368,юридична особа
НАШ КРАЙ,"Донецька обл., Словʼянський р-н, Словʼянськ",61,2019-08-27,345,Військовий збір,Податкові платежі,344629,Донецька обласна організація,39878456,Донецька область,"Військовий збір 1,5%утриманий із доходів Коссе Л.І. ІПН 1826453264 за червень 2019р.",26000040299,current,15.00,УДКСУ у м. Словʼянську Донецької області,37803368,юридична особа
НАШ КРАЙ,"Київ, вул. Богдана Хмельницького, буд. 64",70,2019-08-27,RCO1938,Банківські послуги,Інші витрати,344628,Донецька обласна організація,39878456,Донецька область,Списання коштів за банківське обслуговування,26000040299,current,5.00,"ПАТ ""Мегабанк""",09804119,юридична особа
НАШ КРАЙ,"Донецька обл., Миколаївка",79,2019-08-27,344,"Оренда будинків і приміщень та експлуатаційні витрати (прибирання, страхування орендованих будинків, охорона, сигналізація, ремонт, вивіз сміття, тощо)",Оренда нерухомості,344405,Донецька обласна організація,39878456,Донецька область,Оплата за оренду червень 2019р,26000040299,current,805.00,Коссе Л І,,фізична особа
НАШ КРАЙ,"Київ, вул. Богдана Хмельницького, буд. 64",70,2019-08-27,TR.1419259.6242,Банківські послуги,Інші витрати,344268,Центральний офіс,37724082,Україна,Сплата комісії за банківське обслуговування зг. Дог.№ 02-10/2015-1 від 2015-10-02,26002260475,current,14.32,"ПАТ ""Мегабанк""",09804119,юридична особа
НАШ КРАЙ,"Київ, вул. Богдана Хмельницького, буд. 64",70,2019-08-27,RCO1938_461,Банківські послуги,Інші витрати,344267,Центральний офіс,37724082,Україна,Списання коштiв за банкiвське обслуговування згiдно договоpу 71/2015 від 2015-09-15 р.,26002260475,current,50.00,"ПАТ ""Мегабанк""",09804119,юридична особа
НАШ КРАЙ,"Запорізька обл., Запоріжжя, просп. Соборний, буд. 111",79,2019-08-21,п/д № 17,"Оренда будинків і приміщень та експлуатаційні витрати (прибирання, страхування орендованих будинків, охорона, сигналізація, ремонт, вивіз сміття, тощо)",Оренда нерухомості,344822,Запорізька обласна організація,39968366,Запорізька область,"Сплата за оренду приміщення згід.Дог.№ 8 від 2017-03-01 р. В т.ч. ПДВ 50,00 грн.",UA113139570000026000300238443,current,300.00,"Спільне українсько-німецьке підприємство ""Саксонія ГМБХ""",19364710,юридична особа
НАШ КРАЙ,"Київ, вул. Богдана Хмельницького, буд. 64",70,2019-08-20,RCO1935_,Банківські послуги,Інші витрати,345238,Миколаївська обласна організація,39956738,Миколаївська область,банківське обслуговування,26003140602,current,12.00,"ПАТ ""Мегабанк""",09804119,юридична особа
НАШ КРАЙ,"Миколаївська обл., Очаків",79,2019-08-20,159,"Оренда будинків і приміщень та експлуатаційні витрати (прибирання, страхування орендованих будинків, охорона, сигналізація, ремонт, вивіз сміття, тощо)",Оренда нерухомості,345037,Миколаївська обласна організація,39956738,Миколаївська область,сплата за оренду приміщення,26003140602,current,2000.00,Как Марина Олександрівна,,фізична особа
НАШ КРАЙ,"Миколаївська обл., Миколаївський р-н, Сапетня",79,2019-08-20,158,"Оренда будинків і приміщень та експлуатаційні витрати (прибирання, страхування орендованих будинків, охорона, сигналізація, ремонт, вивіз сміття, тощо)",Оренда нерухомості,345036,Миколаївська обласна організація,39956738,Миколаївська область,сплата за оренду приміщення,26003140602,current,1500.00,Іщенко Віктор Андрійович,,фізична особа
НАШ КРАЙ,"Миколаївська обл., Березнегуватський р-н, Березнегувате",79,2019-08-20,154,"Оренда будинків і приміщень та експлуатаційні витрати (прибирання, страхування орендованих будинків, охорона, сигналізація, ремонт, вивіз сміття, тощо)",Оренда нерухомості,345035,Миколаївська обласна організація,39956738,Миколаївська область,сплата за оренду приміщення,26003140602,current,1000.00,Чайка Оксана Миколаївна,,фізична особа
НАШ КРАЙ,"Миколаївська обл., Казанківський р-н, Казанка, вул. Миру, буд. 190",79,2019-08-20,157,"Оренда будинків і приміщень та експлуатаційні витрати (прибирання, страхування орендованих будинків, охорона, сигналізація, ремонт, вивіз сміття, тощо)",Оренда нерухомості,345034,Миколаївська обласна організація,39956738,Миколаївська область,сплата за оренду приміщення,26003140602,current,300.00,Маляр Валерій Миколайович,2513206992,фізична особа
НАШ КРАЙ,"Чернігівська обл., Чернігів",79,2019-08-19,20,"Оренда будинків і приміщень та експлуатаційні витрати (прибирання, страхування орендованих будинків, охорона, сигналізація, ремонт, вивіз сміття, тощо)",Оренда нерухомості,345725,Чернігівська обласна організація,39975897,Чернігівська область,"Оплата за оренду приміщення за серпень 2019р.,згідно рахунку №4518 від 2019-08-12,в т.ч. ПДВ 194,00 грн",26003240342,current,1164.00,"ПАТ ""НАСК ""Оранта""",00034186,юридична особа
НАШ КРАЙ,"Чернігівська обл., Чернігів",79,2019-08-19,19,"Оренда будинків і приміщень та експлуатаційні витрати (прибирання, страхування орендованих будинків, охорона, сигналізація, ремонт, вивіз сміття, тощо)",Оренда нерухомості,345724,Чернігівська обласна організація,39975897,Чернігівська область,"Компенсація за комунальні послуги за серпень 2019р., згідно рахунку-фактури №4519 від 2019-08-12,в т.ч. ПДВ 108,33 грн",26003240342,current,650.00,"ПАТ ""НАСК ""Оранта""",00034186,юридична особа
НАШ КРАЙ,"Чернігівська обл., Чернігів",79,2019-08-19,18,"Оренда будинків і приміщень та експлуатаційні витрати (прибирання, страхування орендованих будинків, охорона, сигналізація, ремонт, вивіз сміття, тощо)",Оренда нерухомості,345723,Чернігівська обласна організація,39975897,Чернігівська область,"Компенсація за комунальні послуги за липень 2019р., згідно рахунку-фактури №3966 від 2019-07-10,в т.ч. ПДВ 108,33 грн",26003240342,current,650.00,"ПАТ ""НАСК ""Оранта""",00034186,юридична особа
НАШ КРАЙ,"Чернігівська обл., Чернігів",79,2019-08-19,17,"Оренда будинків і приміщень та експлуатаційні витрати (прибирання, страхування орендованих будинків, охорона, сигналізація, ремонт, вивіз сміття, тощо)",Оренда нерухомості,345722,Чернігівська обласна організація,39975897,Чернігівська область,"Оплата за оренду приміщення за липень 2019р.,згідно рахунку №3965 від 2019-07-10,в т.ч. ПДВ 194,00 грн",26003240342,current,1164.00,"ПАТ ""НАСК ""Оранта""",00034186,юридична особа
НАШ КРАЙ,"Київ, вул. Богдана Хмельницького, буд. 64",70,2019-08-19,RCO1954_560,Банківські послуги,Інші витрати,345721,Чернігівська обласна організація,39975897,Чернігівська область,Списання коштів за банківське обслуговування договору 342/15,26003240342,current,12.00,"ПАТ ""Мегабанк""",09804119,юридична особа
НАШ КРАЙ,,62,2019-08-19,164,Сплата ЄСВ,Податкові платежі,345237,Миколаївська обласна організація,39956738,Миколаївська область,ЄСВ на ЗП (22%),26003140602,current,2460.00,ДПІ у Центральному районі м. Миколаєва ГУ ДФС у Миколаївській області,39554010,юридична особа
НАШ КРАЙ,,63,2019-08-19,163,Податок на доходи,Податкові платежі,345236,Миколаївська обласна організація,39956738,Миколаївська область,ПДФО із ЗП,26003140602,current,2015.00,УДКСУ у м. Миколаєві,37992781,юридична особа
НАШ КРАЙ,,61,2019-08-19,165,Військовий збір,Податкові платежі,345235,Миколаївська обласна організація,39956738,Миколаївська область,військовий збір із ЗП,26003140602,current,168.00,УДКСУ у м. Миколаєві,37992781,юридична особа
НАШ КРАЙ,"Київ, вул. Богдана Хмельницького, буд. 64",70,2019-08-19,RCO1954_,Банківські послуги,Інші витрати,345234,Миколаївська обласна організація,39956738,Миколаївська область,банківське обслуговування,26003140602,current,21.00,"ПАТ ""Мегабанк""",09804119,юридична особа
НАШ КРАЙ,"Миколаївська обл., Миколаїв",84,2019-08-19,166,"Заробітна плата, премії","Заробітна плата, лікарняні, вагітності, відрядження, компенсації",345033,Миколаївська обласна організація,39956738,Миколаївська область,виплата заробітної плати,26003140602,current,3000.00,Остапчук Ольга Миколаївна,,фізична особа
НАШ КРАЙ,"Миколаївська обл., Миколаїв",84,2019-08-19,168,"Заробітна плата, премії","Заробітна плата, лікарняні, вагітності, відрядження, компенсації",345032,Миколаївська обласна організація,39956738,Миколаївська область,виплата заробітної плати,26003140602,current,3000.00,Рой Юлія Ігорівна,,фізична особа
НАШ КРАЙ,"Миколаївська обл., Миколаїв",84,2019-08-19,167,"Заробітна плата, премії","Заробітна плата, лікарняні, вагітності, відрядження, компенсації",345031,Миколаївська обласна організація,39956738,Миколаївська область,виплата заробітної плати,26003140602,current,3000.00,Торопенко Денис Сергійович,,фізична особа
НАШ КРАЙ,"Миколаївська обл., Миколаїв",79,2019-08-19,155,"Оренда будинків і приміщень та експлуатаційні витрати (прибирання, страхування орендованих будинків, охорона, сигналізація, ремонт, вивіз сміття, тощо)",Оренда нерухомості,345030,Миколаївська обласна організація,39956738,Миколаївська область,сплата за оренду приміщення,26003140602,current,200.00,Андросюк Микола Миколайович,,фізична особа
НАШ КРАЙ,"Запорізька обл., Запоріжжя, просп. Соборний, буд. 111",70,2019-08-19,п/д № 16,Банківські послуги,Інші витрати,344821,Запорізька обласна організація,39968366,Запорізька область,Сплата комісії за зарахування зар.плати за 1-шу пол.серпня 2019 р.,UA113139570000026000300238443,current,10.35,Запорізька обласна організація Наш край,39968366,юридична особа
НАШ КРАЙ,"Запорізька обл., Запоріжжя, просп. Соборний, буд. 111",84,2019-08-19,п/д № 15,"Заробітна плата, премії","Заробітна плата, лікарняні, вагітності, відрядження, компенсації",344820,Запорізька обласна організація,39968366,Запорізька область,Зар.плата за 1-шу половину серпня 2019 року.,UA113139570000026000300238443,current,2070.00,Запорізька обласна організація Наш край,39968366,юридична особа
НАШ КРАЙ,"Запорізька обл., Запоріжжя, вул. Дніпровська, буд. 34",62,2019-08-19,п/д № 14,Сплата ЄСВ,Податкові платежі,344819,Запорізька обласна організація,39968366,Запорізька область,Начис.ЕСВ 22% на з/п за 1-шу половину серпня 2019 року,UA113139570000026000300238443,current,565.72,ГУ ДФС у Запорізькій області,39396146,юридична особа
НАШ КРАЙ,"Запорізька обл., Запоріжжя, вул. Олександрівська, буд. 7",63,2019-08-19,п/д № 13,Податок на доходи,Податкові платежі,344818,Запорізька обласна організація,39968366,Запорізька область,"Податок з доходів фіз.оіб, утрим.із з/п за 1-шу половину серпня 2019 року",UA113139570000026000300238443,current,462.86,УДКСУ в Олександрівському районі м. Запоріжжя,38025440,юридична особа
НАШ КРАЙ,"Запорізька обл., Запоріжжя, вул. Олександрівська, буд. 7",61,2019-08-19,п/д № 12,Військовий збір,Податкові платежі,344817,Запорізька обласна організація,39968366,Запорізька область,"Військовий збір 1,5%, утрим. із.зар.плати за 1-шу половину серпня 2019 року",UA113139570000026000300238443,current,38.57,УДКСУ в Олександрівському районі м. Запоріжжя,38025440,юридична особа
НАШ КРАЙ,"Донецька обл., Словʼянський р-н, Словʼянськ",62,2019-08-19,334,Сплата ЄСВ,Податкові платежі,344627,Донецька обласна організація,39878456,Донецька область,Нарахування ЄСВ 22% на з/пл(аванс) за серпень 2019р.,26000040299,current,918.06,Словʼянська ОДПІ ГУ ДФС у Донецькій області,39883094,юридична особа
НАШ КРАЙ,"Донецька обл., Словʼянський р-н, Словʼянськ",63,2019-08-19,336,Податок на доходи,Податкові платежі,344626,Донецька обласна організація,39878456,Донецька область,ПДФО утриманий із з/пл(аванс) за серпень 2019р.,26000040299,current,476.96,УДКСУ у м. Словʼянську Донецької області,37803368,юридична особа
НАШ КРАЙ,"Донецька обл., Словʼянський р-н, Словʼянськ",62,2019-08-19,340,Сплата ЄСВ,Податкові платежі,344625,Донецька обласна організація,39878456,Донецька область,Нарахування ЄСВ 22% на з/пл(аванс) за липень 2019р.,26000040299,current,199.57,Словʼянська ОДПІ ГУ ДФС у Донецькій області,39883094,юридична особа
НАШ КРАЙ,"Донецька обл., Словʼянський р-н, Словʼянськ",61,2019-08-19,335,Військовий збір,Податкові платежі,344624,Донецька обласна організація,39878456,Донецька область,"Військовий збір 1,5%утриманий із з/пл (аванс) за серпень 2019р.",26000040299,current,46.95,УДКСУ у м. Словʼянську Донецької області,37803368,юридична особа
НАШ КРАЙ,"Київ, вул. Богдана Хмельницького, буд. 64",70,2019-08-19,TR.15558,Банківські послуги,Інші витрати,344623,Донецька обласна організація,39878456,Донецька область,Сплата комісії за банківське обслуговування,26000040299,current,35.00,"ПАТ ""Мегабанк""",09804119,юридична особа
НАШ КРАЙ,"Київ, вул. Богдана Хмельницького, буд. 64",70,2019-08-19,RCO1954,Банківські послуги,Інші витрати,344622,Донецька обласна організація,39878456,Донецька область,Списання коштів за банківське обслуговування,26000040299,current,15.00,"ПАТ ""Мегабанк""",09804119,юридична особа
НАШ КРАЙ,"Донецька обл., Словʼянський р-н, Словʼянськ",61,2019-08-19,341,Військовий збір,Податкові платежі,344621,Донецька обласна організація,39878456,Донецька область,"Військовий збір 1,5%утриманий із заробітної плати за липень 2019р.",26000040299,current,13.61,УДКСУ у м. Словʼянську Донецької області,37803368,юридична особа
НАШ КРАЙ,"Донецька обл., Словʼянський р-н, Словʼянськ",84,2019-08-19,338,"Заробітна плата, премії","Заробітна плата, лікарняні, вагітності, відрядження, компенсації",344404,Донецька обласна організація,39878456,Донецька область,Заробітна плата за серпень(аванс) 2019р.,26000040299,current,1679.63,Макогон Ю П,,фізична особа
НАШ КРАЙ,"Донецька обл., Словʼянський р-н, Словʼянськ",84,2019-08-19,337,"Заробітна плата, премії","Заробітна плата, лікарняні, вагітності, відрядження, компенсації",344403,Донецька обласна організація,39878456,Донецька область,Заробітна плата за серпень(аванс) 2019р.,26000040299,current,926.46,Шумакова А О,,фізична особа
НАШ КРАЙ,"Донецька обл., Словʼянський р-н, Словʼянськ",84,2019-08-19,339,"Заробітна плата, премії","Заробітна плата, лікарняні, вагітності, відрядження, компенсації",344402,Донецька обласна організація,39878456,Донецька область,Заробітна плата за липень 2019р.,26000040299,current,893.54,Макогон Ю П,,фізична особа
НАШ КРАЙ,"Миколаївська обл., Кривоозерський р-н, Криве Озеро",79,2019-08-14,153,"Оренда будинків і приміщень та експлуатаційні витрати (прибирання, страхування орендованих будинків, охорона, сигналізація, ремонт, вивіз сміття, тощо)",Оренда нерухомості,345233,Миколаївська обласна організація,39956738,Миколаївська область,сплата за оренду приміщення,26003140602,current,1800.21,"ТОВ ""Вікторія-союз""",35596853,юридична особа
НАШ КРАЙ,"Миколаївська обл., Баштанський р-н, Баштанка, вул. Ювілейна, буд. 77",76,2019-08-14,162,Послуги зв’язку,Послуги зв’язку,345232,Миколаївська обласна організація,39956738,Миколаївська область,"оренда приміщення, абонплата за телефон, ADSL",26003140602,current,1014.59,Баштанська районна спілка споживчих товариств,01760291,юридична особа
НАШ КРАЙ,"Київ, бульв. Тараса Шевченка, буд. 18",76,2019-08-14,160,Послуги зв’язку,Послуги зв’язку,345231,Миколаївська обласна організація,39956738,Миколаївська область,за телекомунікаційні послуги,26003140602,current,410.00,"ПАТ ""Укртелеком""",21560766,юридична особа
НАШ КРАЙ,"Миколаївська обл., Южноукраїнськ, вул. Паркова, буд. 5",79,2019-08-14,152,"Оренда будинків і приміщень та експлуатаційні витрати (прибирання, страхування орендованих будинків, охорона, сигналізація, ремонт, вивіз сміття, тощо)",Оренда нерухомості,345230,Миколаївська обласна організація,39956738,Миколаївська область,оренда приміщення,26003140602,current,153.77,"КП ""Житлово-експлутаційне обʼєднання”",31537375,юридична особа
НАШ КРАЙ,"Київ, вул. Богдана Хмельницького, буд. 64",70,2019-08-14,RCO1959_,Банківські послуги,Інші витрати,345229,Миколаївська обласна організація,39956738,Миколаївська область,банківське обслуговування,26003140602,current,8.00,"ПАТ ""Мегабанк""",09804119,юридична особа
НАШ КРАЙ,"Миколаївська обл., Снігурівський р-н, Снігурівка, вул. Каховська, буд. 1",79,2019-08-14,156,"Оренда будинків і приміщень та експлуатаційні витрати (прибирання, страхування орендованих будинків, охорона, сигналізація, ремонт, вивіз сміття, тощо)",Оренда нерухомості,345029,Миколаївська обласна організація,39956738,Миколаївська область,сплата за оренду приміщення,26003140602,current,420.00,Зіньковська Юлія Сергіївна,3098319420,фізична особа
НАШ КРАЙ,"Миколаївська обл., Снігурівський р-н",79,2019-08-14,161,"Оренда будинків і приміщень та експлуатаційні витрати (прибирання, страхування орендованих будинків, охорона, сигналізація, ремонт, вивіз сміття, тощо)",Оренда нерухомості,345028,Миколаївська обласна організація,39956738,Миколаївська область,сплата за оренду приміщення,26003140602,current,100.00,Кваша Володимир Миколайович,,фізична особа
НАШ КРАЙ,"Донецька обл., Краматорськ",52,2019-08-13,332,Інша реклама (без класифікації),Реклама (без класифікації),344620,Донецька обласна організація,39878456,Донецька область,Оплата за інформаційно-консультаційні послуги,26000040299,current,200.00,Безнисько Г Л,2435411772,фізична особа
НАШ КРАЙ,Київ,72,2019-08-13,333,"Придбання, ремонт офісної техніки та програмного забезпечення (Бухгалтерські програми, Ліга.закон, домени)",Придбання офісної техніки та програмного забезпечення,344619,Донецька обласна організація,39878456,Донецька область,Оплата за обробку даних та перевидачу кваліфікованого сертифікату,26000040299,current,92.00,"ТОВ ""Центр сертифікації ключів ""Україна""",36865753,юридична особа
НАШ КРАЙ,"Харківська обл., Сахновщинський р-н, Сахновщина, вул. Леніна, буд. 9",79,2019-08-12,174,"Оренда будинків і приміщень та експлуатаційні витрати (прибирання, страхування орендованих будинків, охорона, сигналізація, ремонт, вивіз сміття, тощо)",Оренда нерухомості,345578,Харківська обласна організація,39972241,Харківська область,За оренду приміщення,UA033516290000000002600012178,current,1100.00,"Підприємство споживчої кооперації ""Коопунівермаг Сахновщинської районної спілки пайовиків ""Кооператив""",01777564,юридична особа
НАШ КРАЙ,"Харківська обл., Сахновщинський р-н, Сахновщина, вул. Леніна, буд. 9",79,2019-08-12,169,"Оренда будинків і приміщень та експлуатаційні витрати (прибирання, страхування орендованих будинків, охорона, сигналізація, ремонт, вивіз сміття, тощо)",Оренда нерухомості,345577,Харківська обласна організація,39972241,Харківська область,За оренду приміщення,UA033516290000000002600012178,current,1100.00,"Підприємство споживчої кооперації ""Коопунівермаг Сахновщинської районної спілки пайовиків ""Кооператив""",01777564,юридична особа
НАШ КРАЙ,"Київ, вул. Богдана Хмельницького, буд. 64",70,2019-08-12,RCO1932_445,Банківські послуги,Інші витрати,345576,Харківська обласна організація,39972241,Харківська область,За банківське обслуговування,UA033516290000000002600012178,current,2.00,"ПАТ ""Мегабанк""",09804119,юридична особа
НАШ КРАЙ,"Харківська обл., Харківський р-н, Циркуни, вул. Механізаторська, буд. 11",79,2019-08-09,171,"Оренда будинків і приміщень та експлуатаційні витрати (прибирання, страхування орендованих будинків, охорона, сигналізація, ремонт, вивіз сміття, тощо)",Оренда нерухомості,345575,Харківська обласна організація,39972241,Харківська область,За оренду приміщення,UA033516290000000002600012178,current,4800.00,"ТОВ ""Алькад ЛТД""",22636477,юридична особа
НАШ КРАЙ,"Харківська обл., Дергачівський р-н, Дергачі, вул. Перемоги, буд. 14",79,2019-08-09,170,"Оренда будинків і приміщень та експлуатаційні витрати (прибирання, страхування орендованих будинків, охорона, сигналізація, ремонт, вивіз сміття, тощо)",Оренда нерухомості,345574,Харківська обласна організація,39972241,Харківська область,За оренду приміщення,UA033516290000000002600012178,current,3585.00,"ПП ""Ампір 2008""",35876460,юридична особа
НАШ КРАЙ,"Київ, бульв. Тараса Шевченка, буд. 18",76,2019-08-09,173,Послуги зв’язку,Послуги зв’язку,345573,Харківська обласна організація,39972241,Харківська область,За телекомунiкацiйнi послуги,UA033516290000000002600012178,current,400.00,"ПАТ ""Укртелеком""",21560766,юридична особа
НАШ КРАЙ,"Київ, вул. Богдана Хмельницького, буд. 64",70,2019-08-09,RCO2002_442,Банківські послуги,Інші витрати,345572,Харківська обласна організація,39972241,Харківська область,За банківське обслуговування,UA033516290000000002600012178,current,12.00,"ПАТ ""Мегабанк""",09804119,юридична особа
НАШ КРАЙ,"Харківська обл., Харків, просп. Гагаріна, буд. 169Б, 28",79,2019-08-09,,"Оренда будинків і приміщень та експлуатаційні витрати (прибирання, страхування орендованих будинків, охорона, сигналізація, ремонт, вивіз сміття, тощо)",Оренда нерухомості,345464,Харківська обласна організація,39972241,Харківська область,За оренду приміщення,UA033516290000000002600012178,current,6550.00,Манукян Арпіне Араіківна,3279004761,фізична особа
НАШ КРАЙ,"Полтавська обл., Полтава, вул. Пушкіна, буд. 115",79,2019-08-08,71,"Оренда будинків і приміщень та експлуатаційні витрати (прибирання, страхування орендованих будинків, охорона, сигналізація, ремонт, вивіз сміття, тощо)",Оренда нерухомості,345387,Полтавська обласна організація,40024231,Полтавська область,Оренда приміщення зг. рах №684 від 2019-07-12,UA153516290000000260011601190,current,3975.56,Управління майном Полтавської облради,24386961,юридична особа
НАШ КРАЙ,"Полтавська обл., Полтава, вул. Зигіна, буд. 32А",79,2019-08-08,69,"Оренда будинків і приміщень та експлуатаційні витрати (прибирання, страхування орендованих будинків, охорона, сигналізація, ремонт, вивіз сміття, тощо)",Оренда нерухомості,345386,Полтавська обласна організація,40024231,Полтавська область,"Послуги охорони зг дог №1990/17 від 2019-09-22, рах №7064 від 2019-07-01 р.",UA153516290000000260011601190,current,450.00,Управління поліції охорони в Полтавській області,40109042,юридична особа
НАШ КРАЙ,"Полтавська обл., Полтава, вул. Зигіна, буд. 32А",79,2019-08-08,66,"Оренда будинків і приміщень та експлуатаційні витрати (прибирання, страхування орендованих будинків, охорона, сигналізація, ремонт, вивіз сміття, тощо)",Оренда нерухомості,345385,Полтавська обласна організація,40024231,Полтавська область,"Послуги охорони зг дог №1990/17 від 2019-09-22, рах №8134 від 2019-08-02 р.",UA153516290000000260011601190,current,450.00,Управління поліції охорони в Полтавській області,40109042,юридична особа
НАШ КРАЙ,"Полтавська обл., Полтава, вул. Пушкіна, буд. 115",79,2019-08-08,67,"Оренда будинків і приміщень та експлуатаційні витрати (прибирання, страхування орендованих будинків, охорона, сигналізація, ремонт, вивіз сміття, тощо)",Оренда нерухомості,345384,Полтавська обласна організація,40024231,Полтавська область,Відшкодування витрат за спожиту електроенергію по рах №745 від 2019-08-01,UA153516290000000260011601190,current,337.09,Управління майном Полтавської облради,24386961,юридична особа
НАШ КРАЙ,"Полтавська обл., Полтава, вул. Пушкіна, буд. 115",79,2019-08-08,64,"Оренда будинків і приміщень та експлуатаційні витрати (прибирання, страхування орендованих будинків, охорона, сигналізація, ремонт, вивіз сміття, тощо)",Оренда нерухомості,345383,Полтавська обласна організація,40024231,Полтавська область,Відшкодування витрат за спожиту електроенергію по рах №622 від 2019-07-01 в т.ч. ПДВ 38.26 грн.,UA153516290000000260011601190,current,229.54,Управління майном Полтавської облради,24386961,юридична особа
НАШ КРАЙ,"Полтавська обл., Полтава, вул. Пушкіна, буд. 115",60,2019-08-08,70,Інші податки,Податкові платежі,345382,Полтавська обласна організація,40024231,Полтавська область,Відшкодування земельного податку за зг рах №638 від 2019-07-11 без ПДВ,UA153516290000000260011601190,current,172.71,Управління майном Полтавської облради,24386961,юридична особа
НАШ КРАЙ,"Полтавська обл., Полтава, вул. Пушкіна, буд. 115",60,2019-08-08,68,Інші податки,Податкові платежі,345381,Полтавська обласна організація,40024231,Полтавська область,Відшкодування земельного податку за зг рах №758 від 12.08.19 без ПДВ,UA153516290000000260011601190,current,172.71,Управління майном Полтавської облради,24386961,юридична особа
НАШ КРАЙ,"Полтавська обл., Полтава, вул. Пушкіна, буд. 115",79,2019-08-08,65,"Оренда будинків і приміщень та експлуатаційні витрати (прибирання, страхування орендованих будинків, охорона, сигналізація, ремонт, вивіз сміття, тощо)",Оренда нерухомості,345380,Полтавська обласна організація,40024231,Полтавська область,Відшкодування витрат за водопостачання по рах №728 від 2019-07-15 без ПДВ,UA153516290000000260011601190,current,84.24,Управління майном Полтавської облради,24386961,юридична особа
НАШ КРАЙ,"Київ, вул. Богдана Хмельницького, буд. 64",70,2019-08-08,RC01932_432,Банківські послуги,Інші витрати,345379,Полтавська обласна організація,40024231,Полтавська область,Списання коштів за банківське обслуговування згідно договору 57,UA153516290000000260011601190,current,8.00,"ПАТ ""Мегабанк""",09804119,юридична особа
НАШ КРАЙ,"Київ, вул. Богдана Хмельницького, буд. 64",70,2019-08-07,RC02024_11,Банківські послуги,Інші витрати,345378,Полтавська обласна організація,40024231,Полтавська область,Списання коштів за банківське обслуговування згідно договору 57,UA153516290000000260011601190,current,24.18,"ПАТ ""Мегабанк""",09804119,юридична особа
НАШ КРАЙ,"Запорізька обл., Запоріжжя, просп. Соборний, буд. 111",70,2019-08-02,п/д № 11,Банківські послуги,Інші витрати,344816,Запорізька обласна організація,39968366,Запорізька область,Сплата комісії за зарахування зар.плати за 2-гу пол.липня 2019 р.,UA113139570000026000300238443,current,7.09,Запорізька обласна організація Наш край,39968366,юридична особа
НАШ КРАЙ,"Запорізька обл., Запоріжжя, просп. Соборний, буд. 111",84,2019-08-02,п/д № 10,"Заробітна плата, премії","Заробітна плата, лікарняні, вагітності, відрядження, компенсації",344815,Запорізька обласна організація,39968366,Запорізька область,Зар.плата за 2-гу половину липня 2019 року.,UA113139570000026000300238443,current,1417.50,Запорізька обласна організація Наш край,39968366,юридична особа
НАШ КРАЙ,"Запорізька обл., Запоріжжя, вул. Олександрівська, буд. 7",61,2019-08-02,п/д № 9,Військовий збір,Податкові платежі,344814,Запорізька обласна організація,39968366,Запорізька область,"Військовий збір 1,5%, утрим. із.зар.плати за 2-гу половину липня 2019 року",UA113139570000026000300238443,current,26.41,УДКСУ в Олександрівському районі м. Запоріжжя,38025440,юридична особа
НАШ КРАЙ,"Запорізька обл., Запоріжжя, вул. Дніпровська, буд. 34",62,2019-08-02,п/д № 8,Сплата ЄСВ,Податкові платежі,344813,Запорізька обласна організація,39968366,Запорізька область,Начис.ЕСВ 22% на з/п за 2-гу половину липня 2019 року,UA113139570000026000300238443,current,387.39,ГУ ДФС у Запорізькій області,39396146,юридична особа
НАШ КРАЙ,"Запорізька обл., Запоріжжя, вул. Олександрівська, буд. 7",63,2019-08-02,п/д № 7,Податок на доходи,Податкові платежі,344812,Запорізька обласна організація,39968366,Запорізька область,"Податок з доходів фіз.оіб, утрим.із з/п за 2-гу половину липня 2019 року",UA113139570000026000300238443,current,316.96,УДКСУ в Олександрівському районі м. Запоріжжя,38025440,юридична особа
НАШ КРАЙ,"Київ, вул. Богдана Хмельницького, буд. 64",70,2019-08-01,RCO1948_1432,Банківські послуги,Інші витрати,345571,Харківська обласна організація,39972241,Харківська область,За банківське обслуговування,UA033516290000000002600012178,current,125.00,"ПАТ ""Мегабанк""",09804119,юридична особа
НАШ КРАЙ,"Миколаївська обл., Миколаїв, вул. Георгія Гонгадзе, буд. 3",49,2019-08-01,151,Публікування матеріалів у друкованих ЗМІ,Реклама в друкованих ЗМІ,345228,Миколаївська обласна організація,39956738,Миколаївська область,"Сплата за друк газети ""Наш край-Миколаївщина""",26003140602,current,34400.00,КП Миколаївська областна друкарня,02467676,юридична особа
НАШ КРАЙ,"Миколаївська обл., Миколаїв, вул. Георгія Гонгадзе, буд. 3",49,2019-08-01,151,Публікування матеріалів у друкованих ЗМІ,Реклама в друкованих ЗМІ,345227,Миколаївська обласна організація,39956738,Миколаївська область,"Сплата за друк газети ""Наш край-Миколаївщина""",26003140602,current,13636.37,КП Миколаївська областна друкарня,02467676,юридична особа
НАШ КРАЙ,"Київ, вул. Богдана Хмельницького, буд. 64",70,2019-08-01,RCO1948_,Банківські послуги,Інші витрати,345226,Миколаївська обласна організація,39956738,Миколаївська область,банківське обслуговування,26003140602,current,135.00,"ПАТ ""Мегабанк""",09804119,юридична особа
НАШ КРАЙ,"Київ, вул. Богдана Хмельницького, буд. 64",70,2019-08-01,RCO1948_1437,Банківські послуги,Інші витрати,344889,Київська міська організація,39812835,Київ,Списання коштiв за банкiвське обслуговування згiдно договоpу 73/2015 від 2015-09-18 р.,26000260477,current,50.00,"ПАТ ""Мегабанк""",09804119,юридична особа
НАШ КРАЙ,"Запорізька обл., Запоріжжя, просп. Соборний, буд. 48",70,2019-08-01,№ 3727945909,Банківські послуги,Інші витрати,344811,Запорізька обласна організація,39968366,Запорізька область,Комісія за розрах. Обсл. Рахунку 260003000238443 з 2019-07-01-2019-07-31. Без ПДВ.,UA113139570000026000300238443,current,150.00,"Запорізька обласна філія АТ ""Ощадбанк""",02760363,юридична особа
НАШ КРАЙ,"Запорізька обл., Запоріжжя, просп. Соборний, буд. 48",70,2019-08-01,№ 3372076209,Банківські послуги,Інші витрати,344810,Запорізька обласна організація,39968366,Запорізька область,Списание щомісячної плати за обслуговування ТП Мій бізнес за липень 2019 р.. Без ПДВ.,UA113139570000026000300238443,current,149.00,"Запорізька обласна філія АТ ""Ощадбанк""",02760363,юридична особа
НАШ КРАЙ,"Київ, вул. Михайла Грушевського, буд. 1",70,2019-08-01,AN97V00AIP,Банківські послуги,Інші витрати,344714,Закарпатська обласна організація,39994726,Закарпатська область,Комісія за ослуговування рахунку,26000053915382,current,100.00,"ПАТ КБ ""Приватбанк""",14360570,юридична особа
НАШ КРАЙ,"Київ, вул. Богдана Хмельницького, буд. 64",70,2019-08-01,RCO1954,Банківські послуги,Інші витрати,344618,Донецька обласна організація,39878456,Донецька область,Списання коштів за банківське обслуговування,26000040299,current,2.00,"ПАТ ""Мегабанк""",09804119,юридична особа
НАШ КРАЙ,"Київ, вул. Богдана Хмельницького, буд. 64",70,2019-08-01,RCO1948,Банківські послуги,Інші витрати,344617,Донецька обласна організація,39878456,Донецька область,Списання коштів за банківське обслуговування,26000040299,current,125.00,"ПАТ ""Мегабанк""",09804119,юридична особа
НАШ КРАЙ,,62,2019-07-31,146,Сплата ЄСВ,Податкові платежі,345225,Миколаївська обласна організація,39956738,Миколаївська область,ЄСВ на ЗП (22%),26003140602,current,1200.00,ДПІ у Центральному районі м. Миколаєва ГУ ДФС у Миколаївській області,39554010,юридична особа
НАШ КРАЙ,,63,2019-07-31,145,Податок на доходи,Податкові платежі,345224,Миколаївська обласна організація,39956738,Миколаївська область,ПДФО із ЗП,26003140602,current,973.00,УДКСУ у м. Миколаєві,37992781,юридична особа
НАШ КРАЙ,,61,2019-07-31,144,Військовий збір,Податкові платежі,345223,Миколаївська обласна організація,39956738,Миколаївська область,військовий збір із ЗП,26003140602,current,85.00,УДКСУ у м. Миколаєві,37992781,юридична особа
НАШ КРАЙ,"Київ, вул. Богдана Хмельницького, буд. 64",70,2019-07-31,RCO1939_,Банківські послуги,Інші витрати,345222,Миколаївська обласна організація,39956738,Миколаївська область,банківське обслуговування,26003140602,current,30.00,"ПАТ ""Мегабанк""",09804119,юридична особа
НАШ КРАЙ,"Миколаївська обл., Миколаїв",84,2019-07-31,147,"Заробітна плата, премії","Заробітна плата, лікарняні, вагітності, відрядження, компенсації",345027,Миколаївська обласна організація,39956738,Миколаївська область,виплата заробітної плати,26003140602,current,1991.00,Остапчук Ольга Миколаївна,,фізична особа
НАШ КРАЙ,"Миколаївська обл., Миколаїв",84,2019-07-31,149,"Заробітна плата, премії","Заробітна плата, лікарняні, вагітності, відрядження, компенсації",345026,Миколаївська обласна організація,39956738,Миколаївська область,виплата заробітної плати,26003140602,current,1186.00,Торопенко Денис Сергійович,,фізична особа
НАШ КРАЙ,"Миколаївська обл., Миколаїв",84,2019-07-31,148,"Заробітна плата, премії","Заробітна плата, лікарняні, вагітності, відрядження, компенсації",345025,Миколаївська обласна організація,39956738,Миколаївська область,виплата заробітної плати,26003140602,current,1186.00,Рой Юлія Ігорівна,,фізична особа
НАШ КРАЙ,"Донецька обл., Словʼянський р-н, Словʼянськ",62,2019-07-31,318,Сплата ЄСВ,Податкові платежі,344616,Донецька обласна організація,39878456,Донецька область,Нарахування ЄСВ 22% на заробітну плату за липень 2019р.,26000040299,current,2329.37,Словʼянська ОДПІ ГУ ДФС у Донецькій області,39883094,юридична особа
НАШ КРАЙ,"Донецька обл., Словʼянський р-н, Словʼянськ",63,2019-07-31,320,Податок на доходи,Податкові платежі,344615,Донецька обласна організація,39878456,Донецька область,ПДФО утриманий із заробітної плати за липень 2019р.,26000040299,current,1732.96,УДКСУ у м. Словʼянську Донецької області,37803368,юридична особа
НАШ КРАЙ,"Донецька обл., Словʼянський р-н, Словʼянськ",62,2019-07-31,305,Сплата ЄСВ,Податкові платежі,344614,Донецька обласна організація,39878456,Донецька область,Нарахування ЄСВ 22% на відпускні за 2019р.,26000040299,current,952.37,Словʼянська ОДПІ ГУ ДФС у Донецькій області,39883094,юридична особа
НАШ КРАЙ,"Донецька обл., Словʼянський р-н, Словʼянськ",63,2019-07-31,309,Податок на доходи,Податкові платежі,344613,Донецька обласна організація,39878456,Донецька область,ПДФО із доходів Білоусова О.Ю. ІПН 2218706613,26000040299,current,900.00,УДКСУ у м. Словʼянську Донецької області,37803368,юридична особа
НАШ КРАЙ,"Донецька обл., Словʼянський р-н, Словʼянськ",63,2019-07-31,307,Податок на доходи,Податкові платежі,344612,Донецька обласна організація,39878456,Донецька область,ПДФО утриманий із відпускних за 2019р.,26000040299,current,779.21,УДКСУ у м. Словʼянську Донецької області,37803368,юридична особа
НАШ КРАЙ,"Донецька обл., Словʼянський р-н, Словʼянськ",62,2019-07-31,322,Сплата ЄСВ,Податкові платежі,344611,Донецька обласна організація,39878456,Донецька область,Нарахування ЄСВ 22% на заробітну плату за липень 2019р.,26000040299,current,612.42,Словʼянська ОДПІ ГУ ДФС у Донецькій області,39883094,юридична особа
НАШ КРАЙ,"Донецька обл., Словʼянський р-н, Словʼянськ",62,2019-07-31,329,Сплата ЄСВ,Податкові платежі,344610,Донецька обласна організація,39878456,Донецька область,Нарахування ЄСВ 22% на відпускні за 2019р.,26000040299,current,585.02,Словʼянська ОДПІ ГУ ДФС у Донецькій області,39883094,юридична особа
НАШ КРАЙ,"Донецька обл., Словʼянський р-н, Словʼянськ",63,2019-07-31,312,Податок на доходи,Податкові платежі,344609,Донецька обласна організація,39878456,Донецька область,ПДФО із доходів Ісікової С.Д. ІПН 2614700222,26000040299,current,540.00,УДКСУ у м. Словʼянську Донецької області,37803368,юридична особа
НАШ КРАЙ,"Донецька обл., Словʼянський р-н, Словʼянськ",62,2019-07-31,325,Сплата ЄСВ,Податкові платежі,344608,Донецька обласна організація,39878456,Донецька область,Нарахування ЄСВ 22% на відпускні за 2019р.,26000040299,current,525.47,Словʼянська ОДПІ ГУ ДФС у Донецькій області,39883094,юридична особа
НАШ КРАЙ,"Донецька обл., Словʼянський р-н, Словʼянськ",63,2019-07-31,323,Податок на доходи,Податкові платежі,344607,Донецька обласна організація,39878456,Донецька область,ПДФО утриманий із з/пл за липень 2019р.,26000040299,current,501.07,УДКСУ у м. Словʼянську Донецької області,37803368,юридична особа
НАШ КРАЙ,"Донецька обл., Словʼянський р-н, Словʼянськ",63,2019-07-31,330,Податок на доходи,Податкові платежі,344606,Донецька обласна організація,39878456,Донецька область,ПДФО утриманий із відпускних за 2019р.,26000040299,current,478.66,УДКСУ у м. Словʼянську Донецької області,37803368,юридична особа
НАШ КРАЙ,"Донецька обл., Словʼянський р-н, Словʼянськ",63,2019-07-31,324,Податок на доходи,Податкові платежі,344605,Донецька обласна організація,39878456,Донецька область,ПДФО утриманий із відпускних за 2019р.,26000040299,current,429.93,УДКСУ у м. Словʼянську Донецької області,37803368,юридична особа
НАШ КРАЙ,"Київ, вул. Богдана Хмельницького, буд. 64",70,2019-07-31,TR.15558,Банківські послуги,Інші витрати,344604,Донецька обласна організація,39878456,Донецька область,Сплата комісії за банківське обслуговування,26000040299,current,184.86,"ПАТ ""Мегабанк""",09804119,юридична особа
НАШ КРАЙ,"Донецька обл., Словʼянський р-н, Словʼянськ",61,2019-07-31,319,Військовий збір,Податкові платежі,344603,Донецька обласна організація,39878456,Донецька область,"Військовий збір 1,5%утриманий із заробітної плати за липень 2019р.",26000040299,current,158.82,УДКСУ у м. Словʼянську Донецької області,37803368,юридична особа
НАШ КРАЙ,"Донецька обл., Словʼянський р-н, Словʼянськ",61,2019-07-31,310,Військовий збір,Податкові платежі,344602,Донецька обласна організація,39878456,Донецька область,"Військовий збір 1,5% утриманий із доходів Білоусова О.Ю. ІПН 2218706613",26000040299,current,75.00,УДКСУ у м. Словʼянську Донецької області,37803368,юридична особа
НАШ КРАЙ,"Київ, вул. Богдана Хмельницького, буд. 64",70,2019-07-31,RCO1939,Банківські послуги,Інші витрати,344601,Донецька обласна організація,39878456,Донецька область,Списання коштів за банківське обслуговування,26000040299,current,69.00,"ПАТ ""Мегабанк""",09804119,юридична особа
НАШ КРАЙ,"Донецька обл., Словʼянський р-н, Словʼянськ",61,2019-07-31,306,Військовий збір,Податкові платежі,344600,Донецька обласна організація,39878456,Донецька область,"Військовий збір 1,5%утриманий із відпускних за 2019р.",26000040299,current,64.93,УДКСУ у м. Словʼянську Донецької області,37803368,юридична особа
НАШ КРАЙ,"Донецька обл., Словʼянський р-н, Словʼянськ",61,2019-07-31,313,Військовий збір,Податкові платежі,344599,Донецька обласна організація,39878456,Донецька область,"Військовий збір 1,5%утриманий із доходів Ісікової С.Д. ІПН 2614700222 за липень 2019р.",26000040299,current,45.00,УДКСУ у м. Словʼянську Донецької області,37803368,юридична особа
НАШ КРАЙ,"Донецька обл., Словʼянський р-н, Словʼянськ",61,2019-07-31,321,Військовий збір,Податкові платежі,344598,Донецька обласна організація,39878456,Донецька область,"Військовий збір 1,5%утриманий із заробітної плати за липень 2019р.",26000040299,current,41.76,УДКСУ у м. Словʼянську Донецької області,37803368,юридична особа
НАШ КРАЙ,"Донецька обл., Словʼянський р-н, Словʼянськ",61,2019-07-31,328,Військовий збір,Податкові платежі,344597,Донецька обласна організація,39878456,Донецька область,"Військовий збір 1,5%утриманий із відпускних за 2019р.",26000040299,current,39.89,УДКСУ у м. Словʼянську Донецької області,37803368,юридична особа
НАШ КРАЙ,"Донецька обл., Словʼянський р-н, Словʼянськ",61,2019-07-31,326,Військовий збір,Податкові платежі,344596,Донецька обласна організація,39878456,Донецька область,"Військовий збір 1,5%утриманий із відпускних за 2019р.",26000040299,current,35.83,УДКСУ у м. Словʼянську Донецької області,37803368,юридична особа
НАШ КРАЙ,"Донецька обл., Словʼянський р-н, Словʼянськ",79,2019-07-31,308,"Оренда будинків і приміщень та експлуатаційні витрати (прибирання, страхування орендованих будинків, охорона, сигналізація, ремонт, вивіз сміття, тощо)",Оренда нерухомості,344401,Донецька обласна організація,39878456,Донецька область,Оплата за оренду липень 2019р.,26000040299,current,4025.00,Білоусов О Ю,,фізична особа
НАШ КРАЙ,"Донецька обл., Словʼянський р-н, Словʼянськ",83,2019-07-31,304,"Виплати працівникам (не зарплата): лікарняні, вагітності, відрядження, компенсації ","Заробітна плата, лікарняні, вагітності, відрядження, компенсації",344400,Донецька обласна організація,39878456,Донецька область,Відпускні за 2019р.,26000040299,current,3484.82,Єжова Н Л,,фізична особа
НАШ КРАЙ,"Донецька обл., Словʼянський р-н, Словʼянськ",84,2019-07-31,316,"Заробітна плата, премії","Заробітна плата, лікарняні, вагітності, відрядження, компенсації",344399,Донецька обласна організація,39878456,Донецька область,Заробітна плата за липень 2019р.,26000040299,current,3409.35,Грам Т О,,фізична особа
НАШ КРАЙ,"Донецька обл., Словʼянський р-н, Словʼянськ",84,2019-07-31,315,"Заробітна плата, премії","Заробітна плата, лікарняні, вагітності, відрядження, компенсації",344398,Донецька обласна організація,39878456,Донецька область,Заробітна плата за липень 2019р.,26000040299,current,3409.35,Єжова Н Л,,фізична особа
НАШ КРАЙ,"Донецька обл., Миколаївка",79,2019-07-31,311,"Оренда будинків і приміщень та експлуатаційні витрати (прибирання, страхування орендованих будинків, охорона, сигналізація, ремонт, вивіз сміття, тощо)",Оренда нерухомості,344397,Донецька обласна організація,39878456,Донецька область,Оплата за оренду липень 2019р.,26000040299,current,2415.00,Ісікова С Д,,фізична особа
НАШ КРАЙ,"Донецька обл., Словʼянський р-н, Словʼянськ",84,2019-07-31,314,"Заробітна плата, премії","Заробітна плата, лікарняні, вагітності, відрядження, компенсації",344396,Донецька обласна організація,39878456,Донецька область,Заробітна плата за липень 2019р.,26000040299,current,2240.91,Лєнь Ю О,,фізична особа
НАШ КРАЙ,"Донецька обл., Словʼянський р-н, Словʼянськ",84,2019-07-31,331,"Заробітна плата, премії","Заробітна плата, лікарняні, вагітності, відрядження, компенсації",344395,Донецька обласна організація,39878456,Донецька область,Заробітна плата за липень 2019р.,26000040299,current,2140.65,Грам Т О,,фізична особа
НАШ КРАЙ,"Донецька обл., Словʼянський р-н, Словʼянськ",83,2019-07-31,327,"Виплати працівникам (не зарплата): лікарняні, вагітності, відрядження, компенсації ","Заробітна плата, лікарняні, вагітності, відрядження, компенсації",344394,Донецька обласна організація,39878456,Донецька область,Відпускні за 2019р.,26000040299,current,1922.74,Лєнь Ю О,,фізична особа
НАШ КРАЙ,"Донецька обл., Словʼянський р-н, Словʼянськ",84,2019-07-31,317,"Заробітна плата, премії","Заробітна плата, лікарняні, вагітності, відрядження, компенсації",344393,Донецька обласна організація,39878456,Донецька область,Заробітна плата за липень 2019р.,26000040299,current,1877.57,Шумакова А О,,фізична особа
